Workbook

Sheet Import (Reality Check) (hidden)
H1: =+'Import (Instructions)'!C1 -> 2018 AMEC | I1: =IF(LEFT(H1,4)="2018",2,1) -> 2
A3: 2019 Rental Housing Application (LIHTC and Other LHC Resources)
A5: =+'Unit Mix and Rents'!$A$4 -> x (x LA), x
A7: Comparison of Key Values -- AMEC versus Imported Data
B9: AMEC | C9: Imported | D9: Variance | E9: Variance Amount
A11: Total Sources of Funds | B11: =+'[1]3)Sources & Uses'!$F$45 -> 7862804 | C11: =+'Import (Data 2018)'!H450 -> 7862804 | D11: =IF(ROUND(B11,0)=ROUND(C11,0),"","Variance") ->  | E11: =IF(D11="","",+B11-C11) -> 
A13: Total Uses of Funds | B13: =+[1]!totaluses -> 7862804.02 | C13: =+'Import (Data 2018)'!I1021 -> 7862804.02 | D13: =IF(ROUND(B13,0)=ROUND(C13,0),"","Variance") ->  | E13: =IF(D13="","",+B13-C13) -> 
A15: Sources Minus Uses | B15: =+B11-B13 -> -0.01999999955 | C15: =+C11-C13 -> -0.01999999955 | D15: =IF(ROUND(C15,0)=0,"","Variance") ->  | E15: =IF(D15="","","Imported S&U Out of Balance") -> 
A17: Total Units | B17: =+'[1]4)Income'!D77 -> 60 | C17: =+'Import (Data 2018)'!F895 -> 60 | D17: =IF(ROUND(B17,0)=ROUND(C17,0),"","Variance") ->  | E17: =IF(D17="","",+B17-C17) -> 
A19: Gross Potential Rents: | B19: =+'[1]4)Income'!J75 -> 419544 | C19: =+Proforma!C14 -> 0 | D19: =IF(ROUND(B19,0)=ROUND(C19,0),"","Variance") -> Variance | E19: =IF(D19="","",+B19-C19) -> 419544
A20: Rent Loss Rate: | B20: =+'[1]6)Operating Proforma'!$C$8 -> 0.07 | C20: =+Proforma!C12 -> 0.07 | D20: =IF(ROUND(B20,4)=ROUND(C20,4),"","Variance") -> 
A21: Other Income: | B21: =+'[1]6)Operating Proforma'!$E$10+'[1]6)Operating Proforma'!$E$11 -> 2880 | C21: =SUM(Proforma!C16:C23) -> 0 | D21: =IF(ROUND(B21,0)=ROUND(C21,0),"","Variance") -> Variance | E21: =IF(D21="","",+B21-C21) -> 2880
A22: EGI: | B22: =+'[1]6)Operating Proforma'!$E$12 -> 393055.92 | C22: =+Proforma!C24 -> 0 | D22: Variance | E22: =IF(D22="","",+B22-C22) -> 393055.92
A23: Total Operating Expense: | B23: =+'[1]6)Operating Proforma'!$E$20 -> 267363 | C23: =+Proforma!C34 -> 1 | D23: Variance | E23: =IF(D23="","",+B23-C23) -> 267362
A24: R4R Annual Deposit: | B24: =+'[1]6)Operating Proforma'!$E$24 -> 18000 | C24: =+Proforma!C36 -> 0 | D24: Variance | E24: 18000
A25: Net Operating Income: | B25: =+'[1]6)Operating Proforma'!$E$25 -> 107692.92 | C25: =+Proforma!C38 -> -1 | D25: Variance | E25: 107693.92
A26: Must-Pay Debt Service: | B26: =+'[1]6)Operating Proforma'!$E$38 -> 77031.61705 | C26: =+Proforma!C40 -> 0 | D26: Variance | E26: 77031.61705
A27: Operating Cash Flow: | B27: =+'[1]6)Operating Proforma'!$E$41 -> 30661.30295 | C27: =+Proforma!C43 -> -1 | D27: Variance | E27: 30662.30295
A29: DSCR Year 1: | B29: =+'[1]6)Operating Proforma'!$E$39 -> 1.398035302 | C29: =+Proforma!C44 -> 0 | D29: =IF(ROUND(B29,2)=ROUND(C29,2),"","Variance") -> Variance
A31: Housing Credits:
A32: Requested | B32: =+'[1]7)Housing Credits'!$C$21 -> 730000 | C32: =+'Import (Data 2018)'!H132 -> 730000 | D32: =IF(ROUND(B32,0)=ROUND(C32,0),"","Variance") ->  | E32: =IF(D32="","",+B32-C32) -> 
A34: GR Limit | B34: =CHOOSE($I$1,'[1]1)UnderwritingCriteria'!$G48,'[1]1)UnderwritingCriteria'!$G51) -> 251572.38 | C34: =+'Development Costs'!$C$279 -> 0 | D34: =IF(ROUND(B34,0)=ROUND(C34,0),"","Variance") -> Variance | E34: =IF(D34="","",+B34-C34) -> 251572.38
A35: GR Proposed | B35: =CHOOSE($I$1,'[1]1)UnderwritingCriteria'!$G49,'[1]1)UnderwritingCriteria'!$G52) -> 251572 | C35: =+'Development Costs'!$C$280 -> 0 | D35: =IF(ROUND(B35,0)=ROUND(C35,0),"","Variance") -> Variance | E35: =IF(D35="","",+B35-C35) -> 251572
A37: BO Limit | B37: =CHOOSE($I$1,'[1]1)UnderwritingCriteria'!$G50,'[1]1)UnderwritingCriteria'!$G53) -> 88888.9 | C37: =+'Development Costs'!$C$286 -> 0 | D37: =IF(ROUND(B37,0)=ROUND(C37,0),"","Variance") -> Variance | E37: =IF(D37="","",+B37-C37) -> 88888.9
A38: BO Proposed | B38: =CHOOSE($I$1,'[1]1)UnderwritingCriteria'!$G51,'[1]1)UnderwritingCriteria'!$G54) -> 88888.51 | C38: =+'Development Costs'!$C$287 -> 0 | D38: =IF(ROUND(B38,0)=ROUND(C38,0),"","Variance") -> Variance | E38: =IF(D38="","",+B38-C38) -> 88888.51
A40: BP Limit | B40: =CHOOSE($I$1,'[1]1)UnderwritingCriteria'!$G52,'[1]1)UnderwritingCriteria'!$G55) -> 266666.7 | C40: =+'Development Costs'!$C$293 -> 0 | D40: =IF(ROUND(B40,0)=ROUND(C40,0),"","Variance") -> Variance | E40: =IF(D40="","",+B40-C40) -> 266666.7
A41: BP Proposed | B41: =CHOOSE($I$1,'[1]1)UnderwritingCriteria'!$G53,'[1]1)UnderwritingCriteria'!$G56) -> 266666.51 | C41: =+'Development Costs'!$C$294 -> 0 | D41: =IF(ROUND(B41,0)=ROUND(C41,0),"","Variance") -> Variance | E41: =IF(D41="","",+B41-C41) -> 266666.51
A43: Dev Fee Limit | B43: =CHOOSE($I$1,'[1]1)UnderwritingCriteria'!$G54,'[1]1)UnderwritingCriteria'!$G57) -> 913865.4 | C43: =+'Development Costs'!$C$325 -> 0.18 | D43: =IF(ROUND(B43,0)=ROUND(C43,0),"","Variance") -> Variance | E43: =IF(D43="","",+B43-C43) -> 913865.22
A44: Dev Fee Proposed | B44: =CHOOSE($I$1,'[1]1)UnderwritingCriteria'!$G55,'[1]1)UnderwritingCriteria'!$G58) -> 889813 | C44: =+'Development Costs'!$C$326 -> 0 | D44: =IF(ROUND(B44,0)=ROUND(C44,0),"","Variance") -> Variance | E44: =IF(D44="","",+B44-C44) -> 889813
A93: Indicators of AMEC Version
A95: ="Selection Criterion Worksheet" -> Selection Criterion Worksheet
A97: ="Location of "&H97 -> Location of Total Tax Credit Points: | C97: =IF(B98=$H$97,"Early 2017 AMEC",IF(B99=$H$97,"2017 AMEC",IF(B100=H97,"2018 AMEC","Unknown"))) -> 2018 AMEC | H97: Total Tax Credit Points:
A98: K283 | B98: =+'[1]Selection Criteria'!$K$283 -> 0
A99: K291 | B99: =+'[1]Selection Criteria'!$K$291 -> 0
A100: K275 | B100: =+'[1]Selection Criteria'!$K$275 -> Total Tax Credit Points:
A102: ="Location of "&H102 -> Location of TARGETED PROJECT TYPE | C102: =IF(TRIM(B103)=$H$102,"2018 Format 1",IF(TRIM(B104)=$H$102,"2018 Format 2","Other 3")) -> 2018 Format 1 | G102: =VALUE(RIGHT(C102,1)) -> 1 | H102: TARGETED PROJECT TYPE
A103: B12 | B103: =LEFT(H103,22) -> TARGETED PROJECT TYPE | H103: =+'[1]Selection Criteria'!$B$12 -> TARGETED PROJECT TYPE (Select all that apply. See note for restrictions.)
A104: B15 | B104: =LEFT(H104,22) -> 0 | H104: =+'[1]Selection Criteria'!$B$15 -> 0

Sheet Import (Data 2018) (hidden)
A3: Import Tool (from AMEC Application) -- PROJECT DESCRIPTION SHEET | O3: =CELL("filename",[1]Narrative!$A$1) -> 
A4: =ROW() -> 4 | B4: =COLUMN() -> 2 | C4: =COLUMN() -> 3 | D4: =COLUMN() -> 4 | E4: =COLUMN() -> 5 | F4: =COLUMN() -> 6 | G4: =COLUMN() -> 7 | H4: =COLUMN() -> 8 | I4: =COLUMN() -> 9 | O4: =MID(O3,Q6+1,R6-Q6-1) -> 
A5: =ROW() -> 5 | B5: =E50&" ("&E52&" LA, "&E53&" Parish, "&TEXT($F$895,"0")&" Units)" -> Monterey Hills Apartments (Vivian LA, Caddo Parish, 60 Units) | O5: Work area: | Q5: [ | R5: ]
A6: =ROW() -> 6 | B6: ="Imported from Filename: "&IF(ISNA(O4)," [OPEN THE AMEC]",O4) -> Imported from Filename: [OPEN THE AMEC] | Q6: =FIND(Q5,$O3,1) ->  | R6: =FIND(R5,$O3,Q6) -> 
A7: =ROW() -> 7
A8: =ROW() -> 8 | B8: Characteristics of The Applicant | K8: = a formula in this row differs from AMEC 2017
A9: =ROW() -> 9
A10: =ROW() -> 10 | B10: Taxpayer Name: | E10: =+'[1]2)Summary'!$D$3 -> MH Housing, LP | I10: x
A11: =ROW() -> 11 | B11: Taxpayer Address: | E11: =LEFT(J11,N11-1) -> 149 Concourse Dr. | I11: x | J11: =+'[1]Development Team'!$E$12 -> 149 Concourse Dr., Pearl, MS 39208 | N11: =SEARCH(",",J11,1) -> 18
A12: =ROW() -> 12 | B12: City, State & Zip: | E12: =TRIM(MID(J11,N11+1,100)) -> Pearl, MS 39208 | I12: x
A13: =ROW() -> 13 | B13: Taxpayer Contact*: | E13: =+'[1]2)Summary'!$D$6 -> David Strange | I13: x
A14: =ROW() -> 14 | B14: Phone: | E14: =+'[1]2)Summary'!$D$7 -> 601-932-1674 | I14: x
A15: =ROW() -> 15 | B15: Email | E15: =+'[1]2)Summary'!$F$7 -> david@rnoak.com | I15: x
A16: =ROW() -> 16 | B16: Federal Tax ID / SSN: | E16: =+'[1]Appendix 1'!$C$20 -> Applied For | I16: x
A17: =ROW() -> 17 | B17: Taxpayer is: | E17: =IF(J17=0,V17,V18) -> Controlled by For-Profit | I17: x | J17: =+'[1]Appendix 11'!$B$10 -> 0 | V17: Controlled by For-Profit
A18: =ROW() -> 18 | B18: Taxpayer is a: | E18: =+'[1]Development Team'!$B19 -> Limited Partnership | I18: x | V18: Controlled by Non-Profit
A19: =ROW() -> 19 | B19: Controlling Principal Name: | E19: =+'[1]Development Team'!$E$18 -> MH One, LLC | I19: x
A20: =ROW() -> 20 | B20: Controlling Principal is the: | E20: =+'[1]Development Team'!$B$18 -> Managing General Partner | I20: x
A21: =ROW() -> 21
A22: =ROW() -> 22 | B22: * This person will be LHC's single point of contact for the taxpayer / applicant. Please be sure that this person will be a good choice to respond to any questions from LHC during underwriting.
A23: =ROW() -> 23
A24: =ROW() -> 24 | B24: Developer / Sponsor | E24: =+'[1]Development Team'!$E$4 -> Rowanoak Development, LLC | I24: x
A25: =ROW() -> 25 | B25: Address: | E25: =LEFT(J25,N25-1) -> 149 Concourse Dr. | I25: x | J25: =+'[1]Development Team'!$E$5 -> 149 Concourse Dr., Pearl, MS 39208 | N25: =SEARCH(",",J25,1) -> 18
A26: =ROW() -> 26 | B26: City, State & Zip: | E26: =TRIM(MID(J25,N25+1,100)) -> Pearl, MS 39208 | I26: x
A27: =ROW() -> 27 | B27: Does the Developer / Sponsor meet the requirements of QAP V.C.1? | H27: Yes | I27: hard code
A28: =ROW() -> 28 | B28: Is the Developer a New Developer as defined in the QAP? | H28: No | I28: hard code
A29: =ROW() -> 29 | B29: =IF(H28="Yes","Note that, as a New Developer, you are only eligible to receive an award of tax credits for one project in this funding cycle.","") -> 
A30: =ROW() -> 30
A31: =ROW() -> 31 | B31: Comment
A32: =ROW() -> 32
A33: =ROW() -> 33 | B33: Is there an Identity of Interest between the Developer and the Builder? | H33: =IF(ISNUMBER(SEARCH("IS NOT",J33,1)),"No","Yes") -> Yes | I33: x | J33: =+'[1]Appendix 1'!$C$81 -> Builder IS related to Taxpayer or General Partner
A34: =ROW() -> 34
A35: =ROW() -> 35 | B35: Is any member of the proposed project team "not in good standing" with the LHC, as defined in the QAP? | H35: No | I35: hard code
A36: =ROW() -> 36
A37: =ROW() -> 37 | B37: Comment
A38: =ROW() -> 38
A39: =ROW() -> 39 | B39: Qualified Non-Profit. Does the Applicant evidence material participation of a Qualified Non-Profit Organization (as defined in the Glossary)? If so, an information request will appear on the Checklist worksheet. | H39: =IF(E17=V17,"No","Yes") -> No | I39: x
A40: =ROW() -> 40
A41: =ROW() -> 41 | B41: CHDO. Is the Applicant a CHDO (Community Housing Development Organization) that (a) meets the definition in the Glossary and (b) is certified as a CHDO by the LHC? If so, an information request will appear on the Checklist worksheet. | H41: =IF('[1]Appendix 11'!$F$23="Yes","Yes","No") -> No | I41: x
A42: =ROW() -> 42
A43: =ROW() -> 43 | B43: Management Agent | E43: =+'[1]Development Team'!$E$71 -> Weston Associates Management Co., Inc. | I43: x
A44: =ROW() -> 44 | B44: Street Address: | E44: =TRIM(LEFT(J44,N44-1)) -> 170 Newbury Street | I44: x | J44: =+'[1]Development Team'!$E$72 -> 170 Newbury Street, Coston, MA 02116 | N44: =SEARCH(",",J44,1) -> 19
A45: =ROW() -> 45 | B45: City, State, Zip: | E45: =TRIM(MID(J44,N44+1,100)) -> Coston, MA 02116 | I45: x
A46: =ROW() -> 46
A47: =ROW() -> 47
A48: =ROW() -> 48 | B48: Characteristics of The Project
A49: =ROW() -> 49
A50: =ROW() -> 50 | B50: Project Name: | E50: =+'[1]2)Summary'!$D$8 -> Monterey Hills Apartments | I50: x
A51: =ROW() -> 51 | B51: Street Address: | E51: =+'[1]2)Summary'!$D9 -> 130 Williamson Way | I51: x
A52: =ROW() -> 52 | B52: City: | E52: =+'[1]2)Summary'!$D10 -> Vivian | I52: x
A53: =ROW() -> 53 | B53: Parish: | E53: =+'[1]2)Summary'!$H$10 -> Caddo | I53: x | L53: =VLOOKUP($E53,Parishes!$A$10:$U$73,21,FALSE) -> Shreveport-Bossier City MSA | P53: =VLOOKUP($E53,Parishes!$A$10:$U$73,20,FALSE) -> 59900
A54: =ROW() -> 54 | B54: Zip Code: | E54: =+'[1]2)Summary'!$D$11 -> 71082 | I54: x
A55: =ROW() -> 55
A56: =ROW() -> 56
A57: =ROW() -> 57 | B57: Is the entire project located on a single site? | H57: =IF(ISNUMBER(N57),"No","Yes") -> Yes | I57: x | J57: =+[1]!Contyp -> Rehabilitation & Acquisition / Multi Family | N57: =SEARCH("Scattered Site",J57,1) -> 
A58: =ROW() -> 58 | B58: =IF(H57="Yes","","The Checklist worksheet will include a question.") -> 
A59: =ROW() -> 59
A60: =ROW() -> 60 | B60: What is the primary development type? | H60: =IF(LEFT(J60,3)="New","New Construction","Acquisition & Rehab") -> Acquisition & Rehab | I60: x | J60: =+[1]!Contyp -> Rehabilitation & Acquisition / Multi Family
A61: =ROW() -> 61 | B61: Will any new construction take place? | H61: =IF(ISNUMBER(N61),"Yes","No") -> No | J61: New Construction | N61: =SEARCH(J61,$J$60,1) -> 
A62: =ROW() -> 62 | B62: Will any existing buildings be acquired? | H62: =IF(ISNUMBER(N62),"Yes","No") -> Yes | J62: Acquisition | N62: =SEARCH(J62,$J$60,1) -> 18
A63: =ROW() -> 63 | B63: Will any rehabilitation take place? | H63: =IF(ISNUMBER(N63),"Yes","No") -> Yes | J63: Rehab | N63: =SEARCH(J63,$J$60,1) -> 1
A64: =ROW() -> 64 | B64: Will Substantial Rehabilitation take place? | H64: No | I64: hard code
A65: =ROW() -> 65 | B65: Will any historic rehabilitation take place? | H65: =IF(ISNUMBER(N65),"Yes","No") -> No | J65: Historic | N65: =SEARCH(J65,$J$60,1) -> 
A66: =ROW() -> 66 | B66: Does the purchase price of the real estate exceed $500K? | H66: No | I66: hard code
A67: =ROW() -> 67 | B67: Will Acquisition Cost of buildings be included in basis? | H67: No | I67: hard code
A68: =ROW() -> 68
A69: =ROW() -> 69 | B69: Will any existing rental housing buildings be acquired? | H69: =+H62 -> Yes | I69: x
A70: =ROW() -> 70 | B70: If so, are the seller and purchaser Related Persons? | H70: No | I70: hard code
A71: =ROW() -> 71
A72: =ROW() -> 72 | B72: Is this an infill project (as defined in the QAP)? | H72: =+'[1]2)Summary'!$I$15 -> No | I72: x
A73: =ROW() -> 73 | B73: Is the project located in a Special Flood Hazard Area? | H73: No | I73: hard code
A74: =ROW() -> 74 | B74: Is the project in a levee protected area? | H74: No | I74: hard code
A75: =ROW() -> 75
A76: =ROW() -> 76 | B76: What is the primary building type for this project? | H76: =+K76 -> Walk-up | I76: x | J76: =+'[1]2)Summary'!$D$14 -> Walkup | K76: =IF(J76="Walkup","Walk-up",IF(J76="Detached/Semi-Detached","Detached / Semi-Detached",J76)) -> Walk-up
A77: =ROW() -> 77 | B77: Does the project include other building types as well? | H77: =IF('[1]2)Summary'!$D$15="Other","No","Yes") -> Yes | I77: x
A78: =ROW() -> 78
A79: =ROW() -> 79 | B79: Entitlement Area? Is the project located in an Entitlement Area (a city or Parish that receives Community Development Block Grant funds directly from HUD)? | H79: No | I79: hard code
A80: =ROW() -> 80
A81: =ROW() -> 81 | B81: In which census tract is the project primarily located? | H81: =+[1]!censustract -> 22017025000 | I81: x | J81: =IF(P53=0,49500,P53) -> 59900 | K81: MSA median
A82: =ROW() -> 82 | B82: Does any part of the project lie outside this census tract? | H82: No | I82: hard code | K82: =INDEX('[1]Selection Criteria'!$L$1:$L$275,N82) -> 0 | L82: 26 | M82: 3 | N82: =CHOOSE('Import (Reality Check)'!$G$102,L82,L82+M82,L82) -> 26
A83: =ROW() -> 83 | B83: Median income of the primary census tract | H83: =+J83 -> 0 | I83: hard code | J83: =ROUNDUP(IF(SUM(K81:K84)=12,J81*151%,IF(SUM(K81:K84)=6,J81*121%,0))/100,0)*100 -> 0 | K83: =INDEX('[1]Selection Criteria'!$L$1:$L$275,N83) -> 0 | L83: 27 | M83: 3 | N83: =CHOOSE('Import (Reality Check)'!$G$102,L83,L83+M83,L83) -> 27
A84: =ROW() -> 84
A85: =ROW() -> 85
A86: =ROW() -> 86 | B86: Is the property a Distressed Property, as defined in the QAP (RD, HUD or PHA)? | H86: =IF(OR(J86=0,J86=""),"No","Yes") -> No | I86: x | J86: =+K86 -> 0 | K86: =INDEX('[1]Selection Criteria'!$J$1:$J$275,N86) -> 0 | L86: 33 | M86: 3 | N86: =CHOOSE('Import (Reality Check)'!$G$102,L86,L86+M86,L86) -> 33
A87: =ROW() -> 87 | B87: Is the property a Redevelopment Property, as defined in the QAP? | H87: No | I87: x | J87: 0 | K87: =INDEX('[1]Selection Criteria'!$J$1:$J$275,N87) -> 0 | L87: =+L86+1 -> 34 | M87: 3 | N87: =CHOOSE('Import (Reality Check)'!$G$102,L87,L87+M87,L87) -> 34
A88: =ROW() -> 88 | B88: Is the property an Owner Occupied Property with Development Plan of Action, as defined in the QAP? | H88: No | I88: x | J88: 0 | K88: =INDEX('[1]Selection Criteria'!$J$1:$J$275,N88) -> 0 | L88: =+L87+1 -> 35 | M88: 3 | N88: =CHOOSE('Import (Reality Check)'!$G$102,L88,L88+M88,L88) -> 35
A89: =ROW() -> 89 | B89: Is this a rehabilitation of existing LIHTC, USDA, or Federally Funded project? | H89: Yes | I89: x | J89: 8 | K89: =INDEX('[1]Selection Criteria'!$L$1:$L$275,N89) -> 8 | L89: 42 | M89: 3 | N89: =CHOOSE('Import (Reality Check)'!$G$102,L89,L89+M89,L89) -> 42
A90: =ROW() -> 90 | B90: Is this a rehabilitation of an existing residential building? | H90: No | I90: x | J90: 0 | K90: =INDEX('[1]Selection Criteria'!$L$1:$L$275,N90) -> 0 | L90: 44 | M90: 3 | N90: =CHOOSE('Import (Reality Check)'!$G$102,L90,L90+M90,L90) -> 44
A91: =ROW() -> 91 | B91: Does this project constitute remediation and/or replacement of Blighted Housing, as defined in the QAP? | H91: No | I91: x | J91: 0 | K91: =INDEX('[1]Selection Criteria'!$L$1:$L$275,N91) -> 0 | L91: =+L90+1 -> 45 | M91: 3 | N91: =CHOOSE('Import (Reality Check)'!$G$102,L91,L91+M91,L91) -> 45
A92: =ROW() -> 92 | B92: Is this a Homeownership project, as defined in the QAP? | H92: No | I92: x | J92: 0 | K92: =INDEX('[1]Selection Criteria'!$L$1:$L$275,N92) -> 0 | L92: =+L91+1 -> 46 | M92: 3 | N92: =CHOOSE('Import (Reality Check)'!$G$102,L92,L92+M92,L92) -> 46
A93: =ROW() -> 93 | N93: =CHOOSE('Import (Reality Check)'!$G$102,L93,L93+M93,L93) -> 0
A94: =ROW() -> 94 | B94: Does the marketing plan or lease-up plan give a priority to persons on a current Public Housing waiting list? | H94: =IF(OR(J94=0,J94=""),"No","Yes") -> Yes | I94: x | J94: =+K94 -> 2 | K94: =INDEX('[1]Selection Criteria'!$L$1:$L$275,N94) -> 2 | L94: 55 | M94: 3 | N94: =CHOOSE('Import (Reality Check)'!$G$102,L94,L94+M94,L94) -> 55
A95: =ROW() -> 95
A96: =ROW() -> 96 | B96: Is this a Preservation Property, as defined in the QAP? | H96: =IF(OR(J96=0,J96=""),"No","Yes") -> Yes | I96: x | J96: =+K96 -> 5 | K96: =CHOOSE('Import (Reality Check)'!$G$102,'Import (Data 2018)'!L96,'Import (Data 2018)'!N96,'Import (Data 2018)'!L96) -> 5 | L96: =SUM('[1]Selection Criteria'!$L$59:$L$65) -> 5 | M96: (59-65) | N96: =SUM('[1]Selection Criteria'!$L$62:$L$68) -> 0 | O96: (62-68)
A97: =ROW() -> 97
A98: =ROW() -> 98
A99: =ROW() -> 99 | B99: Does the project currently receive federal funds and/or receive insurance under a federal program? | H99: =IF([1]Checklist!$K$50="X","Yes","No") -> No | I99: x
A100: =ROW() -> 100 | B100: Will HUD or RD housing assistance, or other government assistance, be provided to the project? | H100: =+H99 -> No | I100: x
A101: =ROW() -> 101
A102: =ROW() -> 102
A103: =ROW() -> 103
A104: =ROW() -> 104
A105: =ROW() -> 105 | B105: Selection of Funding Pool; Requests for Funding Other Than LIHTCs
A106: =ROW() -> 106
A107: =ROW() -> 107 | B107: For which funding pool are you applying? | H107: =IF(J107="X",N107,IF(J108="X",N108,IF(J109="X",N109,N110))) -> General | I107: x | J107: =+'[1]Selection Criteria'!I5 -> 0 | K107: =+'[1]Selection Criteria'!$D5 -> Qualified Non-Profit/CHDO | N107: Qualified Nonprofit/CHDO
A108: =ROW() -> 108 | J108: =+'[1]Selection Criteria'!I6 -> X | K108: =+'[1]Selection Criteria'!$D6 -> General Pool | N108: General
A109: =ROW() -> 109 | J109: =+'[1]Selection Criteria'!I7 -> 0 | K109: =+'[1]Selection Criteria'!$D7 -> Preservation | N109: Preservation Priority
A110: =ROW() -> 110 | B110: National Housing Trust Fund (NHTF) | J110: =+'[1]Selection Criteria'!I8 -> 0 | K110: =+'[1]Selection Criteria'!$D8 -> Rural Pool | N110: Rural
A111: =ROW() -> 111
A112: =ROW() -> 112 | B112: Amount of NHTF funds requested: | H112: =SUM('[1]3)Sources & Uses'!$F$14:$F$16) -> 0 | I112: x
A113: =ROW() -> 113
A114: =ROW() -> 114 | B114: =IF(H112=0,"","Note that any project receiving NHTF will require Environmental Review which can take up to 120 days to complete.") -> 
A115: =ROW() -> 115
A116: =ROW() -> 116 | B116: HOME Investment Partnership Program Funds (HOME)
A117: =ROW() -> 117
A118: =ROW() -> 118 | B118: Amount of HOME funds requested: | H118: =SUM('[1]3)Sources & Uses'!$F$11:$F$13) -> 0 | I118: x
A119: =ROW() -> 119
A120: =ROW() -> 120 | B120: =IF(H118=0,"","Note that any project receiving HOME funding will require Environmental Review which can take up to 120 days to complete.") -> 
A121: =ROW() -> 121
A122: =ROW() -> 122 | B122: CDBG Disaster Recovery Funds (CDBG-DR)
A123: =ROW() -> 123
A124: =ROW() -> 124 | B124: Amount of CDBG-DR funds requested: | H124: =SUM(K123:K128) -> 0 | I124: x | K124: =+'[1]3)Sources & Uses'!$F$19 -> 0 | L124: =+'[1]3)Sources & Uses'!$D$19 -> Other loan (identify):
A125: =ROW() -> 125 | K125: =+'[1]3)Sources & Uses'!$F$20 -> 0 | L125: =+'[1]3)Sources & Uses'!$D$20 -> Other loan (identify):
A126: =ROW() -> 126 | K126: =+'[1]3)Sources & Uses'!$F24 -> 0 | L126: =+'[1]3)Sources & Uses'!$D24 -> Non-LHC loan #3 (identify lender):
A127: =ROW() -> 127 | K127: =+'[1]3)Sources & Uses'!$F25 -> 0 | L127: =+'[1]3)Sources & Uses'!$D25 -> Cash Flow Loans
A128: =ROW() -> 128 | B128: Requests for LIHTCs
A129: =ROW() -> 129
A130: =ROW() -> 130 | B130: ="The LIHTC Per Project Cap for the "&TRIM($H$107)&" pool is:" -> The LIHTC Per Project Cap for the General pool is:
A131: =ROW() -> 131
A132: =ROW() -> 132 | B132: Credits requested | H132: =+'[1]7)Housing Credits'!$C$21 -> 730000 | I132: x
A133: =ROW() -> 133
A134: =ROW() -> 134
A135: =ROW() -> 135 | B135: The new construction / rehabilitation housing credit rate will be: | H135: 0.09
A136: =ROW() -> 136
A137: =ROW() -> 137 | B137: The acquisition housing credit rate is estimated to be: | H137: =+'[1]Basis Calculation'!$C$60 -> 0.0328 | I137: x
A138: =ROW() -> 138 | B138: Comment
A139: =ROW() -> 139
A140: =ROW() -> 140 | B140: Are you applying for 9% LIHTCs? | H140: =IF('[1]Basis Calculation'!$D63=0,"No","Yes") -> Yes | I140: x
A141: =ROW() -> 141 | B141: Are you applying for 4% LIHTCs? | H141: =IF('[1]Basis Calculation'!$D64=0,"No","Yes") -> Yes | I141: x
A142: =ROW() -> 142
A143: =ROW() -> 143 | B143: Are you applying for the 30% Basis Boost? | H143: =IF('[1]3)Sources & Uses'!$E$189=1,"No","Yes") -> Yes | I143: x
A144: =ROW() -> 144 | B144: Basis Boost Percentage | D144: =IF(OR(H144=0,H144=30%),"","Error -- Boost % must be 0% or 30%") ->  | H144: =+'[1]3)Sources & Uses'!$E$189-1 -> 0.3 | I144: x
A145: =ROW() -> 145 | B145: Is any part of the project located in:
A146: =ROW() -> 146 | B146: … a Difficult Development Area? | H146: =IF(ISNUMBER(L146),"Yes","No") -> No | I146: x | J146: =+'[1]2)Summary'!$H$19 -> None | L146: =SEARCH(M146,J146,1) ->  | M146: DDA
A147: =ROW() -> 147 | B147: … a Qualified Census Tract? | H147: =IF(ISNUMBER(L147),"Yes","No") -> No | I147: x | J147: =+J146 -> None | L147: =SEARCH(M147,J147,1) ->  | M147: QCT
A148: =ROW() -> 148 | B148: … a High Opportunity census tract? | H148: No | I148: x
A149: =ROW() -> 149
A150: =ROW() -> 150 | B150: LHC Funding Type:
A151: =ROW() -> 151
A152: =ROW() -> 152 | B152: LIHTC Set-Aside Election | H152: =+[1]!setaside -> 40/60 | I152: x
A153: =ROW() -> 153
A154: =ROW() -> 154 | B154: Project Schedule
A155: =ROW() -> 155
A156: =ROW() -> 156 | B156: A. SITE | H156: Estimated Date
A157: =ROW() -> 157 | C157: Option/Contract | H157: =+'[1]Project Schedule'!H6 -> 2018-06-15 | I157: x
A158: =ROW() -> 158 | C158: Site Acquisition | H158: =+'[1]Project Schedule'!H7 -> 2018-10-15 | I158: x
A159: =ROW() -> 159 | C159: Zoning Approval | H159: =+'[1]Project Schedule'!H8 -> 2018-06-15 | I159: x
A160: =ROW() -> 160 | C160: Site Analysis | H160: =+'[1]Project Schedule'!H9 -> 2018-06-15 | I160: x
A161: =ROW() -> 161 | C161: Environmental Clearance | H161: =+'[1]Project Schedule'!H10 -> 2018-10-15 | I161: x
A162: =ROW() -> 162
A163: =ROW() -> 163 | B163: B. FINANCING
A164: =ROW() -> 164 | B164: 1. Construction Loan / Interim Financing
A165: =ROW() -> 165 | C165: Loan Application | H165: =+'[1]Project Schedule'!H14 -> 2018-05-15 | I165: x
A166: =ROW() -> 166 | C166: Conditional Commitment | H166: =+'[1]Project Schedule'!H15 -> 2018-05-30 | I166: x
A167: =ROW() -> 167 | C167: Firm Commitment | H167: =+'[1]Project Schedule'!H16 -> 2018-06-15 | I167: x
A168: =ROW() -> 168 | B168: 2. Permanent Loan
A169: =ROW() -> 169 | C169: Loan Application | H169: =+'[1]Project Schedule'!H19 -> 2018-05-15 | I169: x
A170: =ROW() -> 170 | C170: Conditional Commitment | H170: =+'[1]Project Schedule'!H20 -> 2018-05-30 | I170: x
A171: =ROW() -> 171 | C171: Firm Commitment | H171: =+'[1]Project Schedule'!H21 -> 2018-06-15 | I171: x
A172: =ROW() -> 172 | B172: 3. Other Loans and Grants #1
A173: =ROW() -> 173 | C173: Type and Source | H173: =+'[1]Project Schedule'!$H$24 -> 00:00:00 | I173: x
A174: =ROW() -> 174 | C174: Application | H174: =+'[1]Project Schedule'!$H$24 -> 00:00:00 | I174: x
A175: =ROW() -> 175 | C175: Award | H175: =+'[1]Project Schedule'!$H$24 -> 00:00:00 | I175: x
A176: =ROW() -> 176 | B176: 4. Other Loans and Grants #2
A177: =ROW() -> 177 | C177: Type and Source | H177: =+'[1]Project Schedule'!H24 -> 00:00:00 | I177: x
A178: =ROW() -> 178 | C178: Application | H178: =+'[1]Project Schedule'!H25 -> 00:00:00 | I178: x
A179: =ROW() -> 179 | C179: Award | H179: =+'[1]Project Schedule'!H26 -> 00:00:00 | I179: x
A180: =ROW() -> 180 | B180: 5. Other Loans and Grants #3
A181: =ROW() -> 181 | C181: Type and Source | H181: =+'[1]Project Schedule'!H29 -> 00:00:00 | I181: x
A182: =ROW() -> 182 | C182: Application | H182: =+'[1]Project Schedule'!H30 -> 00:00:00 | I182: x
A183: =ROW() -> 183 | C183: Award | H183: =+'[1]Project Schedule'!H31 -> 00:00:00 | I183: x
A184: =ROW() -> 184
A185: =ROW() -> 185 | B185: C. PLANS AND SPECS, WORKING DRAWINGS | H185: =+'[1]Project Schedule'!$H$33 -> 2018-06-30 | I185: x
A186: =ROW() -> 186
A187: =ROW() -> 187 | B187: D. INITIAL CLOSING AND TRANSFER OF PROPERTY | H187: =+'[1]Project Schedule'!$H$36 -> 2018-10-15 | I187: x
A188: =ROW() -> 188
A189: =ROW() -> 189 | B189: E. CONSTRUCTION START | H189: =+'[1]Project Schedule'!H38 -> 2019-01-15 | I189: x
A190: =ROW() -> 190 | C190: 10% Construction Complete | H190: =+'[1]Project Schedule'!H40 -> 2019-03-31 | I190: x
A191: =ROW() -> 191 | C191: 50% Construction Complete | H191: =+'[1]Project Schedule'!H41 -> 2019-08-31 | I191: x
A192: =ROW() -> 192 | C192: 90% Construction Complete | H192: =+'[1]Project Schedule'!H42 -> 2019-11-15 | I192: x
A193: =ROW() -> 193
A194: =ROW() -> 194 | B194: F. COMPLETION DATE | H194: =+'[1]Project Schedule'!H44 -> 2019-12-31 | I194: x
A195: =ROW() -> 195
A196: =ROW() -> 196 | B196: G. CERTIFICATE OF OCCUPANCY | H196: =+'[1]Project Schedule'!H46 -> 2019-09-30 | I196: x
A197: =ROW() -> 197
A198: =ROW() -> 198 | B198: H. PLACED IN SERVICE DATE (FIRST BUILDING) | H198: =+'[1]Project Schedule'!H48 -> 2019-09-30 | I198: x
A199: =ROW() -> 199
A200: =ROW() -> 200 | B200: I. PLACED IN SERVICE DATE (FINAL BUILDING) | H200: =+'[1]Project Schedule'!$H$51 -> 2019-12-31 | I200: x
A201: =ROW() -> 201
A202: =ROW() -> 202 | B202: J. 10% OF UNIT OCCUPANCY ACHIEVED | H202: =+'[1]Project Schedule'!$H$54 -> 2019-10-31 | I202: x
... 979 more rows

Sheet Import (Instructions) (hidden)
A1: Import Instructions (from AMEC 2017-2018) | C1: =+A15 -> 2018 AMEC | D1: =IF(LEFT(A16,5)="Error","Error","") ->  | E1: Programmer: do not insert any rows above this row
A3: NOTE: the file names and types (note; both are .xlsm) specified herein MUST BE EXACT (the filenames are case sensitive) or the import routine will not run successfully.
A5: Prepare to Upgrade
A6: 1. Open the AMEC Application that you wish to replicate. Leave this file open in Excel.
A7: 2. Note -- this import tool is designed for use only with the 2018 LHC AMEC application tool.
A8: 3. Open a new, blank Application Tool. If you see (just below the menu ribbon) a yellow background Security Warning "Some Active content has been disabled ...", then click "Enable Content". This will activate the macro that manages the import process.
A9: 4. In the Application Tool, use File / Save As, to rename the Application Tool "Master Copy.xlsm". USE THIS EXACT FILENAME (case sensitive, no quote marks). Leave this file open in Excel.
A10: 5. Remaining in Master Copy.xlsm, use Data / Edit Links / Change Source to link to the appropriate AMEC Application. If you get a pop-up window saying "A formula in this worksheet contains one or more invalid references ..." then your AMEC is Early 2017 and is not compatible with this Import Tool.
A12: Verify that the AMEC is Compatible with this Upgrade Tool
A13: ="Your AMEC appears to be this type: "&'Import (Reality Check)'!$C$97 -> Your AMEC appears to be this type: 2018 AMEC
A14: 6. In the drop-down below, select the type of AMEC from which you want to import data:
A15: 2018 AMEC
A16: =IF(A15="2018 AMEC","","Error -- only 2018 AMEC will work with this import tool") -> 
A18: Now go to the next step below
A22: Perform the Upgrade
A23: 7. Click on the button above and to the right labeled "Import from AMEC Now".
A24: 8. The file named "Master Copy.xls" now contains (most of) the user entry data from the AMEC.
A25: 9. Use File / Save As to save the Application Tool named "Master Copy.xlsm" with a property specific filename into a property specific folder. INDICATE THE NEW VERSION NUMBER IN THE FILENAME; for example "Manor Square v15 2019-01-08.xlsm" so that you don't inadvertently over-write an existing file.
A27: Notes for the Underwriter
A28: 10. The upgrade routine transfers the value of each user entry cell. If the AMEC used formulas, those formulas are converted to values by this import tool.
A29: 11. Use the Reality Check worksheet, and the items below, to identify key variances.
A30: ="12. "&IF(C30="","Debt service matches; move on.",D30&"") -> 12. The Debt Service amount that was imported does not match the AMEC. Probably the user entered a mortgage loan with must-pay debt service on one of the Other lines instead of on "Non-LHC Loan #1", "Non-LHC Loan #2" or "Risk-Sharing". You will need to modify the Sources of Funds so that all loans with must-pay debt service are entered in one of those three categories. | C30: =+'Import (Reality Check)'!E26 -> 77031.61705 | D30: The Debt Service amount that was imported does not match the AMEC. Probably the user entered a mortgage loan with must-pay debt service on one of the Other lines instead of on "Non-LHC Loan #1", "Non-LHC Loan #2" or "Risk-Sharing". You will need to modify the Sources of Funds so that all loans with must-pay debt service are entered in one of those three categories.
A31: ="13. "&IF('Import (Reality Check)'!C97="2018 AMEC","You have a 2018 AMEC. Verify that the amount of CDBG applied for ("&TEXT(C31,"$#,##0.00")&" )is correct in Section "&'Project Description'!$L$162&" of the Project Description Sheet (for 2018 AMECs, the import tool assumes that all miscellaneous sources are CDBG).","Not a 2018 AMEC; move on.") -> 13. You have a 2018 AMEC. Verify that the amount of CDBG applied for ($2,000,000.00 )is correct in Section 13 of the Project Description Sheet (for 2018 AMECs, the import tool assumes that all miscellaneous sources are CDBG). | C31: =+'Project Description'!H183 -> 2000000
A32: ="14. "&IF(C32="","Operating Expenses match; move on.",D32) -> 14. There is a variance for Operating Expenses. It's probably for the LHC Compliance Monitoring Fee (the new application tool calculates this fee based on the LHC fee schedule). | C32: =+'Import (Reality Check)'!E23 -> 267362 | D32: There is a variance for Operating Expenses. It's probably for the LHC Compliance Monitoring Fee (the new application tool calculates this fee based on the LHC fee schedule).
A33: ="15. "&IF(C33="","Operating Cash Flow matches; move on.",D33) -> 15. There is a variance for Operating Cash Flow, which might be caused by a variance in LHC Compliance Monitoring Fee. Needs research. | C33: =+'Import (Reality Check)'!D27 -> Variance | D33: There is a variance for Operating Cash Flow, which might be caused by a variance in LHC Compliance Monitoring Fee. Needs research.
A34: ="16. "&IF(C34="","Sources and Uses balance; move on.",D34) -> 16. Sources and Uses balance; move on. | C34: =+'Import (Reality Check)'!D15 ->  | D34: The post-import sources and uses don't balance.

Sheet Import (Controls 2018) (hidden)
A1: Import Controls (AMEC to App Tool) | E1: =ROW($A$6) -> 6 | F1: is 1st row; | I1: =ROW($A$284)-1 -> 283 | J1: is last w/data
A3: Copy from This Location in the 'Import from AMEC' Worksheet | I3: Copy to This Location in App Tool
A4: Copy From Worksheet | B4: Description | C4: Starting Row | E4: Starting Col | F4: # Rows | G4: # Cols | I4: Copy To Worksheet | J4: To Row | K4: To Col
A6: Import (Data 2018) | B6: Applicant | C6: 10 | D6: E | E6: =FIND(D6,"ABCDEFGHIJKLMNOPQRSTUVWXYZ") -> 5 | F6: 11 | G6: 1 | I6: Project Description | J6: =ROW('Project Description'!A36) -> 36 | K6: =+E6 -> 5
A7: =+A6 -> Import (Data 2018) | B7: Developer | C7: 24 | D7: E | E7: 5 | F7: 3 | G7: 1 | I7: =+I6 -> Project Description | J7: =ROW('Project Description'!A50) -> 50 | K7: 5
A8: =+A7 -> Import (Data 2018) | B8: Developer | C8: =+C7+F7 -> 27 | D8: H | E8: 8 | F8: 2 | G8: 1 | I8: Project Description | J8: =+J7+3 -> 53 | K8: 8
A9: =+A8 -> Import (Data 2018) | B9: Developer Comment | C9: 31 | D9: B | E9: 2 | F9: 1 | G9: =+G8 -> 1 | I9: Project Description | J9: =+J8+4 -> 57 | K9: 2
A10: =+A9 -> Import (Data 2018) | B10: Developer IOI | C10: 33 | D10: H | E10: 8 | F10: =+F9 -> 1 | G10: =+G9 -> 1 | I10: Project Description | J10: =+J9+2 -> 59 | K10: 8
A11: =+A9 -> Import (Data 2018) | B11: Developer Good Standing | C11: 35 | D11: H | E11: 8 | F11: =+F9 -> 1 | G11: =+G9 -> 1 | I11: Project Description | J11: 61 | K11: 8
A12: =+A10 -> Import (Data 2018) | B12: Developer Comment | C12: 37 | D12: B | E12: 2 | F12: =+F10 -> 1 | G12: =+G10 -> 1 | I12: Project Description | J12: 63 | K12: 2
A13: =+A12 -> Import (Data 2018) | B13: QNP | C13: 39 | D13: H | E13: 8 | F13: =+F12 -> 1 | G13: =+G12 -> 1 | I13: Project Description | J13: 65 | K13: 8
A14: Import (Data 2018) | B14: CHDO | C14: 41 | D14: H | E14: 8 | F14: =+F13 -> 1 | G14: =+G13 -> 1 | I14: Project Description | J14: =ROW('Project Description'!H68) -> 68 | K14: 8
A15: Import (Data 2018) | B15: Mgmt Agent | C15: 43 | D15: E | E15: 5 | F15: 3 | G15: =+G14 -> 1 | I15: Project Description | J15: =ROW('Project Description'!A71) -> 71 | K15: 5
A16: Import (Data 2018) | B16: Project | C16: 50 | D16: E | E16: 5 | F16: 5 | G16: 1 | I16: Project Description | J16: =+J15+8 -> 79 | K16: 5
A17: Import (Data 2018) | B17: Single Site | C17: 57 | D17: H | E17: 8 | F17: 1 | G17: 1 | I17: Project Description | J17: =+J16+7 -> 86 | K17: 8
A18: Import (Data 2018) | B18: Project Qs | C18: 60 | D18: H | E18: 8 | F18: 2 | G18: 1 | I18: Project Description | J18: =+J17+3 -> 89 | K18: 8
A19: Import (Data 2018) | B19: Project Qs | C19: 62 | D19: H | E19: 8 | F19: 4 | G19: 1 | I19: Project Description | J19: =ROW('Project Description'!$A$94) -> 94 | K19: 8
A20: Import (Data 2018) | B20: Project Qs | C20: 66 | D20: H | E20: =FIND(D20,"ABCDEFGHIJKLMNOPQRSTUVWXYZ") -> 8 | F20: 2 | G20: =+G18 -> 1 | I20: Project Description | J20: =ROW('Project Description'!$A$101) -> 101 | K20: =+E20 -> 8
A21: =+A18 -> Import (Data 2018) | B21: Project Qs | C21: 69 | D21: H | E21: 8 | F21: 2 | G21: =+G18 -> 1 | I21: =+I18 -> Project Description | J21: =ROW('Project Description'!$A$104) -> 104 | K21: 8
A22: Import (Data 2018) | B22: Project Qs | C22: 72 | D22: H | E22: 8 | F22: 3 | G22: 1 | I22: Project Description | J22: =+J21+3 -> 107 | K22: 8
A23: Import (Data 2018) | B23: Project Qs | C23: =+C22+4 -> 76 | D23: H | E23: 8 | F23: 2 | G23: 1 | I23: Project Description | J23: =+J22+4 -> 111 | K23: 8
A24: Import (Data 2018) | B24: Census Tract | C24: 81 | D24: H | E24: 8 | F24: 2 | G24: 1 | I24: Project Description | J24: =ROW('Project Description'!$A$114) -> 114 | K24: 8
A25: Import (Data 2018) | B25: Census Tract AMI | C25: =+C24+2 -> 83 | D25: H | E25: 8 | F25: 1 | G25: 1 | I25: Project Description | J25: =+J24+3 -> 117 | K25: 8
A26: Import (Data 2018) | B26: Scoring Qs | C26: =+C24+5 -> 86 | D26: H | E26: 8 | F26: 3 | G26: =+G24 -> 1 | I26: Project Description | J26: =ROW('Project Description'!$A$134) -> 134 | K26: 8
A27: Import (Data 2018) | B27: Scoring Qs | C27: =+C25+3 -> 86 | D27: H | E27: =FIND(D27,"ABCDEFGHIJKLMNOPQRSTUVWXYZ") -> 8 | F27: 3 | G27: =+G25 -> 1 | I27: Project Description | J27: =+J26+4 -> 138 | K27: =+E27 -> 8
A28: Import (Data 2018) | B28: Scoring Qs | C28: =+C26+6 -> 92 | D28: H | E28: =FIND(D28,"ABCDEFGHIJKLMNOPQRSTUVWXYZ") -> 8 | F28: 1 | G28: =+G26 -> 1 | I28: Project Description | J28: =+J27+5 -> 143 | K28: =+E28 -> 8
A29: =+A26 -> Import (Data 2018) | B29: PHA Wait List | C29: =+C26+8 -> 94 | D29: H | E29: 8 | F29: 1 | G29: =+G26 -> 1 | I29: =+I26 -> Project Description | J29: =ROW('Project Description'!A147) -> 147 | K29: 8
A30: Import (Data 2018) | B30: Preservation Property | C30: =+C29+2 -> 96 | D30: H | E30: 8 | F30: =+F29 -> 1 | G30: 1 | I30: Project Description | J30: =ROW('Project Description'!A150) -> 150 | K30: 8
A31: Import (Data 2018) | B31: Federal Funds | C31: =+C30+3 -> 99 | D31: H | E31: 8 | F31: 2 | G31: 1 | I31: Project Description | J31: =ROW('Project Description'!A157) -> 157 | K31: 8
A32: Import (Data 2018) | B32: Scoring Comment | C32: =+C31+4 -> 103 | D32: B | E32: 2 | F32: 1 | G32: 1 | I32: Project Description | J32: =+J31+2 -> 159 | K32: 2
A33: Import (Data 2018) | B33: Pool | C33: =+C32+4 -> 107 | D33: H | E33: 8 | F33: 1 | G33: 1 | I33: Project Description | J33: =ROW('Project Description'!A165) -> 165 | K33: 8
A34: Import (Data 2018) | B34: NHTF | C34: =+C33+5 -> 112 | D34: H | E34: 8 | F34: 1 | G34: 1 | I34: Project Description | J34: =ROW('Project Description'!A171) -> 171 | K34: 8
A35: Import (Data 2018) | B35: HOME | C35: =+C34+6 -> 118 | D35: H | E35: 8 | F35: 1 | G35: 1 | I35: Project Description | J35: =+J34+6 -> 177 | K35: 8
A36: Import (Data 2018) | B36: CDBG-DR | C36: =+C35+6 -> 124 | D36: H | E36: 8 | F36: 1 | G36: 1 | I36: Project Description | J36: =+J35+6 -> 183 | K36: 8
A37: Import (Data 2018) | B37: Credits Requested | C37: =+C36+8 -> 132 | D37: H | E37: 8 | F37: =+F36 -> 1 | G37: 1 | I37: Project Description | J37: =+J36+9 -> 192 | K37: 8
A38: Import (Data 2018) | B38: 4% Credit Rate | C38: =+C37+5 -> 137 | D38: H | E38: 8 | F38: =+F37 -> 1 | G38: 1 | I38: Project Description | J38: =ROW('Project Description'!$A$197) -> 197 | K38: 8
A39: Import (Data 2018) | B39: 4% Credit Comment | C39: =+C38+1 -> 138 | D39: B | E39: 2 | F39: =+F38 -> 1 | G39: 1 | I39: Project Description | J39: =+J38+1 -> 198 | K39: 2
A40: Import (Data 2018) | B40: 9% Q | C40: =+C39+2 -> 140 | D40: H | E40: 8 | F40: 1 | G40: 1 | I40: Project Description | J40: =ROW('Project Description'!$A$23) -> 23 | K40: 8
A41: Import (Data 2018) | B41: 4% Q | C41: =+C40+1 -> 141 | D41: H | E41: =FIND(D41,"ABCDEFGHIJKLMNOPQRSTUVWXYZ") -> 8 | F41: 1 | G41: 1 | I41: Project Description | J41: =ROW('Project Description'!$A$12) -> 12 | K41: =+E41 -> 8
A42: =+A40 -> Import (Data 2018) | B42: Boost % | C42: =+C40+4 -> 144 | D42: H | E42: 8 | F42: =+F40 -> 1 | G42: 1 | I42: =+I40 -> Project Description | J42: =ROW('Project Description'!$A$207) -> 207 | K42: 8
A43: Import (Data 2018) | B43: DDA/QCT Qs | C43: =+C42+2 -> 146 | D43: H | E43: 8 | F43: 2 | G43: 1 | I43: Project Description | J43: =ROW('Project Description'!$A$122) -> 122 | K43: 8
A44: Import (Data 2018) | B44: Set-Aside | C44: =+C43+6 -> 152 | D44: H | E44: 8 | F44: 1 | G44: 1 | I44: Project Description | J44: =ROW('Project Description'!A200) -> 200 | K44: 8
A45: Import (Data 2018) | B45: Project Schedule | C45: =+C44+5 -> 157 | D45: H | E45: 8 | F45: 5 | G45: 1 | I45: Project Description | J45: =ROW('Project Description'!$A$219) -> 219 | K45: 8
A46: Import (Data 2018) | B46: Project Schedule | C46: =+C45+8 -> 165 | D46: H | E46: 8 | F46: 3 | G46: 1 | I46: Project Description | J46: =+J45+8 -> 227 | K46: 8
A47: =+A46 -> Import (Data 2018) | B47: Project Schedule | C47: =+C46+4 -> 169 | D47: H | E47: 8 | F47: 3 | G47: 1 | I47: Project Description | J47: =+J46+4 -> 231 | K47: 8
A48: Import (Data 2018) | B48: Project Schedule | C48: =+C47+4 -> 173 | D48: H | E48: 8 | F48: 3 | G48: 1 | I48: Project Description | J48: =+J47+4 -> 235 | K48: 8
A49: Import (Data 2018) | B49: Project Schedule | C49: =+C48+4 -> 177 | D49: H | E49: 8 | F49: 3 | G49: 1 | I49: Project Description | J49: =+J48+4 -> 239 | K49: 8
A50: Import (Data 2018) | B50: Project Schedule | C50: =+C49+4 -> 181 | D50: H | E50: 8 | F50: 3 | G50: 1 | I50: Project Description | J50: =+J49+4 -> 243 | K50: 8
A51: Import (Data 2018) | B51: Project Schedule | C51: =+C50+4 -> 185 | D51: H | E51: 8 | F51: 1 | G51: 1 | I51: Project Description | J51: =+J50+4 -> 247 | K51: 8
A52: Import (Data 2018) | B52: Project Schedule | C52: =+C51+2 -> 187 | D52: H | E52: 8 | F52: 1 | G52: 1 | I52: Project Description | J52: =+J51+2 -> 249 | K52: 8
A53: Import (Data 2018) | B53: Project Schedule | C53: =+C52+2 -> 189 | D53: H | E53: 8 | F53: 4 | G53: 1 | I53: Project Description | J53: =+J52+2 -> 251 | K53: 8
A54: Import (Data 2018) | B54: Project Schedule | C54: =+C53+5 -> 194 | D54: H | E54: 8 | F54: 1 | G54: 1 | I54: Project Description | J54: =+J53+5 -> 256 | K54: 8
A55: Import (Data 2018) | B55: Project Schedule | C55: =+C54+2 -> 196 | D55: H | E55: 8 | F55: 1 | G55: 1 | I55: Project Description | J55: =+J54+2 -> 258 | K55: 8
A56: Import (Data 2018) | B56: Project Schedule | C56: =+C55+2 -> 198 | D56: H | E56: 8 | F56: 1 | G56: 1 | I56: Project Description | J56: =+J55+2 -> 260 | K56: 8
A57: Import (Data 2018) | B57: Project Schedule | C57: =+C56+2 -> 200 | D57: H | E57: 8 | F57: 1 | G57: 1 | I57: Project Description | J57: =+J56+2 -> 262 | K57: 8
A58: Import (Data 2018) | B58: Project Schedule | C58: =+C57+2 -> 202 | D58: H | E58: 8 | F58: 1 | G58: 1 | I58: Project Description | J58: =+J57+2 -> 264 | K58: 8
A59: Import (Data 2018) | B59: Project Schedule | C59: =+C58+2 -> 204 | D59: H | E59: 8 | F59: 1 | G59: 1 | I59: Project Description | J59: =+J58+2 -> 266 | K59: 8
A60: Import (Data 2018) | B60: PS Comment | C60: =+C59+3 -> 207 | D60: B | E60: 2 | F60: 1 | G60: 1 | I60: Project Description | J60: =+J59+3 -> 269 | K60: 2
A61: Import (Data 2018) | B61: Const. Financing Comment | C61: =+C60+5 -> 212 | D61: B | E61: 2 | F61: 1 | G61: 1 | I61: Project Description | J61: =ROW('Project Description'!A274) -> 274 | K61: 2
A62: Import (Data 2018) | B62: LHC Risk Share | C62: =+C61+6 -> 218 | D62: E | E62: 5 | F62: 1 | G62: 1 | I62: Project Description | J62: =ROW('Project Description'!A283) -> 283 | K62: 5
A63: =+A62 -> Import (Data 2018) | B63: =+B62 -> LHC Risk Share | C63: =+C62+3 -> 221 | D63: E | E63: 5 | F63: 1 | G63: 1 | I63: Project Description | J63: =+J62+C63-C62 -> 286 | K63: 5
A64: Import (Data 2018) | B64: =+B63 -> LHC Risk Share | C64: =+C63+1 -> 222 | D64: E | E64: 5 | F64: 1 | G64: 1 | I64: Project Description | J64: =+J63+C64-C63 -> 287 | K64: 5
A65: Import (Data 2018) | B65: =+B64 -> LHC Risk Share | C65: =+C64+1 -> 223 | D65: E | E65: 5 | F65: 3 | G65: 1 | I65: Project Description | J65: =+J64+C65-C64 -> 288 | K65: 5
A66: Import (Data 2018) | B66: =+B65 -> LHC Risk Share | C66: =+C65+3 -> 226 | D66: E | E66: 5 | F66: 3 | G66: 1 | I66: Project Description | J66: =+J65+C66-C65 -> 291 | K66: 5
A67: Import (Data 2018) | B67: =+B63 -> LHC Risk Share | C67: =+C63+9 -> 230 | D67: B | E67: 2 | F67: 1 | G67: 1 | I67: =+I63 -> Project Description | J67: =+J63+9 -> 295 | K67: 2
A68: Import (Data 2018) | B68: New 1st | C68: =ROW('Import (Data 2018)'!E233) -> 233 | D68: E | E68: 5 | F68: 1 | G68: 1 | I68: =+I67 -> Project Description | J68: =ROW('Project Description'!A298) -> 298 | K68: 5
A69: Import (Data 2018) | B69: New 1st | C69: =+C68+F68 -> 234 | D69: E | E69: 5 | F69: 3 | G69: 1 | I69: Project Description | J69: =+J68+C69-C68 -> 299 | K69: 5
A70: Import (Data 2018) | B70: New 1st | C70: 237 | D70: E | E70: 5 | F70: 5 | G70: 1 | I70: Project Description | J70: 302 | K70: 5
A71: Import (Data 2018) | B71: New 1st | C71: 242 | D71: E | E71: 5 | F71: 1 | G71: 1 | I71: Project Description | J71: 307 | K71: 5
A72: Import (Data 2018) | B72: New 1st | C72: 243 | D72: E | E72: 5 | F72: 1 | G72: 1 | I72: Project Description | J72: 308 | K72: 5
A73: Import (Data 2018) | B73: New 1st | C73: 244 | D73: E | E73: 5 | F73: 2 | G73: 1 | I73: Project Description | J73: 309 | K73: 5
A74: Import (Data 2018) | B74: New 1st | C74: 246 | D74: E | E74: 5 | F74: 1 | G74: 1 | I74: Project Description | J74: 311 | K74: 5
A75: =+A68 -> Import (Data 2018) | B75: =+B68 -> New 1st | C75: =+C74+2 -> 248 | D75: E | E75: =FIND(D75,"ABCDEFGHIJKLMNOPQRSTUVWXYZ") -> 5 | F75: 1 | G75: 1 | I75: =+I68 -> Project Description | J75: 313 | K75: =+E75 -> 5
A76: =+A75 -> Import (Data 2018) | B76: =+B75 -> New 1st | C76: =+C75+2 -> 250 | D76: E | E76: 5 | F76: 1 | G76: 1 | I76: =+I75 -> Project Description | J76: 315 | K76: 5
A77: =+A76 -> Import (Data 2018) | B77: =+B76 -> New 1st | C77: =+C76+F76 -> 251 | D77: E | E77: 5 | F77: 3 | G77: 1 | I77: =+I76 -> Project Description | J77: 316 | K77: 5
A78: =+A76 -> Import (Data 2018) | B78: =+B76 -> New 1st | C78: =+C76+5 -> 255 | D78: B | E78: 2 | F78: 1 | G78: 1 | I78: =+I76 -> Project Description | J78: =+J76+5 -> 320 | K78: 2
A79: =+A78 -> Import (Data 2018) | B79: New 2nd | C79: =+C78+3 -> 258 | D79: E | E79: 5 | F79: 1 | G79: 1 | I79: =+I78 -> Project Description | J79: =ROW('Project Description'!A323) -> 323 | K79: 5
A80: Import (Data 2018) | B80: New 2nd | C80: =+C79+F79 -> 259 | D80: E | E80: 5 | F80: 3 | G80: 1 | I80: Project Description | J80: =+J79+C80-C79 -> 324 | K80: 5
A81: Import (Data 2018) | B81: New 2nd | C81: 262 | D81: E | E81: 5 | F81: 5 | G81: 1 | I81: Project Description | J81: 327 | K81: 5
A82: Import (Data 2018) | B82: New 2nd | C82: 267 | D82: E | E82: 5 | F82: 1 | G82: 1 | I82: Project Description | J82: 332 | K82: 5
A83: Import (Data 2018) | B83: New 2nd | C83: 268 | D83: E | E83: 5 | F83: 1 | G83: 1 | I83: Project Description | J83: 333 | K83: 5
A84: Import (Data 2018) | B84: New 2nd | C84: 269 | D84: E | E84: 5 | F84: 2 | G84: 1 | I84: Project Description | J84: 334 | K84: 5
A85: Import (Data 2018) | B85: New 2nd | C85: 271 | D85: E | E85: 5 | F85: 1 | G85: 1 | I85: Project Description | J85: 336 | K85: 5
A86: =+A79 -> Import (Data 2018) | B86: New 2nd | C86: =+C85+2 -> 273 | D86: E | E86: =FIND(D86,"ABCDEFGHIJKLMNOPQRSTUVWXYZ") -> 5 | F86: 1 | G86: 1 | I86: =+I79 -> Project Description | J86: =+J79+15 -> 338 | K86: 5
A87: =+A80 -> Import (Data 2018) | B87: New 2nd | C87: =+C86+2 -> 275 | D87: E | E87: 5 | F87: 1 | G87: 1 | I87: =+I80 -> Project Description | J87: =+J85+C87-C85 -> 340 | K87: 5
A88: =+A86 -> Import (Data 2018) | B88: =+B86 -> New 2nd | C88: =+C87+2 -> 277 | D88: E | E88: 5 | F88: 1 | G88: 1 | I88: =+I86 -> Project Description | J88: =+J86+C88-C86 -> 342 | K88: 5
A89: =+A86 -> Import (Data 2018) | B89: =+B86 -> New 2nd | C89: =+C86+5 -> 278 | D89: E | E89: 5 | F89: 1 | G89: 1 | I89: =+I86 -> Project Description | J89: =+J87+C89-C87 -> 343 | K89: 5
A90: =+A88 -> Import (Data 2018) | B90: =+B88 -> New 2nd | C90: =+C89+2 -> 280 | D90: B | E90: 2 | F90: 1 | G90: 1 | I90: =+I88 -> Project Description | J90: =+J88+C90-C88 -> 345 | K90: 2
A91: =+A90 -> Import (Data 2018) | B91: LHC HOME Loan | C91: =+C90+3 -> 283 | D91: E | E91: 5 | F91: 1 | G91: 1 | I91: =+I90 -> Project Description | J91: =ROW('Project Description'!A348) -> 348 | K91: 5
A92: =+A91 -> Import (Data 2018) | B92: =+B91 -> LHC HOME Loan | C92: =+C91+F91 -> 284 | D92: E | E92: 5 | F92: 1 | G92: 1 | I92: =+I91 -> Project Description | J92: =+J91+C92-C91 -> 349 | K92: 5
A93: =+A91 -> Import (Data 2018) | B93: LHC HOME Loan | C93: =+C92+4 -> 288 | D93: E | E93: 5 | F93: 1 | G93: 1 | I93: =+I91 -> Project Description | J93: =+J92+C93-C92 -> 353 | K93: 5
A94: =+A92 -> Import (Data 2018) | B94: LHC HOME Loan | C94: =+C93+F93 -> 289 | D94: E | E94: 5 | F94: 1 | G94: 1 | I94: =+I92 -> Project Description | J94: =+J93+C94-C93 -> 354 | K94: 5
A95: =+A93 -> Import (Data 2018) | B95: LHC HOME Loan | C95: =+C94+F94 -> 290 | D95: E | E95: 5 | F95: 3 | G95: 1 | I95: =+I93 -> Project Description | J95: =+J94+C95-C94 -> 355 | K95: 5
A96: =+A94 -> Import (Data 2018) | B96: LHC HOME Loan | C96: =+C95+F95 -> 293 | D96: E | E96: 5 | F96: 3 | G96: 1 | I96: =+I94 -> Project Description | J96: =+J95+C96-C95 -> 358 | K96: 5
A97: =+A93 -> Import (Data 2018) | B97: LHC HOME Loan | C97: =+C93+9 -> 297 | D97: B | E97: 2 | F97: 1 | G97: 1 | I97: =+I93 -> Project Description | J97: =+J93+9 -> 362 | K97: 2
A98: =+A97 -> Import (Data 2018) | B98: LHC NHTF Loan | C98: =ROW('Import (Data 2018)'!A300) -> 300 | D98: E | E98: 5 | F98: 1 | G98: 1 | I98: =+I97 -> Project Description | J98: =+J91+17 -> 365 | K98: 5
A99: =+A98 -> Import (Data 2018) | B99: =+B98 -> LHC NHTF Loan | C99: =+C98+F98 -> 301 | D99: E | E99: 5 | F99: 1 | G99: 1 | I99: =+I98 -> Project Description | J99: =+J98+C99-C98 -> 366 | K99: 5
A100: =+A98 -> Import (Data 2018) | B100: LHC NHTF Loan | C100: =+C99+4 -> 305 | D100: E | E100: 5 | F100: 1 | G100: 1 | I100: =+I98 -> Project Description | J100: =+J99+C100-C99 -> 370 | K100: 5
A101: =+A99 -> Import (Data 2018) | B101: LHC NHTF Loan | C101: =+C100+F100 -> 306 | D101: E | E101: 5 | F101: 1 | G101: 1 | I101: =+I99 -> Project Description | J101: =+J100+C101-C100 -> 371 | K101: 5
A102: =+A100 -> Import (Data 2018) | B102: LHC NHTF Loan | C102: =+C101+F101 -> 307 | D102: E | E102: 5 | F102: 3 | G102: 1 | I102: =+I100 -> Project Description | J102: =+J101+C102-C101 -> 372 | K102: 5
A103: =+A101 -> Import (Data 2018) | B103: LHC NHTF Loan | C103: =+C102+F102 -> 310 | D103: E | E103: 5 | F103: 3 | G103: 1 | I103: =+I101 -> Project Description | J103: =+J102+C103-C102 -> 375 | K103: 5
A104: =+A100 -> Import (Data 2018) | B104: LHC NHTF Loan | C104: =+C100+9 -> 314 | D104: B | E104: 2 | F104: 1 | G104: 1 | I104: =+I100 -> Project Description | J104: =+J100+9 -> 379 | K104: 2
A105: =+A100 -> Import (Data 2018) | B105: CDBG-DR | C105: =ROW('Import (Data 2018)'!A322) -> 322 | D105: E | E105: 5 | F105: 1 | G105: 1 | I105: =+I100 -> Project Description | J105: =+J98+22 -> 387 | K105: 5
A106: =+A105 -> Import (Data 2018) | B106: =+B105 -> CDBG-DR | C106: =+C105+2 -> 324 | D106: E | E106: 5 | F106: 2 | G106: 1 | I106: =+I105 -> Project Description | J106: =+J105+2 -> 389 | K106: 5
A107: =+A106 -> Import (Data 2018) | B107: =+B106 -> CDBG-DR | C107: =+C106+7 -> 331 | D107: B | E107: 2 | F107: 1 | G107: 1 | I107: Project Description | J107: =+J106+7 -> 396 | K107: 2
A108: =+A107 -> Import (Data 2018) | B108: DDF | C108: =ROW('Import (Data 2018)'!A335) -> 335 | D108: E | E108: 5 | F108: 1 | G108: 1 | I108: Project Description | J108: =ROW('Project Description'!A400) -> 400 | K108: 5
A109: Import (Data 2018) | B109: =B108&" Comment" -> DDF Comment | C109: =+C108+2 -> 337 | D109: B | E109: 2 | F109: 1 | G109: 1 | I109: Project Description | J109: =+J108+2 -> 402 | K109: 2
A110: Import (Data 2018) | B110: Fed Historic Credit | C110: =+C108+6 -> 341 | D110: E | E110: 5 | F110: 1 | G110: 1 | I110: Project Description | J110: =+J108+6 -> 406 | K110: 5
A111: Import (Data 2018) | B111: =B110&" Comment" -> Fed Historic Credit Comment | C111: =+C110+2 -> 343 | D111: B | E111: 2 | F111: 1 | G111: 1 | I111: Project Description | J111: =+J109+7 -> 409 | K111: 2
A112: Import (Data 2018) | B112: State Historic Credit | C112: =+C110+6 -> 347 | D112: E | E112: 5 | F112: 1 | G112: 1 | I112: Project Description | J112: =+J110+7 -> 413 | K112: 5
A113: Import (Data 2018) | B113: =B112&" Comment" -> State Historic Credit Comment | C113: =+C112+2 -> 349 | D113: B | E113: 2 | F113: 1 | G113: 1 | I113: Project Description | J113: =+J111+7 -> 416 | K113: 2
A114: Import (Data 2018) | B114: LIHTC Equity | C114: =+C112+6 -> 353 | D114: E | E114: 5 | F114: 1 | G114: 1 | I114: Project Description | J114: =+J112+7 -> 420 | K114: 5
A115: Import (Data 2018) | B115: Donated Labor | C115: =ROW('Import (Data 2018)'!A357) -> 357 | D115: E | E115: 5 | F115: 1 | G115: 1 | I115: Project Description | J115: =+J114+4 -> 424 | K115: 5
A116: Import (Data 2018) | B116: =+B115 -> Donated Labor | C116: =+C115+F115 -> 358 | D116: E | E116: 5 | F116: 1 | G116: 1 | I116: Project Description | J116: =+J115+C116-C115 -> 425 | K116: 5
A117: Import (Data 2018) | B117: =+B116 -> Donated Labor | C117: =+C116+F116 -> 359 | D117: E | E117: 5 | F117: 1 | G117: 1 | I117: Project Description | J117: =+J116+C117-C116 -> 426 | K117: 5
A118: =+A115 -> Import (Data 2018) | B118: =B115&" Comment" -> Donated Labor Comment | C118: =+C115+4 -> 361 | D118: B | E118: 2 | F118: 1 | G118: 1 | I118: =+I115 -> Project Description | J118: =+J115+4 -> 428 | K118: 2
A119: =+A118 -> Import (Data 2018) | B119: Donated Matls | C119: =+C115+7 -> 364 | D119: E | E119: 5 | F119: 1 | G119: 1 | I119: =+I118 -> Project Description | J119: =+J115+7 -> 431 | K119: 5
A120: =+A119 -> Import (Data 2018) | B120: =+B119 -> Donated Matls | C120: =+C119+F119 -> 365 | D120: E | E120: 5 | F120: 1 | G120: 1 | I120: =+I119 -> Project Description | J120: =+J119+C120-C119 -> 432 | K120: 5
A121: =+A120 -> Import (Data 2018) | B121: =+B120 -> Donated Matls | C121: =+C120+F120 -> 366 | D121: E | E121: 5 | F121: 1 | G121: 1 | I121: =+I120 -> Project Description | J121: =+J120+C121-C120 -> 433 | K121: 5
A122: =+A119 -> Import (Data 2018) | B122: =B119&" Comment" -> Donated Matls Comment | C122: =+C119+4 -> 368 | D122: B | E122: 2 | F122: 1 | G122: 1 | I122: =+I119 -> Project Description | J122: =+J118+7 -> 435 | K122: 2
A123: =+A122 -> Import (Data 2018) | B123: Donated Land | C123: =+C119+7 -> 371 | D123: E | E123: 5 | F123: 1 | G123: 1 | I123: =+I122 -> Project Description | J123: =+J119+7 -> 438 | K123: 5
A124: =+A123 -> Import (Data 2018) | B124: =+B123 -> Donated Land | C124: =+C123+F123 -> 372 | D124: E | E124: 5 | F124: 1 | G124: 1 | I124: =+I123 -> Project Description | J124: =+J123+C124-C123 -> 439 | K124: 5
A125: =+A124 -> Import (Data 2018) | B125: =+B124 -> Donated Land | C125: =+C124+F124 -> 373 | D125: E | E125: 5 | F125: 1 | G125: 1 | I125: =+I124 -> Project Description | J125: =+J124+C125-C124 -> 440 | K125: 5
A126: =+A123 -> Import (Data 2018) | B126: =B123&" Comment" -> Donated Land Comment | C126: =+C123+4 -> 375 | D126: B | E126: 2 | F126: 1 | G126: 1 | I126: =+I123 -> Project Description | J126: =+J122+7 -> 442 | K126: 2
A127: =+A126 -> Import (Data 2018) | B127: Other Perm #1 | C127: =+C123+7 -> 378 | D127: E | E127: 5 | F127: 1 | G127: 1 | I127: =+I126 -> Project Description | J127: =+J123+7 -> 445 | K127: 5
A128: Import (Data 2018) | B128: Other Perm #1 | C128: =+C127+F127 -> 379 | D128: E | E128: 5 | F128: 1 | G128: 1 | I128: Project Description | J128: =+J127+C128-C127 -> 446 | K128: 5
A129: Import (Data 2018) | B129: Other Perm #1 | C129: 380 | D129: E | E129: 5 | F129: 1 | G129: 1 | I129: Project Description | J129: 447 | K129: 5
A130: Import (Data 2018) | B130: Other Perm #1 | C130: 381 | D130: E | E130: 5 | F130: 1 | G130: 1 | I130: Project Description | J130: 448 | K130: 5
A131: Import (Data 2018) | B131: Other Perm #1 | C131: 382 | D131: E | E131: 5 | F131: 1 | G131: 1 | I131: Project Description | J131: 449 | K131: 5
A132: Import (Data 2018) | B132: Other Perm #1 | C132: 383 | D132: E | E132: 5 | F132: 1 | G132: 1 | I132: Project Description | J132: 450 | K132: 5
A133: Import (Data 2018) | B133: Other Perm #1 | C133: 384 | D133: E | E133: 5 | F133: 1 | G133: 1 | I133: Project Description | J133: 451 | K133: 5
A134: Import (Data 2018) | B134: Other Perm #1 | C134: 385 | D134: E | E134: 5 | F134: 1 | G134: 1 | I134: Project Description | J134: 452 | K134: 5
A135: Import (Data 2018) | B135: Other Perm #1 | C135: 386 | D135: E | E135: 5 | F135: 3 | G135: 1 | I135: Project Description | J135: 453 | K135: 5
A136: =+A127 -> Import (Data 2018) | B136: =B127&" Comment" -> Other Perm #1 Comment | C136: =+C127+15 -> 393 | D136: B | E136: 2 | F136: 1 | G136: 1 | I136: =+I127 -> Project Description | J136: =+J127+15 -> 460 | K136: 2
A137: =+A136 -> Import (Data 2018) | B137: Other Perm #2 | C137: =+C127+18 -> 396 | D137: E | E137: 5 | F137: 1 | G137: 1 | I137: =+I136 -> Project Description | J137: =+J127+18 -> 463 | K137: 5
A138: Import (Data 2018) | B138: Other Perm #2 | C138: =+C137+F137 -> 397 | D138: E | E138: 5 | F138: 1 | G138: 1 | I138: Project Description | J138: =+J137+C138-C137 -> 464 | K138: 5
A139: Import (Data 2018) | B139: Other Perm #2 | C139: 398 | D139: E | E139: 5 | F139: 1 | G139: 1 | I139: Project Description | J139: 465 | K139: =+E139 -> 5
A140: Import (Data 2018) | B140: Other Perm #2 | C140: 399 | D140: E | E140: 5 | F140: 1 | G140: 1 | I140: Project Description | J140: 466 | K140: 5
A141: Import (Data 2018) | B141: Other Perm #2 | C141: 400 | D141: E | E141: 5 | F141: 1 | G141: 1 | I141: Project Description | J141: 467 | K141: 5
A142: Import (Data 2018) | B142: Other Perm #2 | C142: 401 | D142: E | E142: 5 | F142: 1 | G142: 1 | I142: Project Description | J142: 468 | K142: 5
A143: Import (Data 2018) | B143: Other Perm #2 | C143: 402 | D143: E | E143: 5 | F143: 1 | G143: 1 | I143: Project Description | J143: 469 | K143: 5
A144: Import (Data 2018) | B144: Other Perm #2 | C144: 403 | D144: E | E144: 5 | F144: 1 | G144: 1 | I144: Project Description | J144: 470 | K144: 5
A145: Import (Data 2018) | B145: Other Perm #2 | C145: 404 | D145: E | E145: 5 | F145: 3 | G145: 1 | I145: Project Description | J145: 471 | K145: 5
A146: =+A137 -> Import (Data 2018) | B146: =B137&" Comment" -> Other Perm #2 Comment | C146: =+C137+15 -> 411 | D146: B | E146: 2 | F146: 1 | G146: 1 | I146: =+I137 -> Project Description | J146: =+J136+18 -> 478 | K146: 2
A147: =+A146 -> Import (Data 2018) | B147: Other Perm #3 | C147: =+C137+18 -> 414 | D147: E | E147: 5 | F147: 1 | G147: 1 | I147: =+I146 -> Project Description | J147: =+J137+18 -> 481 | K147: 5
A148: Import (Data 2018) | B148: Other Perm #3 | C148: =+C147+F147 -> 415 | D148: E | E148: 5 | F148: 1 | G148: 1 | I148: Project Description | J148: =+J147+C148-C147 -> 482 | K148: 5
A149: Import (Data 2018) | B149: Other Perm #3 | C149: 416 | D149: E | E149: 5 | F149: 1 | G149: 1 | I149: Project Description | J149: 483 | K149: 5
A150: Import (Data 2018) | B150: Other Perm #3 | C150: 417 | D150: E | E150: =FIND(D150,"ABCDEFGHIJKLMNOPQRSTUVWXYZ") -> 5 | F150: 1 | G150: 1 | I150: Project Description | J150: 484 | K150: 5
A151: Import (Data 2018) | B151: Other Perm #3 | C151: 418 | D151: E | E151: 5 | F151: 1 | G151: 1 | I151: Project Description | J151: 485 | K151: 5
A152: Import (Data 2018) | B152: Other Perm #3 | C152: 419 | D152: E | E152: 5 | F152: 1 | G152: 1 | I152: Project Description | J152: 486 | K152: 5
A153: Import (Data 2018) | B153: Other Perm #3 | C153: 420 | D153: E | E153: 5 | F153: 1 | G153: 1 | I153: Project Description | J153: 487 | K153: 5
A154: Import (Data 2018) | B154: Other Perm #3 | C154: 421 | D154: E | E154: 5 | F154: 1 | G154: 1 | I154: Project Description | J154: 488 | K154: 5
A155: Import (Data 2018) | B155: Other Perm #3 | C155: 422 | D155: E | E155: 5 | F155: 3 | G155: 1 | I155: Project Description | J155: 489 | K155: 5
A156: =+A147 -> Import (Data 2018) | B156: =B147&" Comment" -> Other Perm #3 Comment | C156: =+C147+15 -> 429 | D156: B | E156: 2 | F156: 1 | G156: 1 | I156: =+I147 -> Project Description | J156: =+J146+18 -> 496 | K156: 2
A157: =+A156 -> Import (Data 2018) | B157: Sources Comment | C157: =ROW('Import (Data 2018)'!A456) -> 456 | D157: B | E157: 2 | F157: 1 | G157: 1 | I157: =+I156 -> Project Description | J157: =ROW('Project Description'!A523) -> 523 | K157: 2
A158: Import (Data 2018) | B158: Self-Owned Equipment | C158: =ROW('Import (Data 2018)'!A460) -> 460 | D158: H | E158: 8 | F158: 1 | G158: 1 | I158: Project Description | J158: =ROW('Project Description'!A527) -> 527 | K158: 8
A159: Import (Data 2018) | B159: Self-Owned Equipment | C159: =+C158+5 -> 465 | D159: H | E159: 8 | F159: 1 | G159: 1 | I159: Project Description | J159: =+J158+5 -> 532 | K159: 8
A160: Import (Data 2018) | B160: Self-Owned Equipment | C160: =+C159+2 -> 467 | D160: H | E160: 8 | F160: 1 | G160: 1 | I160: Project Description | J160: =+J159+2 -> 534 | K160: 8
A161: Import (Data 2018) | B161: Self-Owned Equipment | C161: =+C160+2 -> 469 | D161: B | E161: 2 | F161: 1 | G161: 1 | I161: Project Description | J161: =+J160+2 -> 536 | K161: 2
A162: Import (Data 2018) | B162: 3 Largest Subs | C162: =ROW('Import (Data 2018)'!A473) -> 473 | D162: B | E162: 2 | F162: 3 | G162: 1 | I162: Project Description | J162: =+J161+4 -> 540 | K162: 2
A163: Import (Data 2018) | B163: 3 Largest Subs | C163: =+C162 -> 473 | D163: H | E163: 8 | F163: 3 | G163: 1 | I163: Project Description | J163: =+J162 -> 540 | K163: 8
A164: Import (Data 2018) | B164: IOI Project Costs | C164: =ROW('Import (Data 2018)'!A477) -> 477 | D164: H | E164: 8 | F164: 1 | G164: 1 | I164: Project Description | J164: =ROW('Project Description'!$A$547) -> 547 | K164: 8
A165: Import (Data 2018) | B165: IOI Project Costs | C165: =+C164+3 -> 480 | D165: B | E165: 2 | F165: 6 | G165: 1 | I165: Project Description | J165: =+J164+3 -> 550 | K165: 2
A166: Import (Data 2018) | B166: IOI Project Costs | C166: =+C165 -> 480 | D166: H | E166: 8 | F166: 6 | G166: 1 | I166: Project Description | J166: =+J165 -> 550 | K166: 8
A167: Import (Data 2018) | B167: IOI Project Costs | C167: =+C166+9 -> 489 | D167: B | E167: 2 | F167: 1 | G167: 1 | I167: Project Description | J167: =+J166+9 -> 559 | K167: 2
A168: Import (Data 2018) | B168: Extraordinary Site Costs | C168: =+C167+4 -> 493 | D168: H | E168: 8 | F168: 1 | G168: 1 | I168: Project Description | J168: =ROW('Project Description'!A562) -> 562 | K168: 8
A169: =+A168 -> Import (Data 2018) | B169: Community Facilities | C169: =ROW('Import (Data 2018)'!A496) -> 496 | D169: H | E169: 8 | F169: 1 | G169: 1 | I169: =+I168 -> Project Description | J169: =ROW('Project Description'!A566) -> 566 | K169: 8
A170: Import (Data 2018) | B170: Community Facilities | C170: =+C169+3 -> 499 | D170: B | E170: 2 | F170: 1 | G170: 1 | I170: Project Description | J170: =ROW('Project Description'!A571) -> 571 | K170: 2
A171: Import (Data 2018) | B171: Community Svc Fac | C171: =ROW('Import (Data 2018)'!A505) -> 505 | D171: H | E171: 8 | F171: 1 | G171: 1 | I171: Project Description | J171: =ROW('Project Description'!A573) -> 573 | K171: 8
A172: Import (Data 2018) | B172: Community Svc Fac | C172: =+C171+2 -> 507 | D172: H | E172: 8 | F172: 1 | G172: 1 | I172: Project Description | J172: =ROW('Project Description'!A575) -> 575 | K172: 8
A173: Import (Data 2018) | B173: Community Svc Fac | C173: =+C172+2 -> 509 | D173: B | E173: 2 | F173: 1 | G173: 1 | I173: Project Description | J173: =ROW('Project Description'!A579) -> 579 | K173: 2
A174: Import (Data 2018) | B174: Bldg Configuration | C174: =ROW('Import (Data 2018)'!$A$517) -> 517 | D174: H | E174: 8 | F174: 2 | G174: 1 | I174: Project Description | J174: =ROW('Project Description'!A590) -> 590 | K174: 8 | M174: Note -- 100% AMI is not contained in 2018 AMECs
A175: Import (Data 2018) | B175: Amenities | C175: =ROW('Import (Data 2018)'!A595) -> 595 | D175: H | E175: 8 | F175: 7 | G175: 1 | I175: =+I174 -> Project Description | J175: =ROW('Project Description'!A718) -> 718 | K175: 8
A176: Import (Data 2018) | B176: Heating System | C176: =+C175+9 -> 604 | D176: H | E176: 8 | F176: 2 | G176: 1 | I176: Project Description | J176: =ROW('Project Description'!A727) -> 727 | K176: 8
A177: Import (Data 2018) | B177: Utilities | C177: =+C176+6 -> 610 | D177: D | E177: 4 | F177: 1 | G177: 1 | I177: Project Description | J177: =ROW('Project Description'!A735) -> 735 | K177: 4
A178: Import (Data 2018) | B178: Utilities | C178: =+C177 -> 610 | D178: H | E178: 8 | F178: 8 | G178: 1 | I178: Project Description | J178: =+J177 -> 735 | K178: 8
A179: Import (Data 2018) | B179: Utilities | C179: =+C178+2 -> 612 | D179: D | E179: 4 | F179: 1 | G179: 1 | I179: Project Description | J179: =+J178+2 -> 737 | K179: 4
A180: Import (Data 2018) | B180: Utility Allowances | C180: =+C179+9 -> 621 | D180: H | E180: 8 | F180: 5 | G180: 1 | I180: Project Description | J180: =ROW('Project Description'!A748) -> 748 | K180: 8
A181: Import (Data 2018) | B181: Sqft (commercial) | C181: =ROW('Import (Data 2018)'!$A$667) -> 667 | D181: H | E181: 8 | F181: 1 | G181: 1 | I181: Project Description | J181: =ROW('Project Description'!$A$611) -> 611 | K181: 8
A182: Import (Data 2018) | B182: Sqft (common areas) | C182: =+C181+1 -> 668 | D182: H | E182: 8 | F182: 1 | G182: 1 | I182: Project Description | J182: =ROW('Project Description'!$A$630) -> 630 | K182: 8
A183: Import (Data 2018) | B183: Sqft (Comm. Svc. Facility) | C183: =+C182+1 -> 669 | D183: H | E183: 8 | F183: 1 | G183: 1 | I183: Project Description | J183: =+J182+1 -> 631 | K183: 8
A184: Import (Data 2018) | B184: Special Needs Hholds | C184: =ROW('Import (Data 2018)'!A677) -> 677 | D184: H | E184: 8 | F184: 1 | G184: 1 | I184: =+I181 -> Project Description | J184: =ROW('Project Description'!A791) -> 791 | K184: 8
A185: Import (Data 2018) | B185: Special Needs Hholds | C185: =+C184+5 -> 682 | D185: F | E185: 6 | F185: 4 | G185: 1 | I185: Project Description | J185: =+J184+5 -> 796 | K185: 6
A186: Import (Data 2018) | B186: Special Needs Hholds | C186: =+C185 -> 682 | D186: H | E186: 8 | F186: 4 | G186: 1 | I186: Project Description | J186: =+J185 -> 796 | K186: 8
A187: Import (Data 2018) | B187: Special Needs Hholds | C187: =+C186+7 -> 689 | D187: H | E187: 8 | F187: 1 | G187: 1 | I187: Project Description | J187: =+J186+7 -> 803 | K187: 8
A188: Import (Data 2018) | B188: Priority Dev Areas etc. | C188: =+C187+4 -> 693 | D188: H | E188: 8 | F188: 1 | G188: 1 | I188: Project Description | J188: =ROW('Project Description'!A807) -> 807 | K188: 8
A189: Import (Data 2018) | B189: Priority Dev Areas etc. | C189: =+C188+4 -> 697 | D189: H | E189: 8 | F189: 1 | G189: 1 | I189: Project Description | J189: =+J188+4 -> 811 | K189: 8
A190: Import (Data 2018) | B190: Priority Dev Areas etc. | C190: =+C189+2 -> 699 | D190: H | E190: 8 | F190: 1 | G190: 1 | I190: Project Description | J190: =+J189+2 -> 813 | K190: 8
A191: Import (Data 2018) | B191: Priority Dev Areas etc. | C191: =+C190+2 -> 701 | D191: H | E191: 8 | F191: 1 | G191: 1 | I191: Project Description | J191: =+J190+2 -> 815 | K191: 8
A192: Import (Data 2018) | B192: Priority Dev Areas etc. | C192: =+C191+4 -> 705 | D192: H | E192: 8 | F192: 1 | G192: 1 | I192: Project Description | J192: =+J191+3 -> 818 | K192: 8
A193: Import (Data 2018) | B193: Positive Location Features | C193: =+C192+5 -> 710 | D193: H | E193: 8 | F193: 1 | G193: 1 | I193: Project Description | J193: =ROW('Project Description'!A823) -> 823 | K193: 8
A194: Import (Data 2018) | B194: Positive Location Features | C194: =+C193+1 -> 711 | D194: H | E194: =FIND(D194,"ABCDEFGHIJKLMNOPQRSTUVWXYZ") -> 8 | F194: 4 | G194: 1 | I194: Project Description | J194: =+J193+2 -> 825 | K194: =+E194 -> 8
A195: Import (Data 2018) | B195: Positive Location Features | C195: =+C194+5 -> 716 | D195: H | E195: =FIND(D195,"ABCDEFGHIJKLMNOPQRSTUVWXYZ") -> 8 | F195: 5 | G195: 1 | I195: Project Description | J195: =+J194+5 -> 830 | K195: =+E195 -> 8
A196: Import (Data 2018) | B196: Positive Location Features | C196: =+C195+7 -> 723 | D196: H | E196: =FIND(D196,"ABCDEFGHIJKLMNOPQRSTUVWXYZ") -> 8 | F196: 1 | G196: 1 | I196: Project Description | J196: =+J195+7 -> 837 | K196: =+E196 -> 8
A197: Import (Data 2018) | B197: Positive Location Features | C197: =+C196+1 -> 724 | D197: H | E197: =FIND(D197,"ABCDEFGHIJKLMNOPQRSTUVWXYZ") -> 8 | F197: 1 | G197: 1 | I197: Project Description | J197: =+J196-2 -> 835 | K197: =+E197 -> 8
A198: =+A193 -> Import (Data 2018) | B198: Small town / city? | C198: =+C193+18 -> 728 | D198: H | E198: =FIND(D198,"ABCDEFGHIJKLMNOPQRSTUVWXYZ") -> 8 | F198: 1 | G198: 1 | I198: =+I193 -> Project Description | J198: =ROW('Project Description'!$A$132) -> 132 | K198: =+E198 -> 8
A199: =+A198 -> Import (Data 2018) | B199: Negative Locn Features | C199: =+C198+3 -> 731 | D199: H | E199: 8 | F199: 1 | G199: 1 | I199: =+I198 -> Project Description | J199: =ROW('Project Description'!$H$844) -> 844 | K199: 8
A200: Import (Data 2018) | B200: Negative Locn Features | C200: =+C199+1 -> 732 | D200: H | E200: 8 | F200: 1 | G200: 1 | I200: Project Description | J200: =ROW('Project Description'!$H$852) -> 852 | K200: 8
A201: Import (Data 2018) | B201: Negative Locn Features | C201: 733 | D201: H | E201: 8 | F201: 1 | G201: 1 | I201: Project Description | J201: =ROW('Project Description'!$H$850) -> 850 | K201: 8
A202: Import (Data 2018) | B202: Negative Locn Features | C202: 734 | D202: H | E202: 8 | F202: 1 | G202: 1 | I202: Project Description | J202: =ROW('Project Description'!$H$846) -> 846 | K202: 8
... 82 more rows

Sheet Revision Log (hidden)
A3: =+Instructions!$A$3 -> 2020 Piggyback Mixed Income Resilience (PRIME) Rental Housing Application
A5: ="Revision Log -- This is Version "&D5 -> Revision Log -- This is Version 16 | D5: =MAX(A8:A111) -> 16
A7: Version
A9: 0 | B9: Converted from v32. Changed title to include 'BETA'. In Section 26, added guidance about ADRR trending. In Section 16.07, if a non-zero Deferred Developer Fee is entered, a Checklist information request is triggered, to demonstrate reasonable repayability within 15 years. Removed the Development Costs entry (Section 36.02) for DDF not repaid in 15 years. Added a new 18.03 Construction Manager's Fee, with explanation. Revised 18.04 to clarify that GR/BO/BP are to be listed as related party costs if the GC is IOI. Added a new Section 27 for Reserve funding, with additional questions about non-LHC requirements. In Section 40, added an explanation that each profit / fee amount must fall below the applicable limit, for purposes of the application. Added a new Appendix 52.31 inquiring about scope of rehab.
A10: =+A9+1 -> 1 | B10: Strong password protection.
A11: 2 | B11: Instructions 1.08, 1.09, 1.10, 3.03 -- suggestions from F&J Staff unit instructions -- suggestion from F&J 2019 QAP Pool structure. First round of changes for 2019 Draft QAP.
A12: 3 | B12: LINKED To v6 of the UW Model Remaining changes for 2019 Draft QAP (March 25 version). Parish demographic data for 2019 Draft QAP.
A13: 4 | B13: LINKED To v6 of the UW Model Parish database updates: 2019 AMIs, 2019 FMRs, 2019 HOME rents. Changes in June 5 version of QAP (versus March 25 version), excluding Selection Criteria changes. Add capability for boost in 4% projects. Add capability for boost to Acquisition Basis (pending clarification from LHC). Removed Entitlement Areas item (no NHTF funds in the 2019 QAP). Where appropriate, bypass questions that are 9% only or that are specific to Other LHC Resources.
A14: 5 | B14: LINKED To v6 of the UW Model Selection Criteria changes in June 5 version of 2019 QAP. Added information message warning applicants who select non-zero boost for Acquisition Basis.
A15: 6 | B15: LINKED To v6 of the UW Model Eliminated the 2017 Import capability. Updated the 2018 import settings. Updated the QAP Reference worksheet.
A16: =+A15+1 -> 7 | B16: LINKED To v6 of the UW Model Programming assumptions in areas where QAP is unclear. Robin's testing comments. Anker's comments on eligible basis and Applicable Fraction.
A17: 8 | B17: LINKED To v6 of the UW Model Added developer self-score columns to Selection Criteria worksheet, with logic to flag self-scores that differ from the calculated scores, and with logic to identify self-scores that exceed QAP limits.
A18: 9 | B18: LINKED To v6 of the UW Model Re-converted to BLANK data status.
A19: 10 | B19: Revisions to link Reserve Adequacy to input cells, rather than hidden rows 34:35
A20: 11 | B20: LINKED To v7 of the UW Model Removed the former 34 point limit in Selection Criteria Section I. Removed the former requirement for at least one point for Security. Removed the associated Serious Problems flag. Added Section 20.08 for excess costs excludable from the cost limit computation if LHC staff agree. Added Appendix 52.28 to the Checklist. Section 40: Subtract excess costs for cost limit computation purposes. Section 41.05 Subtract excess costs for developer fee base computation purposes.
A21: 12 | B21: LINKED To v8 of the UW Model Debugged the 2018 import capability.
A22: 13 | B22: LINKED To v9 of the UW Model. Anker's comments 2019-07-07 thru 09.
A23: 14 | B23: LINKED To v10 of the UW Model. Debugged the 2018 import routine.
A24: 15 | B24: Revised formulas to correct programming errors (Anker mid July)
B25: Scoring Criteria D57 changed from "=IF(M57>=46000,L57,0)" to "=IF(M57<=46000,L57,0)"
B26: Scoring Criteria M55 changed from "=VLOOKUP($O$51,Parishes!$A$9:$AD$73,28,FALSE)" to "=VLOOKUP($O$51,Parishes!$A$9:$AD$73,29,FALSE)"
B27: Scoring Criteria M56 changed from "==VLOOKUP($O$51,Parishes!$A$9:$AD$73,29,FALSE)" to "=VLOOKUP($O$51,Parishes!$A$9:$AD$73,28,FALSE)"
B28: Development Costs C316 changed from "=IF(C315<36,J316,IF(C315<71,K316,L316))" to "=IF(OR('Project Description'!H65="Yes",'Project Description'!H68="Yes"),18%,15%)" This change eliminates the developer fee based on # of units, and replaces it with a 15% developer fee in all situations except one in which there is a NP or CHDO partner, which allows for an 18% developer fee
B29: Project Description ROW 125, added question re: whether project was located in an area which is part of a concerted community revitalization plan (necessary as a component of qualifying for points under I.B.
B30: Scoring Criteria D14 changed from "=IF('Project Description'!H134="Yes",L14,0)" to " =IF(AND('Project Description'!$H$135="Yes",'Project Description'!$H$123="Yes",'Project Description'!$H$125="Yes"),L16,0)". Added similar logic to D15 and D16.
B31: Project Description L134 changed from "=+L121+0.01" to "=+L129+0.01"
B32: Reviewer Follow Up E16 changed from "=IF('Project Description'!B528="","","Yes")" to =IF('Project Description'!H528="Yes","Yes","")
B33: Reviewer Follow Up E17 changed from "=IF('Project Description'!B548="","","Yes")" to =IF('Project Description'!H548="Yes","Yes","")
B34: Reviewer Follow Up E26 changed from =IF(OR('Project Description'!B905="",'Project Description'!B905=0),"","Yes") to =IF('Project Description'!H904="Yes","Yes","")
B35: Revised formulas to correct programming errors (Charlie July 29)
B36: Controls E157:E158 changed from 2.5 / 5 miles to 5 miles / 10 miles (QAP FAQ #9)
B37: Appendix 36 YES / NO drop-downs corrected
B38: Summary row 15 corrected to pull the self-score not the calculated score.
B39: Development Team D38 (sponsor email) unlocked.
A41: 16 | B41: Revised for 2020 PRIME -- linked to UW Model v11
B42: Added an instruction about the 'links to external sources' message that users will receive when opening the Application.
B43: Eliminated former blank PD row 126; PD rows now match v14
B44: Checklist Appendix 43 -- removed incorrect "Yes"
B45: Checklist Appendix 44 -- corrected the Yes/No formula
B46: PD M117 FFIEC non-metro median income -- updated to 2019 data
B47: Modifications to test adequacy of Surplus Cash to cover deferred developer fee (Proforma, Revenues & Expenses, and Project Description worksheets are affected)
B48: PD 165 (Funding Pool) is pre-loaded as 'New Construction General'
B49: $60M CDBG limit added; $10M CDBG per project limit added
B50: FY 2020 FMRs added to Parishes database
B53: To Do: Reveal all worksheets at start of Import routine, Hide Standard at the end.
B54: To Do: password-protect the VBA code (Anthony Allen email March 21).
B58: For Future QAPs: If NHTF funds offered, ask a question about Entitlement Areas.
B59: For Future QAPs: What to do about Op-Ex adequacy vs (a) prior audits for acquisition deals and (b) market study expenses
B60: For future QAPs: If offering NHTF / HOME / CDBG, add questions about lien position.

Sheet Printing Options
A3: =+Instructions!$A$3 -> 2020 Piggyback Mixed Income Resilience (PRIME) Rental Housing Application
A4: =TRIM('Project Description'!$E$79)&" ("&TRIM('Project Description'!$E$81)&" LA), "&'Project Description'!$E$50 -> x (x LA), x
B5: =COUNTA(B14:B40) -> 27 | C5: =COUNTA(C14:C40) -> 14 | D5: =COUNTA(D14:D40) -> 10 | E5: =COUNTA(E14:E40) -> 3
A6: Printing Options
B8: Using this worksheet, you can create a single PDF file containing the selected worksheets. The selected worksheets will appear in the order indicated below. The PDF file will have the filename "Exported Sheets.pdf" and will be located in the same folder as this Application tool.
B11: Select Printing Option: | C11: Option 3
B13: Worksheets Eligible for Automated Printing Selection | C13: Option 1: Key Documents | D13: Option 2: Key User Entry Sheets | E13: Option 3: Custom Print **
B14: Summary | C14: Summary | D14: Unit Mix and Rents | E14: Development Costs
B15: Selection Criteria | C15: Selection Criteria | D15: Project Description | E15: Proforma
B16: Checklist | C16: Checklist | D16: Development Costs | E16: Summary
B17: Serious Problems | C17: Serious Problems | D17: Basis Calculation
B18: Project Description | C18: Syndication | D18: Revenues and Expenses
B19: Unit Mix and Rents | C19: Taxpayer Certification | D19: Proforma
B20: Development Costs | C20: App 1 Owner Info | D20: Development Team
B21: Basis Calculation | C21: App 2 Site Control | D21: Syndication
B22: Revenues and Expenses | C22: App 34 Debarment | D22: Taxpayer Certification
B23: Proforma | C23: App 35 Matching | D23: Financing Cert
B24: Development Team | C24: LHC-2 CEO Notification
B25: Syndication | C25: LHC-3 Developer Experience
B26: Taxpayer Certification | C26: LHC-4 Management Experience
B27: App 1 Owner Info | C27: Financing Cert
B28: App 2 Site Control
B29: App 3 Ownership History
B30: App 4 Zoning | G30: =IF(C30="","",", "&C30) -> 
B31: App 11 NP Participation
B32: App 13 NP Counsel Opinion
B33: App 34 Debarment
B34: App 35 Matching
B35: App 36 Environmental
B36: LHC-2 CEO Notification
B37: LHC-3 Developer Experience
B38: LHC-4 Management Experience
B39: Financing Cert
B40: Demand Cert
B42: ** Select the desired worksheets, and the desired sequence for printing, from the drop down lists provided in the Option 3 column.
B43: Other less common worksheets (e.g. Other Appendices) can be printed manually if desired.

Sheet Instructions
A3: 2020 Piggyback Mixed Income Resilience (PRIME) Rental Housing Application
A4: Matches the 2019 Final QAP (dated June 19, 2019) -- Plus Fixes for July 2019 Known Issues
A5: Instructions
A7: ="Section "&$E7 -> Section 1 | B7: General Instructions | C7: QAP Reference | E7: 1
A8: =+E8 -> 1.01 | B8: In the event there is a conflict between this Application and the QAP, the QAP is the governing document. | C8: =+'QAP Reference'!$A$6 -> II.B | E8: =+E7+0.01 -> 1.01
A9: 1.02 | B9: Note -- if your proposed transaction (a) requests bond financing and (b) does not request LIHTCs or Other LHC Resources, you may apply using the Bond Financing Application. | E9: 1.02
A10: 1.03 | B10: Applicants are advised that materials contained in applications for the LIHTC Program are subject to the requirements of the Louisiana Public Records Request law (La R.S. 44:1 et seq.), and the application materials may be viewed and copied by any member of the public. | C10: =+'QAP Reference'!$A$7 -> II.E | E10: =+E9+0.01 -> 1.03
A11: 1.04 | B11: Applicants are notified that any and all expenses incurred in the preparation of applications to be submitted during this round are incurred at their own risk and are subject to forfeiture. | C11: =+'QAP Reference'!$A$56 -> V.C.3 | E11: 1.04
A12: 1.05 | B12: It is the applicant's responsibility to notify the Corporation, in writing, of any occurrence of a reprocessing change in a Project. A reprocessing change may occur prior to delivery of Form 8609 to a Project; however, Form 8609 will be withheld until the Taxpayer submits a revised application and reprocessing fee. Following receipt of the revised application and reprocessing fee, the Corporation will complete a new legal, feasibility and viability review in order to determine any adjustment of maximum qualified basis and/or the tax credits to be allocated to the Project. Projects subject to reprocessing are at risk of credit loss if such Project fails to satisfy the minimum score or if other projects on the waiting list which are not reserved credits have higher scores. | C12: =+'QAP Reference'!$A$76 -> VI.C | E12: 1.05
A13: 1.06 | B13: Any Site Change may cancel any reservation, commitment or allocation of tax credits to such Project. | C13: =+'QAP Reference'!$A$77 -> VI.C | E13: 1.06
A14: 1.07 | B14: Applicants are advised that awarded projects are expected to proceed and be completed in accordance with the awarded application, and that the completed project must conform to the awarded application. See Section VI.D of the QAP. The Applicant/Developer must notify the Corporation of any changes to the project, including but not limited to, unit mix and development type. It is the Applicant’s responsibility to provide required public notification of any such changes. | C14: =+'QAP Reference'!$A$78 -> VI.C | E14: 1.07
A15: 1.08 | B15: Applications shall be evaluated using the preference and selection criteria as specifically cited in the QAP. LHC reserves the right not to reserve tax credits to any Applicant for a Project, regardless of the Project’s score, and to recapture tax credits allocated to a project prior to delivery of IRS Form 8609 upon discovery of material misrepresentations or fraudulent statements made by an applicant or upon the occurrence of a material change. In the event that the final scores of more than one Application are identical, LHC will implement the Tie‐breaking Procedures outlined in the Competitive Evaluation section of the QAP. | C15: =+'QAP Reference'!$A$80 -> VII | E15: 1.08
A17: ="Section "&$E17 -> Section 2 | B17: Using This Application Tool | E17: =+E7+1 -> 2
A19: =+E19 -> 2.01 | B19: Please do not alter the format of this Application: do not add or delete rows, do not add or delete columns, do not add or delete worksheets, do not move any worksheets, and do not re-name any worksheets. Please do not use the 'cut and paste' method anywhere within this Application (you may use the 'copy and paste' method). LHC will be using electronic methods to extract data from this Application for use in LHC's underwriting; if you have modified this Application in any way that interferes with LHC's ability to extract data for underwriting, LHC may reject the Application or, at LHC's discretion, LHC may return the Application for correction. | E19: =+E17+0.01 -> 2.01
A20: =+E20 -> 2.02 | B20: When opening this Application, you are likely to receive a message 'This workbook contains links to one or more external sources …'. If you receive this message, select 'Don't Update'; the link is to a file that LHC used during development of the Application tool. | E20: =+E19+0.01 -> 2.02
A21: =+E21 -> 2.03 | B21: Worksheets that require user entries have tabs with medium blue background at the bottom of the screen. LHC suggests that you complete these worksheets first, moving from left (Project Description) to right (Taxpayer Certification), before working on other worksheets (such as Appendices) that may be needed for your transaction. | E21: =+E20+0.01 -> 2.03
A22: =+E22 -> 2.04 | B22: Please limit your entries to cells with light blue background and dark blue bold font as shown below. If you make entries in any other cells, this may result in LHC's inability to extract data for underwriting, which may result in rejection of your Application. | E22: =+E21+0.01 -> 2.04
B23: User entry cells look like this
A24: =+E24 -> 2.05 | B24: Many user entry cells require you to select one of a fixed set of choices; this type of user entry cell will have a down arrow immediately to the right of the cell. Following is an example of this type of user entry cell: | E24: =+E22+0.01 -> 2.05
B25: Acquisition & Rehab
A26: =+E26 -> 2.06 | B26: Advisory messages appear throughout this Application in dark green font as shown below. | E26: =+E24+0.01 -> 2.06
B27: Advisory messages look like this
A28: =+E28 -> 2.07 | B28: Any messages that appear in red bold italic font indicate serious problems; any such problems must be corrected or must otherwise be addressed in the application (for example, by a letter requesting a waiver). | E28: =+E26+0.01 -> 2.07
B29: Serious problem messages look like this
A30: =+E30 -> 2.08 | B30: For narrative comment boxes (that look like the below), you can change the row height to accommodate additional explanation; see the examples below. | E30: =+E28+0.01 -> 2.08
B31: Here is an example of a comment that fits in one row.
B33: Here is an example of a much longer comment that requires multiple rows in order to display properly. Additional information provided by applicant requires extra space. Using the mouse, grab the line underneath the row number and drag that line downward to increase the row height.
A35: =+E35 -> 2.09 | B35: When there is a need to provide additional explanation beyond what will fit in this Application and its narrative comment boxes, please note that (a) Appendix 52 is one option for this type of additional explanation and that (b) there is a large narrative comment box at the end of the Project Description worksheet; the contents of this comment box will appear on the Summary worksheet. | E35: =+E30+0.01 -> 2.09
A36: =+E36 -> 2.1 | E36: =+E35+0.01 -> 2.1
A38: ="Section "&$E38 -> Section 3 | B38: Project Description Worksheet | E38: =+E17+1 -> 3
A39: =+E39 -> 3.01 | B39: This worksheet contains most of the user entries to describe the Taxpayer / Applicant and the project. | E39: =+E38+0.01 -> 3.01
A40: =+E40 -> 3.02 | B40: Where appropriate, column J contains cross-references to the applicable QAP section(s). | E40: =+E39+0.01 -> 3.02
A41: =+E41 -> 3.03 | B41: Acquisition Housing Credit Rate. LHC will underwrite at the rate in effect the month prior to the application submission due date, so the credit factor is subject to modification by LHC if the credit rate entered by the applicant is different from the rate in effect the month prior to application submission for 30% value credits. LHC will use a flat 9% rate for new construction and substantial rehabilitation projects without tax-exempt bond financing. | E41: =+E40+0.01 -> 3.03
A43: ="Section "&$E43 -> Section 4 | B43: Unit Mix and Rents Worksheet | E43: =+E38+1 -> 4
A44: =+E44 -> 4.01 | B44: Please note that each unit must have square footage, and number of bathrooms, at or above the LHC limit (that is, it is not acceptable to average the unit sizes). Accordingly, generally LHC expects you to include a row for each unique combination of: (1) number of bedrooms; (2) number of bathrooms; (3) square footage and (4) configuration / layout (for example, townhouse versus flat). Please also include a separate row for each staff unit. However, if the general approach outlined above would be burdensome, please contact LHC to explore whether there may be an alternative approach that will be workable for you and for LHC. | E44: =+E43+0.01 -> 4.01
A45: =+E45 -> 4.02 | B45: The Unit Type column can be used to differentiate similar types of units. Sample Unit Types might include: "2BR Flat", "2BR Townhouse", "3BR LIHTC/HOME", and "1BR PSH". | E45: =+E44+0.01 -> 4.02
A46: =+E46 -> 4.03 | B46: The Notes column will contain information in green bold font for any unit type that appears to have square footage, number of bathrooms, or rent that does not comply with applicable QAP requirements. | E46: =+E45+0.01 -> 4.03
A47: =+E47 -> 4.04 | B47: ="If there are any unit type 'flags' in the Notes column, the Checklist worksheet will contain a question numbered Appendix "&Checklist!$E$331&"." -> If there are any unit type 'flags' in the Notes column, the Checklist worksheet will contain a question numbered Appendix 52.13. | E47: =+E46+0.01 -> 4.04
A49: ="Section "&$E49 -> Section 5 | B49: Development Costs Worksheet | E49: =+E43+1 -> 5
A50: =+E50 -> 5.01 | B50: If any red bold italicized 'serious problem messages' appear, indicating violations of QAP fee and profit limits, you will need to adjust your development costs accordingly or to submit a waiver request to LHC. | E50: =+E49+0.01 -> 5.01
A51: =+E51 -> 5.02 | B51: The section that calculates Adjusted Construction Basis subtracts amounts that LHC understands are generally excluded from construction basis. If your advisors conclude that any of the formula deductions are inappropriate for your transaction, use one of the Adjustment rows to add back amounts as appropriate. Also use the Adjustment rows to exclude other amounts as appropriate for your transaction. | E51: =+E50+0.01 -> 5.02
A52: =+E52 -> 5.03 | B52: ="Extraordinary Site Costs (as defined in the QAP), if justified by the applicant and approved by LHC, will be deducted from Total Development Cost (TDC) before computing compliance with the TDC Per Unit Limit. See Section "&F52&" of this Application." -> Extraordinary Site Costs (as defined in the QAP), if justified by the applicant and approved by LHC, will be deducted from Total Development Cost (TDC) before computing compliance with the TDC Per Unit Limit. See Section 40 of this Application. | E52: =+E51+0.01 -> 5.03 | F52: =+'Development Costs'!I231 -> 40
A54: ="Section "&$E54 -> Section 6 | B54: Basis Calculation Worksheet | E54: =+E49+1 -> 6
A55: =+E55 -> 6.01 | B55: The lines titled 'Per Building Residential Area', 'Sqft of LIHTC Units', and 'Sqft of Total Units' should reflect only the square footage of residential units themselves. Do not include square footage for staff units, common areas, or Community Service Facilities. | E55: =+E54+0.01 -> 6.01
A56: =+E56 -> 6.02 | B56: If any red bold italicized 'serious problem messages' appear at the bottom of this worksheet, you will need to correct the information in the worksheet. | E56: =+E55+0.01 -> 6.02
A58: ="Section "&$E58 -> Section 7 | B58: Revenues and Expenses Worksheet | E58: =+E54+1 -> 7
A59: =+E58+0.1 -> 7.1 | B59: This worksheet distinguishes between 'must-pay' expenses (that must be paid from operations regardless of availability of cash) and 'contingent' expenses (for example, expenses that are paid after year-end from excess cash). | E59: =+E58+0.01 -> 7.01
A60: =+A59+0.1 -> 7.2 | E60: =+E59+0.01 -> 7.02
A62: ="Section "&$E62 -> Section 8 | B62: Other Key Worksheets (Not Requiring User Entries) | E62: =+E58+1 -> 8
A63: =+E63 -> 8.01 | B63: Proforma Worksheet. This worksheet charts revenue and expenses over time to see how a project performs financially. This worksheet does not require any user entries, but you should make sure the project has sufficient debt coverage ratios and cash flow throughout whatever compliance period applies to the funding you seek (15 years for tax credits). LHC requires a DCR of no less than 1.15 through Year 15 (exception: 1.10 DCR for Rural Housing Services (RHS) Rural Development funded properties). If a LHC funding source, such as HOME, requires a longer compliance period and the DCR is not positive through year 20, an explanation must be provided on the Summary page detailing how the owner will handle the negative cash flow so that the project remains financially viable throughout the compliance period. | E63: =+E62+0.01 -> 8.01
A64: 8.02 | B64: ="Inflation or vacancy factors in the proforma can be modified in Section "&'Project Description'!$L$901&" of the Project Description worksheet. Any departures from the LHC Standard factors must be justified and explained." -> Inflation or vacancy factors in the proforma can be modified in Section 28 of the Project Description worksheet. Any departures from the LHC Standard factors must be justified and explained. | E64: 8.02
A65: 8.03 | B65: Selection Criteria Worksheet. This worksheet shows the point score that your project would earn, if LHC agreed with the information you provided in this Application. | E65: 8.03
A66: 8.04 | B66: Summary Worksheet. This worksheet provides a two page overview of the project. The large comment box at the end comes from near the end of the Project Description worksheet. | E66: 8.04
A67: 8.05 | B67: Checklist Worksheet. This worksheet shows the additional information (in addition to this Application) that is needed for the proposed project. However, applicants must submit all information required under the QAP, whether or not that information is called for in the Checklist worksheet. | E67: 8.05
A68: 8.06 | B68: Serious Problems Worksheet. This worksheet shows each of the red bold italicized 'serious problem' messages in this Application. When you submit this Application, none of these message should remain (except possibly where you are requesting a waiver from LHC). | E68: 8.06
A70: ="Section "&$E70 -> Section 9 | B70: Other Instructions | E70: =+E62+1 -> 9
A71: =+E71 -> 9.01 | B71: Development Team, Syndication and Taxpayer Certification Worksheets. Each of these worksheets is required to be completed. | E71: =+E70+0.01 -> 9.01
A72: =+E72 -> 9.02 | B72: Appendices. Review the QAP, and the Checklist worksheet, to determine which Appendices should be completed and submitted for your proposed project. | E72: =+E71+0.01 -> 9.02
A73: =+E73 -> 9.03 | B73: LHC-2 (CEO Notification), LHC-3 (Developer Experience) and LHC-4 (Management Experience) Forms. These are required for all projects. | E73: =+E72+0.01 -> 9.03
A74: =+E74 -> 9.04 | B74: Financing Certification. This worksheet is to be completed, signed and notarized, to memorialize the anticipated sources and uses of funds for the project. | E74: =+E73+0.01 -> 9.04
A75: =+E75 -> 9.05 | B75: Demand Certification. This worksheet provides the format for a certification that the market study analyst must include in the Market Study report. | E75: =+E74+0.01 -> 9.05
E79: =+E70 -> 9 | F79: = Last Section of this sheet

Sheet Project Description
A3: =+Instructions!$A$3 -> 2020 Piggyback Mixed Income Resilience (PRIME) Rental Housing Application
A4: Description of the Proposed Project
A6: ="Section "&$L6 -> Section 10 | B6: Project Funding Characteristics | J6: QAP Reference | L6: =+Instructions!$E$79+1 -> 10
A8: =+L8 -> 10.01 | B8: Tax-Exempt Bond Financing | L8: =+L6+0.01 -> 10.01
B9: Does the financing plan include tax-exempt bond financing? | H9: Missing | M9: =IF(H9="Yes","Bonds","No Bonds") -> No Bonds
B10: =IF(H9="Yes","Explain below","Skip to Section "&A23) -> Skip to Section 10.05
A12: =+L12 -> 10.02 | B12: Does your transaction include 4% ("30% PV") LIHTCs? | H12: Missing | J12: =+'QAP Reference'!$A$24 -> IV.B | L12: =+L8+0.01 -> 10.02 | M12: =IF(H12="Yes","4% LIHTC + Bonds","") ->  | P12: =IF(M12="","",IF(AND(M23="",M30=""),M12&" only",IF(M30="",M12, M12&", "))) -> 
B13: =IF(AND(H12="Yes",H9<>"Yes"),"Error -- 4% LIHTC transactions must use Tax Exempt Bond Financing","") -> 
B14: Indicate below the appropriate housing credit rate (typically more than 3.0% and less than 4.0%). This is published monthly by the Internal Revenue Service.
B15: The housing credit rate is estimated to be: | H15: 0
B16: Comment
A18: =+L18 -> 10.03 | B18: What are the estimated costs of issuance? | H18: 0 | L18: =+L12+0.01 -> 10.03
A20: =+L20 -> 10.04 | B20: Please explain below the role of tax-exempt bond financing in the financing plan, what governmental entity is planned to be the issuer, and the current state of your discussions with the issuer. | L20: =+L18+0.01 -> 10.04
B21: Comment
A23: =+L23 -> 10.05 | B23: Does your transaction include 9% ("70% PV") LIHTCs? | H23: Missing | J23: =+'QAP Reference'!$A$23 -> IV.A | L23: =+L20+0.01 -> 10.05 | M23: =IF(H23="Yes","9% LIHTC","") ->  | P23: =IF(M23="","",IF(AND(M12="",M30=""),M23&" only",M23&", ")) -> 
B24: =IF(AND(H23="Yes",H9="Yes"),"Error -- cannot combine 9% LIHTCs and Tax Exempt Bond Financing","") -> 
A26: =+L26 -> 10.06 | B26: Does your transaction include Other LHC Funding*? | H26: Missing | L26: =+L23+0.01 -> 10.06
B27: * HOME, NHTF or CDBG funding from LHC or from another State Agency
B28: =IF(H26="Yes","Note: The 2019 QAP does not offer any HOME, NHTF or CDBG funding","") ->  | M28: The 2019 QAP does not include any Other LHC Funding
A30: =+L30 -> 10.07 | B30: LHC Funding Type: | D30: =P23&P12&M30 ->  | L30: =+L26+0.01 -> 10.07 | M30: =IF(H26="Yes","LHC Funds","") -> 
B32: =IF(AND(H26="No",H23="No",H12="No"),"You may use the Bond Financing Application instead of this Application","") ->  | M32: =IF(OR(H23="Yes",H26="Yes"),"Pool","Non Pool") -> Non Pool | P32: Pool = uses 9% LIHTCs or Other LHC Funds
A34: ="Section "&$L34 -> Section 11 | B34: Characteristics of The Applicant | J34: QAP Reference | L34: =+L6+1 -> 11
A36: =+L36 -> 11.01 | B36: Taxpayer Name: | E36: x | L36: =+L34+0.01 -> 11.01
B37: Taxpayer Address: | E37: x
B38: City, State & Zip: | E38: x
B39: Taxpayer Contact*: | E39: x
B40: Phone: | E40: x
B41: Email | E41: x
B42: Federal Tax ID / SSN: | E42: x
B43: Taxpayer is: | E43: Missing
B44: Taxpayer is a: | E44: Missing
B45: Controlling Principal Name: | E45: x
B46: Controlling Principal is the: | E46: Missing
B48: * This person will be LHC's single point of contact for the taxpayer / applicant. Please be sure that this person will be a good choice to respond to any questions from LHC during underwriting.
A50: =+L50 -> 11.02 | B50: Developer / Sponsor | E50: x | J50: Glossary | L50: =+L36+0.01 -> 11.02
B51: Address: | E51: x
B52: City, State & Zip: | E52: x
B53: Does the Developer / Sponsor meet the requirements of QAP V.C.1? | H53: Missing | J53: =+'QAP Reference'!$A$53 -> V.C.1
B54: Is the Developer a New Developer as defined in the QAP? | H54: Missing | J54: =+'QAP Reference'!$A$54 -> V.C.1
B55: =IF(H54="Yes","Note that, as a New Developer, you are only eligible to receive an award of tax credits for one project in this funding cycle.","") -> 
B57: Comment
A59: =+L59 -> 11.03 | B59: Is there an Identity of Interest between the Developer and the Builder? | H59: Missing | J59: Glossary; "Developer Fee Base" | L59: =+L50+0.01 -> 11.03
A61: =+L61 -> 11.04 | B61: Is any member of the proposed project team "not in good standing" with the LHC, as defined in the QAP? | H61: Missing | J61: =+'QAP Reference'!$A$57 -> V.C.3 | L61: =+L59+0.01 -> 11.04
B63: Comment
A65: =+L65 -> 11.05 | B65: Qualified Non-Profit. Does the Applicant evidence material participation of a Qualified Non-Profit Organization (as defined in the Glossary)? If so, an information request will appear on the Checklist worksheet. | H65: Yes | J65: ='QAP Reference'!$A$9&"; also Glossary" -> III.A; also Glossary | L65: =+L61+0.01 -> 11.05
B66: =IF(H65="Yes","Consider applying in the nonprofit/CHDO funding pool","") -> Consider applying in the nonprofit/CHDO funding pool | M66: =IF(H65="Yes","Nonprofit","") -> Nonprofit
A68: =+L68 -> 11.06 | B68: CHDO. Is the Applicant a CHDO (Community Housing Development Organization) that (a) meets the definition in the Glossary and (b) is certified as a CHDO by the LHC? If so, an information request will appear on the Checklist worksheet. | H68: Missing | J68: ='QAP Reference'!$A$10&"; also Glossary" -> III.A; also Glossary | L68: =+L65+0.01 -> 11.06
B69: =IF(H68="Yes","Consider applying in the nonprofit/CHDO funding pool","") ->  | M69: =IF(H68="Yes","CHDO","") -> 
A71: =+L71 -> 11.07 | B71: Management Agent | E71: x | L71: =+L68+0.01 -> 11.07
B72: Street Address: | E72: x
B73: City, State, Zip: | E73: x
A75: =+L75 -> 11.08 | B75: Does the management agent have an identity of interest with the applicant or with the developer? | H75: Missing | L75: =+L71+0.01 -> 11.08
A77: ="Section "&$L77 -> Section 12 | B77: Characteristics of The Project | J77: QAP Reference | L77: =+L34+1 -> 12
A79: =+L79 -> 12.01 | B79: Project Name: | E79: x | L79: =+L77+0.01 -> 12.01
B80: Street Address: | E80: x
B81: City: | E81: x
B82: Parish: | E82: Acadia | Q82: =VLOOKUP($E$82,Parishes!$A$10:$U$73,2,FALSE) -> 25550 | R82: 50% AMI for the Parish
B83: Zip Code: | E83: x
B84: MSA: | E84: =IF(OR(ISERROR(M84),M84="",M84=0),"Not located in an MSA",M84) -> Lafayette MSA but with Parish-specific AMI | M84: =VLOOKUP($E$82,Parishes!$A$10:$U$73,21,FALSE) -> Lafayette MSA but with Parish-specific AMI | Q84: =VLOOKUP($E$82,Parishes!$A$10:$U$73,20,FALSE) -> 64800 | R84: 100% AMI for the MSA
A86: =+L86 -> 12.02 | B86: Is the entire project located on a single site? | H86: Missing | L86: =+L79+0.01 -> 12.02
B87: =IF(H86="Yes","","The Checklist worksheet will include a question.") -> The Checklist worksheet will include a question.
A89: =+L89 -> 12.03 | B89: What is the primary development type? | H89: Missing | L89: =+L86+0.01 -> 12.03
B90: Will any new construction take place? | H90: No
B91: Percentage of new construction (by # of units*) | H91: 0 | M91: =IF(H91>50%,$S$166,$R$166) -> Rehab | O91: 2019 QAP treats mixed projects as New Const if >50% NC by # of units
B92: * Number of new construction units in the project ÷ number of total units in the project
A94: =+L94 -> 12.04 | B94: Will any existing buildings be acquired? | H94: Missing | L94: =+L89+0.01 -> 12.04
B95: Will any existing residential buildings be acquired? | H95: Missing
B96: Will any existing non-residential buildings be acquired? | H96: Missing
B97: Will any rehabilitation take place? | H97: Missing
B98: Will Substantial Rehabilitation take place? | H98: Missing | J98: Glossary
B99: Will any historic rehabilitation take place? | H99: Missing
A101: =+L101 -> 12.05 | B101: Does the purchase price of the real estate exceed $500K? | H101: Missing | J101: =+'QAP Reference'!$A$73 -> V.J.Market Study.12 | L101: =+L94+0.01 -> 12.05
B102: Will Acquisition Cost of buildings be included in basis? | H102: Missing | J102: =+'QAP Reference'!$A$73 -> V.J.Market Study.12
A104: =+L104 -> 12.06 | B104: Will any existing rental housing buildings be acquired? | H104: Missing | L104: =+L101+0.01 -> 12.06
B105: If so, are the seller and purchaser Related Persons? | H105: Missing | J105: ='QAP Reference'!$A$51&"; also Glossary" -> V.B.2; also Glossary
A107: =+L107 -> 12.07 | B107: Is this an infill project (as defined in the QAP)? | H107: Missing | J107: Glossary | L107: =+L104+0.01 -> 12.07
B108: Is the project located in a Special Flood Hazard Area? | H108: Missing | J108: =+'QAP Reference'!$A$46 -> V.A.11
B109: Is the project in a levee protected area? | H109: Missing | J109: =+'QAP Reference'!$A$46 -> V.A.11
A111: =+L111 -> 12.08 | B111: What is the primary building type for this project? | H111: Missing | L111: =+L107+0.01 -> 12.08
B112: Does the project include other building types as well? | H112: Missing
A114: =+L114 -> 12.09 | B114: In which census tract is the project primarily located? | H114: x | L114: =+L111+0.01 -> 12.09
B115: Does any part of the project lie outside this census tract? | H115: Missing
B116: If so, what % of the units are in this census tract? | H116: 0
B117: Median income of the primary census tract | H117: 0 | J117: =+'QAP Reference'!$A$20 -> III.D | M117: 50000 | N117: FFIEC non-metro 2019 median income
B118: Median income of the MSA | H118: =IF($Q$84=0,M117,$Q$84) -> 64800 | M118: =+$H$117/H118 -> 0 | N118: (Census Tract income as % of MSA)
B119: Median income of the Parish | H119: =$Q$82*2 -> 51100 | M119: =+$H$117/H119 -> 0 | N119: (Census Tract income as % of Parish)
A121: =+L121 -> 12.1 | B121: Is any part of the project located in: | L121: =+L114+0.01 -> 12.1
B122: … a Difficult Development Area? | H122: Missing | J122: Glossary
B123: … a Qualified Census Tract? | H123: No | J123: Glossary
B124: … a Choice Neighborhood Initiative census tract? | H124: Missing
B125: … an area part of a Concerted Community Revitalization Plan? | H125: Missing | J125: Glossary
A126: =+L126 -> 12.11 | B126: Is this a Rural Area Project, as defined in the QAP? | H126: Missing | J126: Glossary | L126: =+L121+0.01 -> 12.11
B127: =IF(H126="Yes","Note that there are rural set-asides within the Rehab and NC funding pools","") ->  | M127: =IF(H126="Yes","Rural","") ->  | O127: There is no Rural Pool in the 2019 QAP
A129: =+L129 -> 12.12 | B129: Is the project located within an incorporated area (town, city)? | H129: Missing | L129: =+L126+0.01 -> 12.12
B130: If so, what is the population of the incorporated area? | H130: 0
B131: Is the project located in a Dense Urban Area? | H131: Missing | J131: =+'QAP Reference'!A40 -> V.A.5 | M131: =IF(H131="Yes","Dense Urban Area",IF(H132="Yes","Small Town or City",IF(H126="Yes","Rural","Other"))) -> Other | P131: =IF(M131="Dense Urban Area",1,IF(M131="Small Town or City",2,IF(M131="Other Incorporated",3,IF(M131="Rural",4,5)))) -> 5 | Q131: =IF(P131=6,"Error -- programming problem","") -> 
B132: Is the project located in a Town or City with a population of 15,000 or less? | H132: Missing | J132: =+J131 -> V.A.5
A134: =+L134 -> 12.13 | B134: Is the property a Distressed Property, as defined in the QAP (RD, HUD or PHA)? | H134: Missing | J134: Glossary | L134: =+L129+0.01 -> 12.13
A135: 12.14 | B135: Is this a Redevelopment Property, as defined in the QAP? | H135: Missing | J135: Glossary | L135: =+L134+0.01 -> 12.14
A136: 12.15 | B136: Is the property an Owner Occupied Property with Development Plan of Action, as defined in the QAP? | H136: Missing | J136: Glossary | L136: 12.15
A137: 12.16 | B137: Is this an Existing LIHTC Project, as defined in the QAP? | H137: Missing | L137: 12.16
A138: 12.17 | B138: Is this a rehabilitation of existing USDA, or Federally Funded project? This would include (for example) any project receiving Section 8, RD Rental Assistance, HOME, CDBG, or public housing funding; or that has a mortgage loan with a federally subsidized interest rate. | H138: Missing | L138: 12.17
A139: 12.18 | B139: Is this a rehab of an existing non-historic residential building? | H139: Missing | L139: 12.18
A140: 12.19 | B140: Does this project constitute Blighted housing remediation and/or replacement, as defined in the QAP? | H140: Missing | J140: Glossary | L140: 12.19
A141: 12.2 | B141: Is this a Rehab Infill / Scattered Site Project, as defined in the QAP? | H141: Missing | L141: 12.2
A142: 12.21 | B142: Is this Preservation of Residential Historic Property, as defined in the QAP? | H142: Missing | L142: 12.21
A143: 12.22 | B143: Is this an Existing Federally Funded Project with HAP Contract, or USDA with PBRA, as defined in the QAP? | H143: Missing | L143: 12.22
A144: 12.23 | B144: Is this a New Construction Infill / Scattered Site Project, as defined in the QAP? | H144: Missing | L144: 12.23
A145: 12.24 | B145: Is this a Homeownership project, as defined in the QAP? | H145: Missing | J145: Glossary | L145: 12.24
A147: =+L147 -> 12.25 | B147: Does the Taxpayer agree to give preference to Veterans, Disabled and Elderly persons on the PHA waiting list if they satisfy the requirements of the Project’s Management and/or Operating Plan? | H147: Missing | J147: =+'QAP Reference'!A$13 -> III.B | L147: =+L145+0.01 -> 12.25
B148: =IF(H147="Yes","","Error -- the QAP requires this preference for PHA waiting list applicants") -> Error -- the QAP requires this preference for PHA waiting list applicants
A150: =+L150 -> 12.26 | B150: Is this a Preservation Property, as defined in the QAP? | H150: Missing | J150: VII.D, Glossary | L150: =+L147+0.01 -> 12.26
B151: =IF(AND(H150="Yes",H89=Controls!$A$40),"Note: This is a New Construction property; explain why you believe it is eligible as a Preservation Property under the QAP.","") -> 
M152: =IF(H150="Yes","Preservation","") ->  | O152: There is no Preservation Pool in the 2019 QAP
A154: =+L154 -> 12.27 | B154: Is this a Single Room Occupancy (SRO) Project, as defined in the QAP? | H154: Missing | J154: =+'QAP Reference'!A63 -> V.D | L154: =+L150+0.01 -> 12.27
B155: Is this a Project Reallocated Credits Based on Housing Discrimination, as defined in the QAP? | H155: Missing | J155: =+'QAP Reference'!A64 -> V.D
A157: =+L157 -> 12.28 | B157: Does the project currently receive federal funds and/or receive insurance under a federal program? | H157: Missing | J157: V.G | L157: =+L154+0.01 -> 12.28
B158: Will HUD or RD housing assistance, or other government assistance, be provided to the project? | H158: Missing
B159: Comment
B160: =IF(AND(B159="",OR(H157="Yes",H158="Yes")),"An explanation is required; the Checklist will include an information request.","") -> 
A162: ="Section "&$L162 -> Section 13 | B162: Selection of Funding Pool; Requests for Funding Other Than LIHTCs | J162: QAP Reference | L162: =+L77+1 -> 13
B163: =IF(OR($H$23="Yes",$H$26="Yes"),"Complete this Section","Skip to Section "&$L$187) -> Skip to Section 14 | M163: Logic to identify for which pool(s) this project may be eligible
A165: =+L165 -> 13.01 | B165: For which funding pool are you applying? | H165: New Construction General | J165: ='QAP Reference'!$A$11&"; also Glossary" -> III.A; also Glossary | L165: =+L162+0.01 -> 13.01 | M165: =MATCH(H165,Controls!$A$32:$A$36,0) -> 3
B166: =INDEX(Controls!$A$32:$C$36,$M$165,2) -> The project must be more than 50% new construction (by number of units). | M166: =IF($Q$168=0,"",IF($Q$168<4,$Q$166,IF($Q$168=4,$R$166,IF($Q$168<8,$Q$166&" and "&$R$166,IF($Q$168=8,$S$166,IF($Q$168<12,$Q$166&" and "&$S$166,IF($Q$168=12,$R$166&" and "&$S$166,$Q$166&", "&$R$166&" and "&$S$166))))))) -> QNP/CHDO | Q166: =+Controls!$G$32 -> QNP/CHDO | R166: =+Controls!$G$33 -> Rehab | S166: =+Controls!$G$34 -> NC | T166: =+Controls!$G$35 -> N/A
B167: =IF(H165<>"General","",IF('Project Description'!M166="","","You selected the General pool, but your proposed project likely is eligible for "&M166&"; please consider pool selection carefully.")) ->  | M167: =IF($M$66<>"",$M$66,IF($M$69<>"",$M$69,"")) -> Nonprofit | N167: =IF($M$91=$R$166,$R$166,"") -> Rehab | O167: =IF($M$91=$S$166,$S$166,"") -> 
M168: =IF(M167="",0,1) -> 1 | N168: =IF(N167="",0,2) -> 2 | O168: =IF(O167="",0,4) -> 0 | P168: =IF(P167="",0,8) -> 0 | Q168: =SUM(M168:P168) -> 3
A169: =+L169 -> 13.02 | B169: National Housing Trust Fund (NHTF) | J169: =+'QAP Reference'!$A$14 -> III.B | L169: =+L165+0.01 -> 13.02 | M169: =INDEX(Controls!$A$32:$D$36,$M$165,4) -> 0 | N169: NHTF available in selected pool
B170: =IF(M169=0,"No NHTF funds are available for award to projects in the pool you selected.",IF(M172=0,"NHTF funds are not available to CHDOs or to projects in Entitlement Areas.","This project may apply for up to "&TEXT($M$170,"$#,##0")&" per project in NHTF funds.")) -> No NHTF funds are available for award to projects in the pool you selected. | M170: 500000 | N170: NHTF Per Project Cap
B171: Amount of NHTF funds requested: | H171: 0 | M171: 0 | N171: If CHDO
B172: =IF(H171<0,"Negative amount not allowed",IF(H171>$M172,"Exceeds maximum allowable amount","")) ->  | M172: =IF($H$68="Yes",0,M170) -> 500000 | N172: Per Project Cap for This Project
B173: =IF(H171=0,"","Note that any project receiving NHTF will require Environmental Review which can take up to 120 days to complete.") -> 
A175: =+L175 -> 13.03 | B175: HOME Investment Partnership Program Funds (HOME) | J175: =+'QAP Reference'!$A$15 -> III.B | L175: =+L169+0.01 -> 13.03 | M175: =INDEX(Controls!$A$32:$E$36,$M$165,5) -> 0 | N175: HOME available in selected pool
B176: =IF(M175=0,"No HOME funds are available for award to projects in the pool you selected.",IF($H$68<>"Yes","HOME funds are available only to LHC-certified CHDOs.","CHDO applicants in this pool may apply for up to "&TEXT($M$170,"$#,##0")&" per project in HOME funds.")) -> No HOME funds are available for award to projects in the pool you selected. | M176: 500000 | N176: NHTF Per Project Cap
B177: Amount of HOME funds requested: | H177: 0 | M177: =IF($H$68<>"Yes",0,M176) -> 0 | N177: Per Project Cap for This Project
B178: =IF(H177<0,"Negative HOME amount not allowed",IF(H177>$M178,"HOME exceeds maximum allowable amount","")) -> 
B179: =IF(H177=0,"","Note that any project receiving HOME funding will require Environmental Review which can take up to 120 days to complete.") -> 
A181: =+L181 -> 13.04 | B181: CDBG Disaster Recovery Funds (CDBG-DR) | J181: =+'QAP Reference'!$A$16 -> III.B | L181: =+L175+0.01 -> 13.04 | M181: =INDEX(Controls!$A$32:$F$36,$M$165,6) -> 60000000 | N181: HOME available in selected pool
B182: =IF(M181=0,"No CDBG-DR funds are available for award to projects in the pool you selected.","Applicants in this pool may apply for up to "&TEXT($M$170,"$#,##0")&" per project in CDBG-DR funds.") -> Applicants in this pool may apply for up to $500,000 per project in CDBG-DR funds. | M182: 10000000 | N182: NHTF Per Project Cap
B183: Amount of CDBG-DR funds requested: | H183: 2000000 | M183: =+M182 -> 10000000 | N183: Per Project Cap for This Project
B184: =IF(H183<0,"CDBG negative amount not allowed",IF(H183>$M183,"CDBG exceeds maximum allowable amount","")) -> 
B185: =IF(H183=0,"","Note that any project receiving CDBG-DR funding will require Environmental Review which can take up to 120 days to complete.") -> Note that any project receiving CDBG-DR funding will require Environmental Review which can take up to 120 days to complete.
A187: ="Section "&$L187 -> Section 14 | B187: Requests for 9% LIHTCs | J187: QAP Reference | L187: =+L162+1 -> 14
B188: =IF($H$23="Yes","Complete this Section","Skip to Section "&$L$203) -> Skip to Section 15
A190: =+L190 -> 14.01 | B190: ="The LIHTC Per Project Cap for the "&TRIM($H$165)&" pool is:" -> The LIHTC Per Project Cap for the New Construction General pool is: | H190: =INDEX(Controls!$A$32:$C$36,$M$165,3) -> 0 | J190: =+'QAP Reference'!$A$12 -> III.A | L190: =+L187+0.01 -> 14.01
A192: =+L192 -> 14.02 | B192: Credits requested | H192: 0 | L192: =+L190+0.01 -> 14.02
B193: =IF(H192>H190,"LIHTCs cannot exceed the cap for the "&H165&" pool","") -> 
A195: =+L195 -> 14.01 | B195: The new construction / rehabilitation housing credit rate will be: | H195: 0.09 | J195: =+'QAP Reference'!$A$18 -> III.C | L195: =+L187+0.01 -> 14.01
B196: If your 9% LIHTC transaction will include acquisition ("4%") credits, you will need to indicate the appropriate housing credit rate (typically more than 3.0% and less than 4.0%). This is published monthly by the Internal Revenue Service.
A197: =+L197 -> 14.02 | B197: The acquisition housing credit rate is estimated to be: | H197: 0 | L197: =+L195+0.01 -> 14.02
B198: Comment
A200: =+L200 -> 14.03 | B200: LIHTC Set-Aside Election | H200: Missing | L200: =+L197+0.01 -> 14.03
B201: =IF(H200<>"Income Averaging","",M201) ->  | M201: When you complete the Unit Mix and Rents worksheet, remember to specify LIHTC units with income restrictions at 70% AMI and/or 80% AMI. The Income Average for the project will be shown toward the bottom of the Unit Mix and Rents worksheet.
A203: ="Section "&$L203 -> Section 15 | B203: Basis Boost | J203: QAP Reference | L203: =+L187+1 -> 15
B204: =IF(OR($H$12="Yes",$H$23="Yes"),"Complete this Section","Skip to Section "&$L$216) -> Skip to Section 16 | M204: 2019 QAP allows basis boost for both 4% and 9% projects
A206: =+L206 -> 10.03 | B206: Indicate below any Basis Boost that you are proposing: | J206: =+'QAP Reference'!$A$19 -> III.D | L206: =+L12+0.01 -> 10.03 | M206: =IF(OR(H207<>0,H208<>0),"Boost","No Boost") -> No Boost
B207: Boost for Construction Basis | H207: 0 | M207: =IF(H23="Yes","9% Project",IF(H12="Yes","4% Project","No LIHTCs")) -> No LIHTCs
B208: Boost for Acquisition Basis | H208: 0
B209: =IF(H208=0,"","LHC advises that Acquisition Basis is not eligible for boost. Be sure to explain (in your Checklist response) why you propose boost for Acquisition Basis.") ->  | M209: 2019 QAP is unclear regarding boost for Acquisition Basis
B210: =IF(M207<>"9% Project","",IF(OR(H207=0,H207=15%,H207=30%),"","Error -- Proposed boost % for 9% Project must be 0%, 15% or 30%")) ->  | M210: 2019 QAP allows 10%, 20% and 30% boost for 9% LIHTC projects
B211: =IF(M207<>"4% Project","",IF(OR(H208=0,H208=30%),"","Error -- Proposed boost % for 4% Project must be 0% or 30%")) ->  | M211: 2019 QAP allows up to 30% boost for 4% LIHTC projects
B212: =IF(M206="Boost","The Checklist worksheet will include an information request regarding Basis Boost.","") -> 
B214: =IF(AND(M206="Boost",H86="No"),M214,"") ->  | M214: You indicated that this is a multi-site project and that you are applying for a Basis Boost. Note that 100% of the project sites must qualify for the Basis Boost.
A216: ="Section "&$L216 -> Section 16 | B216: Project Schedule | J216: QAP Reference | L216: =+L203+1 -> 16
B218: A. SITE | H218: Estimated Date
A219: =+L219 -> 16.01 | C219: Option/Contract | H219: 00:00:00 | L219: =+L216+0.01 -> 16.01
A220: =+L220 -> 16.02 | C220: Site Acquisition | H220: 00:00:00 | L220: =+L219+0.01 -> 16.02
A221: =+L221 -> 16.03 | C221: Zoning Approval | H221: 00:00:00 | L221: =+L220+0.01 -> 16.03
A222: =+L222 -> 16.04 | C222: Site Analysis | H222: 00:00:00 | L222: =+L221+0.01 -> 16.04
A223: =+L223 -> 16.05 | C223: Environmental Clearance | H223: 00:00:00 | L223: =+L222+0.01 -> 16.05
B225: B. FINANCING
B226: 1. Construction Loan / Interim Financing
A227: =+L227 -> 16.06 | C227: Loan Application | H227: 00:00:00 | L227: =+L223+0.01 -> 16.06
A228: =+L228 -> 16.07 | C228: Conditional Commitment | H228: 00:00:00 | L228: =+L227+0.01 -> 16.07
A229: =+L229 -> 16.08 | C229: Firm Commitment | H229: 00:00:00 | L229: =+L228+0.01 -> 16.08
B230: 2. Permanent Loan
A231: =+L231 -> 16.09 | C231: Loan Application | H231: 00:00:00 | L231: =+L229+0.01 -> 16.09
A232: =+L232 -> 16.1 | C232: Conditional Commitment | H232: 00:00:00 | L232: =+L231+0.01 -> 16.1
A233: =+L233 -> 16.11 | C233: Firm Commitment | H233: 00:00:00 | L233: =+L232+0.01 -> 16.11
B234: 3. Other Loans and Grants #1
A235: =+L235 -> 16.12 | C235: Type and Source | H235: 00:00:00 | L235: =+L233+0.01 -> 16.12
A236: =+L236 -> 16.13 | C236: Application | H236: 00:00:00 | L236: =+L235+0.01 -> 16.13
A237: =+L237 -> 16.14 | C237: Award | H237: 00:00:00 | L237: =+L236+0.01 -> 16.14
B238: 4. Other Loans and Grants #2
A239: =+L239 -> 16.15 | C239: Type and Source | H239: 00:00:00 | L239: =+L237+0.01 -> 16.15
A240: =+L240 -> 16.16 | C240: Application | H240: 00:00:00 | L240: =+L239+0.01 -> 16.16
A241: =+L241 -> 16.17 | C241: Award | H241: 00:00:00 | L241: =+L240+0.01 -> 16.17
B242: 5. Other Loans and Grants #3
A243: =+L243 -> 16.18 | C243: Type and Source | H243: 00:00:00 | L243: =+L241+0.01 -> 16.18
A244: =+L244 -> 16.19 | C244: Application | H244: 00:00:00 | L244: =+L243+0.01 -> 16.19
A245: =+L245 -> 16.2 | C245: Award | H245: 00:00:00 | L245: =+L244+0.01 -> 16.2
A247: =+L247 -> 16.21 | B247: C. PLANS AND SPECS, WORKING DRAWINGS | H247: 00:00:00 | L247: =+L245+0.01 -> 16.21
A249: =+L249 -> 16.22 | B249: D. INITIAL CLOSING AND TRANSFER OF PROPERTY | H249: 00:00:00 | L249: =+L247+0.01 -> 16.22
A251: =+L251 -> 16.23 | B251: E. CONSTRUCTION START | H251: 00:00:00 | L251: =+L249+0.01 -> 16.23
A252: =+L252 -> 16.24 | C252: 10% Construction Complete | H252: 00:00:00 | L252: =+L251+0.01 -> 16.24
A253: =+L253 -> 16.25 | C253: 50% Construction Complete | H253: 00:00:00 | L253: =+L252+0.01 -> 16.25
A254: =+L254 -> 16.26 | C254: 90% Construction Complete | H254: 00:00:00 | L254: =+L253+0.01 -> 16.26
A256: =+L256 -> 16.27 | B256: F. COMPLETION DATE | H256: 00:00:00 | L256: =+L254+0.01 -> 16.27
A258: =+L258 -> 16.28 | B258: G. CERTIFICATE OF OCCUPANCY | H258: 00:00:00 | L258: =+L256+0.01 -> 16.28
A260: =+L260 -> 16.29 | B260: H. PLACED IN SERVICE DATE (FIRST BUILDING) | H260: 00:00:00 | L260: =+L258+0.01 -> 16.29
A262: =+L262 -> 16.3 | B262: I. PLACED IN SERVICE DATE (FINAL BUILDING) | H262: 00:00:00 | L262: =+L260+0.01 -> 16.3
... 593 more rows

Sheet Unit Mix and Rents
A3: =+Instructions!$A$3 -> 2020 Piggyback Mixed Income Resilience (PRIME) Rental Housing Application
A4: =TRIM('Project Description'!$E$79)&" ("&TRIM('Project Description'!$E$81)&" LA), "&'Project Description'!$E$50 -> x (x LA), x
O5: LIHTC Count | P5: Staff Unit Count | Q5: AMI Code | R5: Units Below 60 AMI | S5: Units Below 50 AMI | T5: PSH Units | U5: Non-PSH Units Below 30 AMI | V5: Units Below 20 AMI | W5: Units Below 80 AMI | X5: Units Not AMI Restr. | Y5: LIHTC Income Average Calc | Z5: LIHTC Units at 70 or 80 AMI | AB5: LIHTC Sqft | AC5: Staff Unit Sqft | AD5: Rental Subsidy Count | AE5: AMI Contract Rent Lookup | AF5: Column # | AG5: AMI Limit | AH5: FMR | AI5: Market Rent | AJ5: Min. Sqft | AK5: Min. Baths | AM5: AMI Flag | AN5: Market Flag | AO5: Sqft Flag | AP5: Baths Flag | AQ5: PSH Flag | AR5: FMR Flag | AS5: Staff Unit Flag | AU5: 0 BR Count | AV5: 1 BR Count | AW5: 2 BR Count | AX5: 3 BR Count | AY5: 4 BR Count
A6: Unit Mix, Square Footage and Rents
I7: Rental Subsidy?
A8: # | B8: Unit Type | C8: # BRs | D8: # Baths | E8: Sqft | F8: # Units | G8: LIHTC? | H8: Staff Unit? | J8: PSH? | K8: % AMI Restriction | L8: Rent* | M8: Notes**
A10: 1 | B10: =IF(F10=0,"",TEXT(C10,"0")&" BR "&TEXT(D10,"0.0")&" Bath") ->  | M10: =IF(AM10=1,"1 ","")&IF(AN10=2,"2 ","")&IF(AO10=3,"3 ","")&IF(AP10=4,"4 ","")&IF(AQ10=5,"5 ","")&IF(AR10=6,"6 ","")&IF(AS10=7,"7 ","") ->  | O10: =IF(G10="Yes",$F10,0) -> 0 | P10: =IF(AND(H10="Yes",G10<>"Yes"),$F10,0) -> 0 | Q10: =IF(K10="","",MATCH(K10,Controls!$A$138:$A$146,0)) ->  | R10: =IF(OR($Q10<2,$Q10>6),0,$F10) -> 0 | S10: =IF(OR($Q10<2,$Q10>5),0,$F10) -> 0 | T10: =IF(AND(J10="Yes",OR(C10=0,C10=1),K10=Controls!$A$139),F10,0) -> 0 | U10: =IF(AND(T10=0,OR(K10=Controls!$A$139,K10=Controls!$A$140)),F10,0) -> 0 | V10: =IF($Q10=2,$F10,0) -> 0 | W10: =IF(OR($Q10<2,$Q10>7),0,$F10) -> 0 | X10: =IF($Q10=9,$F10,0) -> 0 | Y10: =IF(OR(O10=0, Q10<2, Q10>8),0,O10*Q10/10) -> 0 | Z10: =IF(OR(O10=0,Q10<7,Q10>8),0,O10) -> 0 | AB10: =IF(G10="Yes",$F10*$E10,0) -> 0 | AC10: =IF(P10=0,0,$F10*$E10) -> 0 | AD10: =IF(I10="Yes",F10,0) -> 0 | AE10: =IF(K10="","",VLOOKUP(K10,'Project Description'!$B$760:$G$767,'Unit Mix and Rents'!AF10,FALSE)) ->  | AF10: =+C10+2 -> 2 | AG10: =IF(ISNA(AE10),9999,AE10) ->  | AH10: =IF(F10=0,0,INDEX('Project Description'!$C$784:$G$785,2,C10+1)) -> 0 | AI10: =IF(F10=0,0,INDEX('Project Description'!$C$776:$G$776,1,'Unit Mix and Rents'!C10+1)) -> 0 | AJ10: =IF(F10=0,0,INDEX($AE$44:$AI$44,1,'Unit Mix and Rents'!$C10+1)) -> 0 | AK10: =IF(F10=0,0,INDEX($AE$44:$AI$45,2,'Unit Mix and Rents'!$C10+1)) -> 0 | AM10: =IF(L10>AG10,1,"") ->  | AN10: =IF(L10>AI10,2,"") ->  | AO10: =IF(E10<AJ10,3,"") ->  | AP10: =IF(D10<AK10,4,"") ->  | AQ10: =IF(J10<>"Yes","",IF(AND(OR(C10=0,C10=1),K10=Controls!$A$139),"",5)) ->  | AR10: =IF(L10>AH10,6,"") ->  | AS10: =IF(H10<>"Yes","",IF(AND(G10<>"Yes",J10<>"Yes",K10="Not AMI Restricted",L10=0),"",7)) ->  | AU10: =IF($C10=0,$F10,0) -> 0 | AV10: =IF($C10=1,$F10,0) -> 0 | AW10: =IF($C10=2,$F10,0) -> 0 | AX10: =IF($C10=3,$F10,0) -> 0 | AY10: =IF($C10=4,$F10,0) -> 0
A11: =+A10+1 -> 2 | B11: =IF(F11=0,"",TEXT(C11,"0")&" BR "&TEXT(D11,"0.0")&" Bath") ->  | M11: =IF(AM11=1,"1 ","")&IF(AN11=2,"2 ","")&IF(AO11=3,"3 ","")&IF(AP11=4,"4 ","")&IF(AQ11=5,"5 ","")&IF(AR11=6,"6 ","")&IF(AS11=7,"7 ","") ->  | O11: =IF(G11="Yes",F11,0) -> 0 | P11: =IF(AND(H11="Yes",G11<>"Yes"),$F11,0) -> 0 | Q11: =IF(K11="","",MATCH(K11,Controls!$A$138:$A$146,0)) ->  | R11: =IF(OR($Q11<2,$Q11>6),0,$F11) -> 0 | S11: =IF(OR($Q11<2,$Q11>5),0,$F11) -> 0 | T11: =IF(J11="Yes",F11,0) -> 0 | U11: =IF(AND(T11=0,OR(K11=Controls!$A$139,K11=Controls!$A$140)),F11,0) -> 0 | V11: =IF($Q11=2,$F11,0) -> 0 | W11: =IF(OR($Q11<2,$Q11>7),0,$F11) -> 0 | X11: =IF($Q11=9,$F11,0) -> 0 | Y11: =IF(OR(O11=0, Q11<2, Q11>8),0,O11*Q11/10) -> 0 | Z11: =IF(OR(O11=0,Q11<7,Q11>8),0,O11) -> 0 | AB11: =IF(G11="Yes",F11*E11,0) -> 0 | AC11: =IF(P11=0,0,$F11*$E11) -> 0 | AD11: =IF(I11="Yes",F11,0) -> 0 | AE11: =IF(K11="","",VLOOKUP(K11,'Project Description'!$B$760:$G$767,'Unit Mix and Rents'!AF11,FALSE)) ->  | AF11: =+C11+2 -> 2 | AG11: =IF(ISNA(AE11),9999,AE11) ->  | AH11: =IF(F11=0,0,INDEX('Project Description'!$C$784:$G$785,2,C11+1)) -> 0 | AI11: =IF(F11=0,0,INDEX('Project Description'!$C$776:$G$776,1,'Unit Mix and Rents'!C11+1)) -> 0 | AJ11: =IF(F11=0,0,INDEX($AE$44:$AI$44,1,'Unit Mix and Rents'!$C11+1)) -> 0 | AK11: =IF(F11=0,0,INDEX($AE$44:$AI$45,2,'Unit Mix and Rents'!$C11+1)) -> 0 | AM11: =IF(L11>AG11,1,"") ->  | AN11: =IF(L11>AI11,2,"") ->  | AO11: =IF(E11<AJ11,3,"") ->  | AP11: =IF(D11<AK11,4,"") ->  | AQ11: =IF(J11<>"Yes","",IF(AND(OR(C11=0,C11=1),K11=Controls!$A$139),"",5)) ->  | AR11: =IF(L11>AH11,6,"") ->  | AU11: =IF($C11=0,$F11,0) -> 0 | AV11: =IF($C11=1,$F11,0) -> 0 | AW11: =IF($C11=2,$F11,0) -> 0 | AX11: =IF($C11=3,$F11,0) -> 0 | AY11: =IF($C11=4,$F11,0) -> 0
A12: =+A11+1 -> 3 | O12: =IF(G12="Yes",F12,0) -> 0 | P12: 0 | Q12: =IF(K12="","",MATCH(K12,Controls!$A$138:$A$146,0)) ->  | R12: =IF(OR($Q12<2,$Q12>6),0,$F12) -> 0 | S12: =IF(OR($Q12<2,$Q12>5),0,$F12) -> 0 | T12: =IF(J12="Yes",F12,0) -> 0 | U12: =IF(AND(T12=0,OR(K12=Controls!$A$139,K12=Controls!$A$140)),F12,0) -> 0 | V12: =IF($Q12=2,$F12,0) -> 0 | W12: =IF(OR($Q12<2,$Q12>7),0,$F12) -> 0 | X12: 0 | Y12: 0 | Z12: 0 | AB12: =IF(G12="Yes",F12*E12,0) -> 0 | AC12: 0 | AD12: =IF(I12="Yes",F12,0) -> 0 | AE12: =IF(K12="","",VLOOKUP(K12,'Project Description'!$B$760:$G$767,'Unit Mix and Rents'!AF12,FALSE)) ->  | AF12: =+C12+2 -> 2 | AG12: =IF(ISNA(AE12),9999,AE12) ->  | AH12: =IF(F12=0,0,INDEX('Project Description'!$C$784:$G$785,2,C12+1)) -> 0 | AI12: =IF(F12=0,0,INDEX('Project Description'!$C$776:$G$776,1,'Unit Mix and Rents'!C12+1)) -> 0 | AJ12: =IF(F12=0,0,INDEX($AE$44:$AI$44,1,'Unit Mix and Rents'!$C12+1)) -> 0 | AK12: =IF(F12=0,0,INDEX($AE$44:$AI$45,2,'Unit Mix and Rents'!$C12+1)) -> 0 | AM12: =IF(L12>AG12,1,"") ->  | AN12: =IF(L12>AI12,2,"") ->  | AO12: =IF(E12<AJ12,3,"") ->  | AP12: =IF(D12<AK12,4,"") ->  | AQ12: =IF(J12<>"Yes","",IF(AND(OR(C12=0,C12=1),K12=Controls!$A$139),"",5)) ->  | AR12: =IF(L12>AH12,6,"") ->  | AU12: 0 | AV12: 0 | AW12: 0 | AX12: 0 | AY12: 0
A13: =+A12+1 -> 4 | O13: =IF(G13="Yes",F13,0) -> 0 | P13: 0 | Q13: =IF(K13="","",MATCH(K13,Controls!$A$138:$A$146,0)) ->  | R13: =IF(OR($Q13<2,$Q13>6),0,$F13) -> 0 | S13: =IF(OR($Q13<2,$Q13>5),0,$F13) -> 0 | T13: =IF(J13="Yes",F13,0) -> 0 | U13: =IF(AND(T13=0,OR(K13=Controls!$A$139,K13=Controls!$A$140)),F13,0) -> 0 | V13: =IF($Q13=2,$F13,0) -> 0 | W13: =IF(OR($Q13<2,$Q13>7),0,$F13) -> 0 | X13: 0 | Y13: 0 | Z13: 0 | AB13: =IF(G13="Yes",F13*E13,0) -> 0 | AC13: 0 | AD13: =IF(I13="Yes",F13,0) -> 0 | AE13: =IF(K13="","",VLOOKUP(K13,'Project Description'!$B$760:$G$767,'Unit Mix and Rents'!AF13,FALSE)) ->  | AF13: =+C13+2 -> 2 | AG13: =IF(ISNA(AE13),9999,AE13) ->  | AH13: =IF(F13=0,0,INDEX('Project Description'!$C$784:$G$785,2,C13+1)) -> 0 | AI13: =IF(F13=0,0,INDEX('Project Description'!$C$776:$G$776,1,'Unit Mix and Rents'!C13+1)) -> 0 | AJ13: =IF(F13=0,0,INDEX($AE$44:$AI$44,1,'Unit Mix and Rents'!$C13+1)) -> 0 | AK13: =IF(F13=0,0,INDEX($AE$44:$AI$45,2,'Unit Mix and Rents'!$C13+1)) -> 0 | AM13: =IF(L13>AG13,1,"") ->  | AN13: =IF(L13>AI13,2,"") ->  | AO13: =IF(E13<AJ13,3,"") ->  | AP13: =IF(D13<AK13,4,"") ->  | AQ13: =IF(J13<>"Yes","",IF(AND(OR(C13=0,C13=1),K13=Controls!$A$139),"",5)) ->  | AR13: =IF(L13>AH13,6,"") ->  | AS13: =IF(H13<>"Yes","",IF(AND(G13<>"Yes",J13<>"Yes",K13="Not AMI Restricted",L13=0),"",7)) ->  | AU13: 0 | AV13: 0 | AW13: 0 | AX13: 0 | AY13: 0
A14: =+A13+1 -> 5 | O14: =IF(G14="Yes",F14,0) -> 0 | P14: 0 | Q14: =IF(K14="","",MATCH(K14,Controls!$A$138:$A$146,0)) ->  | R14: =IF(OR($Q14<2,$Q14>6),0,$F14) -> 0 | S14: =IF(OR($Q14<2,$Q14>5),0,$F14) -> 0 | T14: =IF(J14="Yes",F14,0) -> 0 | U14: =IF(AND(T14=0,OR(K14=Controls!$A$139,K14=Controls!$A$140)),F14,0) -> 0 | V14: =IF($Q14=2,$F14,0) -> 0 | W14: =IF(OR($Q14<2,$Q14>7),0,$F14) -> 0 | X14: 0 | Y14: 0 | Z14: 0 | AB14: =IF(G14="Yes",F14*E14,0) -> 0 | AC14: 0 | AD14: =IF(I14="Yes",F14,0) -> 0 | AE14: =IF(K14="","",VLOOKUP(K14,'Project Description'!$B$760:$G$767,'Unit Mix and Rents'!AF14,FALSE)) ->  | AF14: =+C14+2 -> 2 | AG14: =IF(ISNA(AE14),9999,AE14) ->  | AH14: =IF(F14=0,0,INDEX('Project Description'!$C$784:$G$785,2,C14+1)) -> 0 | AI14: =IF(F14=0,0,INDEX('Project Description'!$C$776:$G$776,1,'Unit Mix and Rents'!C14+1)) -> 0 | AJ14: =IF(F14=0,0,INDEX($AE$44:$AI$44,1,'Unit Mix and Rents'!$C14+1)) -> 0 | AK14: =IF(F14=0,0,INDEX($AE$44:$AI$45,2,'Unit Mix and Rents'!$C14+1)) -> 0 | AM14: =IF(L14>AG14,1,"") ->  | AN14: =IF(L14>AI14,2,"") ->  | AO14: =IF(E14<AJ14,3,"") ->  | AP14: =IF(D14<AK14,4,"") ->  | AQ14: =IF(J14<>"Yes","",IF(AND(OR(C14=0,C14=1),K14=Controls!$A$139),"",5)) ->  | AR14: =IF(L14>AH14,6,"") ->  | AS14: =IF(H14<>"Yes","",IF(AND(G14<>"Yes",J14<>"Yes",K14="Not AMI Restricted",L14=0),"",7)) ->  | AU14: 0 | AV14: 0 | AW14: 0 | AX14: 0 | AY14: 0
A15: 6 | O15: 0 | P15: 0 | Q15: =IF(K15="","",MATCH(K15,Controls!$A$138:$A$146,0)) ->  | R15: 0 | S15: 0 | T15: 0 | U15: =IF(AND(T15=0,OR(K15=Controls!$A$139,K15=Controls!$A$140)),F15,0) -> 0 | V15: 0 | W15: 0 | X15: 0 | Y15: 0 | Z15: 0 | AB15: 0 | AC15: 0 | AD15: 0 | AE15: =IF(K15="","",VLOOKUP(K15,'Project Description'!$B$760:$G$767,'Unit Mix and Rents'!AF15,FALSE)) ->  | AF15: 2 | AH15: =IF(F15=0,0,INDEX('Project Description'!$C$784:$G$785,2,C15+1)) -> 0 | AI15: =IF(F15=0,0,INDEX('Project Description'!$C$776:$G$776,1,'Unit Mix and Rents'!C15+1)) -> 0 | AJ15: =IF(F15=0,0,INDEX($AE$44:$AI$44,1,'Unit Mix and Rents'!$C15+1)) -> 0 | AK15: =IF(F15=0,0,INDEX($AE$44:$AI$45,2,'Unit Mix and Rents'!$C15+1)) -> 0 | AQ15: =IF(J15<>"Yes","",IF(AND(OR(C15=0,C15=1),K15=Controls!$A$139),"",5)) ->  | AU15: 0 | AV15: 0 | AW15: 0 | AX15: 0 | AY15: 0
A16: 7 | O16: 0 | P16: 0 | Q16: =IF(K16="","",MATCH(K16,Controls!$A$138:$A$146,0)) ->  | R16: 0 | S16: 0 | T16: 0 | U16: =IF(AND(T16=0,OR(K16=Controls!$A$139,K16=Controls!$A$140)),F16,0) -> 0 | V16: 0 | W16: 0 | X16: 0 | Y16: 0 | Z16: 0 | AB16: 0 | AC16: 0 | AD16: 0 | AE16: =IF(K16="","",VLOOKUP(K16,'Project Description'!$B$760:$G$767,'Unit Mix and Rents'!AF16,FALSE)) ->  | AF16: 2 | AH16: =IF(F16=0,0,INDEX('Project Description'!$C$784:$G$785,2,C16+1)) -> 0 | AI16: =IF(F16=0,0,INDEX('Project Description'!$C$776:$G$776,1,'Unit Mix and Rents'!C16+1)) -> 0 | AJ16: =IF(F16=0,0,INDEX($AE$44:$AI$44,1,'Unit Mix and Rents'!$C16+1)) -> 0 | AK16: =IF(F16=0,0,INDEX($AE$44:$AI$45,2,'Unit Mix and Rents'!$C16+1)) -> 0 | AQ16: =IF(J16<>"Yes","",IF(AND(OR(C16=0,C16=1),K16=Controls!$A$139),"",5)) ->  | AU16: 0 | AV16: 0 | AW16: 0 | AX16: 0 | AY16: 0
A17: 8 | O17: 0 | P17: 0 | Q17: =IF(K17="","",MATCH(K17,Controls!$A$138:$A$146,0)) ->  | R17: 0 | S17: 0 | T17: 0 | U17: =IF(AND(T17=0,OR(K17=Controls!$A$139,K17=Controls!$A$140)),F17,0) -> 0 | V17: 0 | W17: 0 | X17: 0 | Y17: 0 | Z17: 0 | AB17: 0 | AC17: 0 | AD17: 0 | AE17: =IF(K17="","",VLOOKUP(K17,'Project Description'!$B$760:$G$767,'Unit Mix and Rents'!AF17,FALSE)) ->  | AF17: 2 | AH17: =IF(F17=0,0,INDEX('Project Description'!$C$784:$G$785,2,C17+1)) -> 0 | AI17: =IF(F17=0,0,INDEX('Project Description'!$C$776:$G$776,1,'Unit Mix and Rents'!C17+1)) -> 0 | AJ17: =IF(F17=0,0,INDEX($AE$44:$AI$44,1,'Unit Mix and Rents'!$C17+1)) -> 0 | AK17: =IF(F17=0,0,INDEX($AE$44:$AI$45,2,'Unit Mix and Rents'!$C17+1)) -> 0 | AQ17: =IF(J17<>"Yes","",IF(AND(OR(C17=0,C17=1),K17=Controls!$A$139),"",5)) ->  | AU17: 0 | AV17: 0 | AW17: 0 | AX17: 0 | AY17: 0
A18: 9 | O18: 0 | P18: 0 | Q18: =IF(K18="","",MATCH(K18,Controls!$A$138:$A$146,0)) ->  | R18: 0 | S18: 0 | T18: 0 | U18: =IF(AND(T18=0,OR(K18=Controls!$A$139,K18=Controls!$A$140)),F18,0) -> 0 | V18: 0 | W18: 0 | X18: 0 | Y18: 0 | Z18: 0 | AB18: 0 | AC18: 0 | AD18: 0 | AE18: =IF(K18="","",VLOOKUP(K18,'Project Description'!$B$760:$G$767,'Unit Mix and Rents'!AF18,FALSE)) ->  | AF18: 2 | AH18: =IF(F18=0,0,INDEX('Project Description'!$C$784:$G$785,2,C18+1)) -> 0 | AI18: =IF(F18=0,0,INDEX('Project Description'!$C$776:$G$776,1,'Unit Mix and Rents'!C18+1)) -> 0 | AJ18: =IF(F18=0,0,INDEX($AE$44:$AI$44,1,'Unit Mix and Rents'!$C18+1)) -> 0 | AK18: =IF(F18=0,0,INDEX($AE$44:$AI$45,2,'Unit Mix and Rents'!$C18+1)) -> 0 | AQ18: =IF(J18<>"Yes","",IF(AND(OR(C18=0,C18=1),K18=Controls!$A$139),"",5)) ->  | AU18: 0 | AV18: 0 | AW18: 0 | AX18: 0 | AY18: 0
A19: 10 | O19: 0 | P19: 0 | Q19: =IF(K19="","",MATCH(K19,Controls!$A$138:$A$146,0)) ->  | R19: 0 | S19: 0 | T19: 0 | U19: =IF(AND(T19=0,OR(K19=Controls!$A$139,K19=Controls!$A$140)),F19,0) -> 0 | V19: 0 | W19: 0 | X19: 0 | Y19: 0 | Z19: 0 | AB19: 0 | AC19: 0 | AD19: 0 | AE19: =IF(K19="","",VLOOKUP(K19,'Project Description'!$B$760:$G$767,'Unit Mix and Rents'!AF19,FALSE)) ->  | AF19: 2 | AH19: =IF(F19=0,0,INDEX('Project Description'!$C$784:$G$785,2,C19+1)) -> 0 | AI19: =IF(F19=0,0,INDEX('Project Description'!$C$776:$G$776,1,'Unit Mix and Rents'!C19+1)) -> 0 | AJ19: =IF(F19=0,0,INDEX($AE$44:$AI$44,1,'Unit Mix and Rents'!$C19+1)) -> 0 | AK19: =IF(F19=0,0,INDEX($AE$44:$AI$45,2,'Unit Mix and Rents'!$C19+1)) -> 0 | AQ19: =IF(J19<>"Yes","",IF(AND(OR(C19=0,C19=1),K19=Controls!$A$139),"",5)) ->  | AU19: 0 | AV19: 0 | AW19: 0 | AX19: 0 | AY19: 0
A20: 11 | O20: 0 | P20: 0 | Q20: =IF(K20="","",MATCH(K20,Controls!$A$138:$A$146,0)) ->  | R20: 0 | S20: 0 | T20: 0 | U20: =IF(AND(T20=0,OR(K20=Controls!$A$139,K20=Controls!$A$140)),F20,0) -> 0 | V20: 0 | W20: 0 | X20: 0 | Y20: 0 | Z20: 0 | AB20: 0 | AC20: 0 | AD20: 0 | AE20: =IF(K20="","",VLOOKUP(K20,'Project Description'!$B$760:$G$767,'Unit Mix and Rents'!AF20,FALSE)) ->  | AF20: 2 | AH20: =IF(F20=0,0,INDEX('Project Description'!$C$784:$G$785,2,C20+1)) -> 0 | AI20: =IF(F20=0,0,INDEX('Project Description'!$C$776:$G$776,1,'Unit Mix and Rents'!C20+1)) -> 0 | AJ20: =IF(F20=0,0,INDEX($AE$44:$AI$44,1,'Unit Mix and Rents'!$C20+1)) -> 0 | AK20: =IF(F20=0,0,INDEX($AE$44:$AI$45,2,'Unit Mix and Rents'!$C20+1)) -> 0 | AQ20: =IF(J20<>"Yes","",IF(AND(OR(C20=0,C20=1),K20=Controls!$A$139),"",5)) ->  | AU20: 0 | AV20: 0 | AW20: 0 | AX20: 0 | AY20: 0
A21: 12 | O21: 0 | P21: 0 | Q21: =IF(K21="","",MATCH(K21,Controls!$A$138:$A$146,0)) ->  | R21: 0 | S21: 0 | T21: 0 | U21: =IF(AND(T21=0,OR(K21=Controls!$A$139,K21=Controls!$A$140)),F21,0) -> 0 | V21: 0 | W21: 0 | X21: 0 | Y21: 0 | Z21: 0 | AB21: 0 | AC21: 0 | AD21: 0 | AE21: =IF(K21="","",VLOOKUP(K21,'Project Description'!$B$760:$G$767,'Unit Mix and Rents'!AF21,FALSE)) ->  | AF21: 2 | AH21: =IF(F21=0,0,INDEX('Project Description'!$C$784:$G$785,2,C21+1)) -> 0 | AI21: =IF(F21=0,0,INDEX('Project Description'!$C$776:$G$776,1,'Unit Mix and Rents'!C21+1)) -> 0 | AJ21: =IF(F21=0,0,INDEX($AE$44:$AI$44,1,'Unit Mix and Rents'!$C21+1)) -> 0 | AK21: =IF(F21=0,0,INDEX($AE$44:$AI$45,2,'Unit Mix and Rents'!$C21+1)) -> 0 | AQ21: =IF(J21<>"Yes","",IF(AND(OR(C21=0,C21=1),K21=Controls!$A$139),"",5)) ->  | AU21: 0 | AV21: 0 | AW21: 0 | AX21: 0 | AY21: 0
A22: 13 | O22: 0 | P22: 0 | Q22: =IF(K22="","",MATCH(K22,Controls!$A$138:$A$146,0)) ->  | R22: 0 | S22: 0 | T22: 0 | U22: =IF(AND(T22=0,OR(K22=Controls!$A$139,K22=Controls!$A$140)),F22,0) -> 0 | V22: 0 | W22: 0 | X22: 0 | Y22: 0 | Z22: 0 | AB22: 0 | AC22: 0 | AD22: 0 | AE22: =IF(K22="","",VLOOKUP(K22,'Project Description'!$B$760:$G$767,'Unit Mix and Rents'!AF22,FALSE)) ->  | AF22: 2 | AH22: =IF(F22=0,0,INDEX('Project Description'!$C$784:$G$785,2,C22+1)) -> 0 | AI22: =IF(F22=0,0,INDEX('Project Description'!$C$776:$G$776,1,'Unit Mix and Rents'!C22+1)) -> 0 | AJ22: =IF(F22=0,0,INDEX($AE$44:$AI$44,1,'Unit Mix and Rents'!$C22+1)) -> 0 | AK22: =IF(F22=0,0,INDEX($AE$44:$AI$45,2,'Unit Mix and Rents'!$C22+1)) -> 0 | AQ22: =IF(J22<>"Yes","",IF(AND(OR(C22=0,C22=1),K22=Controls!$A$139),"",5)) ->  | AU22: 0 | AV22: 0 | AW22: 0 | AX22: 0 | AY22: 0
A23: 14 | O23: 0 | P23: 0 | Q23: =IF(K23="","",MATCH(K23,Controls!$A$138:$A$146,0)) ->  | R23: 0 | S23: 0 | T23: 0 | U23: =IF(AND(T23=0,OR(K23=Controls!$A$139,K23=Controls!$A$140)),F23,0) -> 0 | V23: 0 | W23: 0 | X23: 0 | Y23: 0 | Z23: 0 | AB23: 0 | AC23: 0 | AD23: 0 | AE23: =IF(K23="","",VLOOKUP(K23,'Project Description'!$B$760:$G$767,'Unit Mix and Rents'!AF23,FALSE)) ->  | AF23: 2 | AH23: =IF(F23=0,0,INDEX('Project Description'!$C$784:$G$785,2,C23+1)) -> 0 | AI23: =IF(F23=0,0,INDEX('Project Description'!$C$776:$G$776,1,'Unit Mix and Rents'!C23+1)) -> 0 | AJ23: =IF(F23=0,0,INDEX($AE$44:$AI$44,1,'Unit Mix and Rents'!$C23+1)) -> 0 | AK23: =IF(F23=0,0,INDEX($AE$44:$AI$45,2,'Unit Mix and Rents'!$C23+1)) -> 0 | AQ23: =IF(J23<>"Yes","",IF(AND(OR(C23=0,C23=1),K23=Controls!$A$139),"",5)) ->  | AU23: 0 | AV23: 0 | AW23: 0 | AX23: 0 | AY23: 0
A24: 15 | O24: 0 | P24: 0 | Q24: =IF(K24="","",MATCH(K24,Controls!$A$138:$A$146,0)) ->  | R24: 0 | S24: 0 | T24: 0 | U24: =IF(AND(T24=0,OR(K24=Controls!$A$139,K24=Controls!$A$140)),F24,0) -> 0 | V24: 0 | W24: 0 | X24: 0 | Y24: 0 | Z24: 0 | AB24: 0 | AC24: 0 | AD24: 0 | AE24: =IF(K24="","",VLOOKUP(K24,'Project Description'!$B$760:$G$767,'Unit Mix and Rents'!AF24,FALSE)) ->  | AF24: 2 | AH24: =IF(F24=0,0,INDEX('Project Description'!$C$784:$G$785,2,C24+1)) -> 0 | AI24: =IF(F24=0,0,INDEX('Project Description'!$C$776:$G$776,1,'Unit Mix and Rents'!C24+1)) -> 0 | AJ24: =IF(F24=0,0,INDEX($AE$44:$AI$44,1,'Unit Mix and Rents'!$C24+1)) -> 0 | AK24: =IF(F24=0,0,INDEX($AE$44:$AI$45,2,'Unit Mix and Rents'!$C24+1)) -> 0 | AQ24: =IF(J24<>"Yes","",IF(AND(OR(C24=0,C24=1),K24=Controls!$A$139),"",5)) ->  | AU24: 0 | AV24: 0 | AW24: 0 | AX24: 0 | AY24: 0
A25: 16 | O25: 0 | P25: 0 | Q25: =IF(K25="","",MATCH(K25,Controls!$A$138:$A$146,0)) ->  | R25: 0 | S25: 0 | T25: 0 | U25: =IF(AND(T25=0,OR(K25=Controls!$A$139,K25=Controls!$A$140)),F25,0) -> 0 | V25: 0 | W25: 0 | X25: 0 | Y25: 0 | Z25: 0 | AB25: 0 | AC25: 0 | AD25: 0 | AE25: =IF(K25="","",VLOOKUP(K25,'Project Description'!$B$760:$G$767,'Unit Mix and Rents'!AF25,FALSE)) ->  | AF25: 2 | AH25: =IF(F25=0,0,INDEX('Project Description'!$C$784:$G$785,2,C25+1)) -> 0 | AI25: =IF(F25=0,0,INDEX('Project Description'!$C$776:$G$776,1,'Unit Mix and Rents'!C25+1)) -> 0 | AJ25: =IF(F25=0,0,INDEX($AE$44:$AI$44,1,'Unit Mix and Rents'!$C25+1)) -> 0 | AK25: =IF(F25=0,0,INDEX($AE$44:$AI$45,2,'Unit Mix and Rents'!$C25+1)) -> 0 | AQ25: =IF(J25<>"Yes","",IF(AND(OR(C25=0,C25=1),K25=Controls!$A$139),"",5)) ->  | AU25: 0 | AV25: 0 | AW25: 0 | AX25: 0 | AY25: 0
A26: 17 | O26: 0 | P26: 0 | Q26: =IF(K26="","",MATCH(K26,Controls!$A$138:$A$146,0)) ->  | R26: 0 | S26: 0 | T26: 0 | U26: =IF(AND(T26=0,OR(K26=Controls!$A$139,K26=Controls!$A$140)),F26,0) -> 0 | V26: 0 | W26: 0 | X26: 0 | Y26: 0 | Z26: 0 | AB26: 0 | AC26: 0 | AD26: 0 | AE26: =IF(K26="","",VLOOKUP(K26,'Project Description'!$B$760:$G$767,'Unit Mix and Rents'!AF26,FALSE)) ->  | AF26: 2 | AH26: =IF(F26=0,0,INDEX('Project Description'!$C$784:$G$785,2,C26+1)) -> 0 | AI26: =IF(F26=0,0,INDEX('Project Description'!$C$776:$G$776,1,'Unit Mix and Rents'!C26+1)) -> 0 | AJ26: =IF(F26=0,0,INDEX($AE$44:$AI$44,1,'Unit Mix and Rents'!$C26+1)) -> 0 | AK26: =IF(F26=0,0,INDEX($AE$44:$AI$45,2,'Unit Mix and Rents'!$C26+1)) -> 0 | AQ26: =IF(J26<>"Yes","",IF(AND(OR(C26=0,C26=1),K26=Controls!$A$139),"",5)) ->  | AU26: 0 | AV26: 0 | AW26: 0 | AX26: 0 | AY26: 0
A27: 18 | O27: 0 | P27: 0 | Q27: =IF(K27="","",MATCH(K27,Controls!$A$138:$A$146,0)) ->  | R27: 0 | S27: 0 | T27: 0 | U27: =IF(AND(T27=0,OR(K27=Controls!$A$139,K27=Controls!$A$140)),F27,0) -> 0 | V27: 0 | W27: 0 | X27: 0 | Y27: 0 | Z27: 0 | AB27: 0 | AC27: 0 | AD27: 0 | AE27: =IF(K27="","",VLOOKUP(K27,'Project Description'!$B$760:$G$767,'Unit Mix and Rents'!AF27,FALSE)) ->  | AF27: 2 | AH27: =IF(F27=0,0,INDEX('Project Description'!$C$784:$G$785,2,C27+1)) -> 0 | AI27: =IF(F27=0,0,INDEX('Project Description'!$C$776:$G$776,1,'Unit Mix and Rents'!C27+1)) -> 0 | AJ27: =IF(F27=0,0,INDEX($AE$44:$AI$44,1,'Unit Mix and Rents'!$C27+1)) -> 0 | AK27: =IF(F27=0,0,INDEX($AE$44:$AI$45,2,'Unit Mix and Rents'!$C27+1)) -> 0 | AQ27: =IF(J27<>"Yes","",IF(AND(OR(C27=0,C27=1),K27=Controls!$A$139),"",5)) ->  | AU27: 0 | AV27: 0 | AW27: 0 | AX27: 0 | AY27: 0
A28: 19 | O28: 0 | P28: 0 | Q28: =IF(K28="","",MATCH(K28,Controls!$A$138:$A$146,0)) ->  | R28: 0 | S28: 0 | T28: 0 | U28: =IF(AND(T28=0,OR(K28=Controls!$A$139,K28=Controls!$A$140)),F28,0) -> 0 | V28: 0 | W28: 0 | X28: 0 | Y28: 0 | Z28: 0 | AB28: 0 | AC28: 0 | AD28: 0 | AE28: =IF(K28="","",VLOOKUP(K28,'Project Description'!$B$760:$G$767,'Unit Mix and Rents'!AF28,FALSE)) ->  | AF28: 2 | AH28: =IF(F28=0,0,INDEX('Project Description'!$C$784:$G$785,2,C28+1)) -> 0 | AI28: =IF(F28=0,0,INDEX('Project Description'!$C$776:$G$776,1,'Unit Mix and Rents'!C28+1)) -> 0 | AJ28: =IF(F28=0,0,INDEX($AE$44:$AI$44,1,'Unit Mix and Rents'!$C28+1)) -> 0 | AK28: =IF(F28=0,0,INDEX($AE$44:$AI$45,2,'Unit Mix and Rents'!$C28+1)) -> 0 | AQ28: =IF(J28<>"Yes","",IF(AND(OR(C28=0,C28=1),K28=Controls!$A$139),"",5)) ->  | AU28: 0 | AV28: 0 | AW28: 0 | AX28: 0 | AY28: 0
A29: 20 | O29: 0 | P29: 0 | Q29: =IF(K29="","",MATCH(K29,Controls!$A$138:$A$146,0)) ->  | R29: 0 | S29: 0 | T29: 0 | U29: =IF(AND(T29=0,OR(K29=Controls!$A$139,K29=Controls!$A$140)),F29,0) -> 0 | V29: 0 | W29: 0 | X29: 0 | Y29: 0 | Z29: 0 | AB29: 0 | AC29: 0 | AD29: 0 | AE29: =IF(K29="","",VLOOKUP(K29,'Project Description'!$B$760:$G$767,'Unit Mix and Rents'!AF29,FALSE)) ->  | AF29: 2 | AH29: =IF(F29=0,0,INDEX('Project Description'!$C$784:$G$785,2,C29+1)) -> 0 | AI29: =IF(F29=0,0,INDEX('Project Description'!$C$776:$G$776,1,'Unit Mix and Rents'!C29+1)) -> 0 | AJ29: =IF(F29=0,0,INDEX($AE$44:$AI$44,1,'Unit Mix and Rents'!$C29+1)) -> 0 | AK29: =IF(F29=0,0,INDEX($AE$44:$AI$45,2,'Unit Mix and Rents'!$C29+1)) -> 0 | AQ29: =IF(J29<>"Yes","",IF(AND(OR(C29=0,C29=1),K29=Controls!$A$139),"",5)) ->  | AU29: 0 | AV29: 0 | AW29: 0 | AX29: 0 | AY29: 0
A30: 21 | O30: 0 | P30: 0 | Q30: =IF(K30="","",MATCH(K30,Controls!$A$138:$A$146,0)) ->  | R30: 0 | S30: 0 | T30: 0 | U30: =IF(AND(T30=0,OR(K30=Controls!$A$139,K30=Controls!$A$140)),F30,0) -> 0 | V30: 0 | W30: 0 | X30: 0 | Y30: 0 | Z30: 0 | AB30: 0 | AC30: 0 | AD30: 0 | AE30: =IF(K30="","",VLOOKUP(K30,'Project Description'!$B$760:$G$767,'Unit Mix and Rents'!AF30,FALSE)) ->  | AF30: 2 | AH30: =IF(F30=0,0,INDEX('Project Description'!$C$784:$G$785,2,C30+1)) -> 0 | AI30: =IF(F30=0,0,INDEX('Project Description'!$C$776:$G$776,1,'Unit Mix and Rents'!C30+1)) -> 0 | AJ30: =IF(F30=0,0,INDEX($AE$44:$AI$44,1,'Unit Mix and Rents'!$C30+1)) -> 0 | AK30: =IF(F30=0,0,INDEX($AE$44:$AI$45,2,'Unit Mix and Rents'!$C30+1)) -> 0 | AQ30: =IF(J30<>"Yes","",IF(AND(OR(C30=0,C30=1),K30=Controls!$A$139),"",5)) ->  | AU30: 0 | AV30: 0 | AW30: 0 | AX30: 0 | AY30: 0
A31: 22 | O31: 0 | P31: 0 | Q31: =IF(K31="","",MATCH(K31,Controls!$A$138:$A$146,0)) ->  | R31: 0 | S31: 0 | T31: 0 | U31: =IF(AND(T31=0,OR(K31=Controls!$A$139,K31=Controls!$A$140)),F31,0) -> 0 | V31: 0 | W31: 0 | X31: 0 | Y31: 0 | Z31: 0 | AB31: 0 | AC31: 0 | AD31: 0 | AE31: =IF(K31="","",VLOOKUP(K31,'Project Description'!$B$760:$G$767,'Unit Mix and Rents'!AF31,FALSE)) ->  | AF31: 2 | AH31: =IF(F31=0,0,INDEX('Project Description'!$C$784:$G$785,2,C31+1)) -> 0 | AI31: =IF(F31=0,0,INDEX('Project Description'!$C$776:$G$776,1,'Unit Mix and Rents'!C31+1)) -> 0 | AJ31: =IF(F31=0,0,INDEX($AE$44:$AI$44,1,'Unit Mix and Rents'!$C31+1)) -> 0 | AK31: =IF(F31=0,0,INDEX($AE$44:$AI$45,2,'Unit Mix and Rents'!$C31+1)) -> 0 | AQ31: =IF(J31<>"Yes","",IF(AND(OR(C31=0,C31=1),K31=Controls!$A$139),"",5)) ->  | AU31: 0 | AV31: 0 | AW31: 0 | AX31: 0 | AY31: 0
A32: 23 | O32: 0 | P32: 0 | Q32: =IF(K32="","",MATCH(K32,Controls!$A$138:$A$146,0)) ->  | R32: 0 | S32: 0 | T32: 0 | U32: =IF(AND(T32=0,OR(K32=Controls!$A$139,K32=Controls!$A$140)),F32,0) -> 0 | V32: 0 | W32: 0 | X32: 0 | Y32: 0 | Z32: 0 | AB32: 0 | AC32: 0 | AD32: 0 | AE32: =IF(K32="","",VLOOKUP(K32,'Project Description'!$B$760:$G$767,'Unit Mix and Rents'!AF32,FALSE)) ->  | AF32: 2 | AH32: =IF(F32=0,0,INDEX('Project Description'!$C$784:$G$785,2,C32+1)) -> 0 | AI32: =IF(F32=0,0,INDEX('Project Description'!$C$776:$G$776,1,'Unit Mix and Rents'!C32+1)) -> 0 | AJ32: =IF(F32=0,0,INDEX($AE$44:$AI$44,1,'Unit Mix and Rents'!$C32+1)) -> 0 | AK32: =IF(F32=0,0,INDEX($AE$44:$AI$45,2,'Unit Mix and Rents'!$C32+1)) -> 0 | AQ32: =IF(J32<>"Yes","",IF(AND(OR(C32=0,C32=1),K32=Controls!$A$139),"",5)) ->  | AU32: 0 | AV32: 0 | AW32: 0 | AX32: 0 | AY32: 0
A33: 24 | O33: =IF(G33="Yes",F33,0) -> 0 | P33: 0 | Q33: =IF(K33="","",MATCH(K33,Controls!$A$138:$A$146,0)) ->  | R33: 0 | S33: 0 | T33: =IF(J33="Yes",F33,0) -> 0 | U33: =IF(AND(T33=0,OR(K33=Controls!$A$139,K33=Controls!$A$140)),F33,0) -> 0 | V33: 0 | W33: 0 | X33: 0 | Y33: 0 | Z33: 0 | AB33: =IF(G33="Yes",F33*E33,0) -> 0 | AC33: 0 | AD33: =IF(I33="Yes",F33,0) -> 0 | AE33: =IF(K33="","",VLOOKUP(K33,'Project Description'!$B$760:$G$767,'Unit Mix and Rents'!AF33,FALSE)) ->  | AF33: =+C33+2 -> 2 | AG33: =IF(ISNA(AE33),9999,AE33) ->  | AH33: =IF(F33=0,0,INDEX('Project Description'!$C$784:$G$785,2,C33+1)) -> 0 | AI33: =IF(F33=0,0,INDEX('Project Description'!$C$776:$G$776,1,'Unit Mix and Rents'!C33+1)) -> 0 | AJ33: =IF(F33=0,0,INDEX($AE$44:$AI$44,1,'Unit Mix and Rents'!$C33+1)) -> 0 | AK33: =IF(F33=0,0,INDEX($AE$44:$AI$45,2,'Unit Mix and Rents'!$C33+1)) -> 0 | AM33: =IF(L33>AG33,1,"") ->  | AN33: =IF(L33>AI33,2,"") ->  | AO33: =IF(E33<AJ33,3,"") ->  | AP33: =IF(D33<AK33,4,"") ->  | AQ33: =IF(J33<>"Yes","",IF(AND(OR(C33=0,C33=1),K33=Controls!$A$139),"",5)) ->  | AR33: =IF(L33>AH33,6,"") ->  | AU33: 0 | AV33: 0 | AW33: 0 | AX33: 0 | AY33: 0
A34: 25 | O34: 0 | P34: 0 | Q34: =IF(K34="","",MATCH(K34,Controls!$A$138:$A$146,0)) ->  | R34: 0 | S34: 0 | T34: 0 | U34: =IF(AND(T34=0,OR(K34=Controls!$A$139,K34=Controls!$A$140)),F34,0) -> 0 | V34: 0 | W34: 0 | X34: 0 | Y34: 0 | Z34: 0 | AB34: 0 | AC34: 0 | AD34: 0 | AE34: =IF(K34="","",VLOOKUP(K34,'Project Description'!$B$760:$G$767,'Unit Mix and Rents'!AF34,FALSE)) ->  | AF34: 2 | AH34: =IF(F34=0,0,INDEX('Project Description'!$C$784:$G$785,2,C34+1)) -> 0 | AI34: =IF(F34=0,0,INDEX('Project Description'!$C$776:$G$776,1,'Unit Mix and Rents'!C34+1)) -> 0 | AJ34: =IF(F34=0,0,INDEX($AE$44:$AI$44,1,'Unit Mix and Rents'!$C34+1)) -> 0 | AK34: =IF(F34=0,0,INDEX($AE$44:$AI$45,2,'Unit Mix and Rents'!$C34+1)) -> 0 | AQ34: =IF(J34<>"Yes","",IF(AND(OR(C34=0,C34=1),K34=Controls!$A$139),"",5)) ->  | AU34: 0 | AV34: 0 | AW34: 0 | AX34: 0 | AY34: 0
A35: 26 | O35: 0 | P35: 0 | Q35: =IF(K35="","",MATCH(K35,Controls!$A$138:$A$146,0)) ->  | R35: 0 | S35: 0 | T35: 0 | U35: =IF(AND(T35=0,OR(K35=Controls!$A$139,K35=Controls!$A$140)),F35,0) -> 0 | V35: 0 | W35: 0 | X35: 0 | Y35: 0 | Z35: 0 | AB35: 0 | AC35: 0 | AD35: 0 | AE35: =IF(K35="","",VLOOKUP(K35,'Project Description'!$B$760:$G$767,'Unit Mix and Rents'!AF35,FALSE)) ->  | AF35: 2 | AH35: =IF(F35=0,0,INDEX('Project Description'!$C$784:$G$785,2,C35+1)) -> 0 | AI35: =IF(F35=0,0,INDEX('Project Description'!$C$776:$G$776,1,'Unit Mix and Rents'!C35+1)) -> 0 | AJ35: =IF(F35=0,0,INDEX($AE$44:$AI$44,1,'Unit Mix and Rents'!$C35+1)) -> 0 | AK35: =IF(F35=0,0,INDEX($AE$44:$AI$45,2,'Unit Mix and Rents'!$C35+1)) -> 0 | AQ35: =IF(J35<>"Yes","",IF(AND(OR(C35=0,C35=1),K35=Controls!$A$139),"",5)) ->  | AU35: 0 | AV35: 0 | AW35: 0 | AX35: 0 | AY35: 0
A36: 27 | O36: 0 | P36: 0 | Q36: =IF(K36="","",MATCH(K36,Controls!$A$138:$A$146,0)) ->  | R36: 0 | S36: 0 | T36: 0 | U36: =IF(AND(T36=0,OR(K36=Controls!$A$139,K36=Controls!$A$140)),F36,0) -> 0 | V36: 0 | W36: 0 | X36: 0 | Y36: 0 | Z36: 0 | AB36: 0 | AC36: 0 | AD36: 0 | AE36: =IF(K36="","",VLOOKUP(K36,'Project Description'!$B$760:$G$767,'Unit Mix and Rents'!AF36,FALSE)) ->  | AF36: 2 | AH36: =IF(F36=0,0,INDEX('Project Description'!$C$784:$G$785,2,C36+1)) -> 0 | AI36: =IF(F36=0,0,INDEX('Project Description'!$C$776:$G$776,1,'Unit Mix and Rents'!C36+1)) -> 0 | AJ36: =IF(F36=0,0,INDEX($AE$44:$AI$44,1,'Unit Mix and Rents'!$C36+1)) -> 0 | AK36: =IF(F36=0,0,INDEX($AE$44:$AI$45,2,'Unit Mix and Rents'!$C36+1)) -> 0 | AQ36: =IF(J36<>"Yes","",IF(AND(OR(C36=0,C36=1),K36=Controls!$A$139),"",5)) ->  | AU36: 0 | AV36: 0 | AW36: 0 | AX36: 0 | AY36: 0
A37: 28 | O37: 0 | P37: 0 | Q37: =IF(K37="","",MATCH(K37,Controls!$A$138:$A$146,0)) ->  | R37: 0 | S37: 0 | T37: 0 | U37: =IF(AND(T37=0,OR(K37=Controls!$A$139,K37=Controls!$A$140)),F37,0) -> 0 | V37: 0 | W37: 0 | X37: 0 | Y37: 0 | Z37: 0 | AB37: 0 | AC37: 0 | AD37: 0 | AE37: =IF(K37="","",VLOOKUP(K37,'Project Description'!$B$760:$G$767,'Unit Mix and Rents'!AF37,FALSE)) ->  | AF37: 2 | AH37: =IF(F37=0,0,INDEX('Project Description'!$C$784:$G$785,2,C37+1)) -> 0 | AI37: =IF(F37=0,0,INDEX('Project Description'!$C$776:$G$776,1,'Unit Mix and Rents'!C37+1)) -> 0 | AJ37: =IF(F37=0,0,INDEX($AE$44:$AI$44,1,'Unit Mix and Rents'!$C37+1)) -> 0 | AK37: =IF(F37=0,0,INDEX($AE$44:$AI$45,2,'Unit Mix and Rents'!$C37+1)) -> 0 | AQ37: =IF(J37<>"Yes","",IF(AND(OR(C37=0,C37=1),K37=Controls!$A$139),"",5)) ->  | AU37: 0 | AV37: 0 | AW37: 0 | AX37: 0 | AY37: 0
A38: 29 | O38: 0 | P38: 0 | Q38: =IF(K38="","",MATCH(K38,Controls!$A$138:$A$146,0)) ->  | R38: 0 | S38: 0 | T38: 0 | U38: =IF(AND(T38=0,OR(K38=Controls!$A$139,K38=Controls!$A$140)),F38,0) -> 0 | V38: 0 | W38: 0 | X38: 0 | Y38: 0 | Z38: 0 | AB38: 0 | AC38: 0 | AD38: 0 | AE38: =IF(K38="","",VLOOKUP(K38,'Project Description'!$B$760:$G$767,'Unit Mix and Rents'!AF38,FALSE)) ->  | AF38: 2 | AH38: =IF(F38=0,0,INDEX('Project Description'!$C$784:$G$785,2,C38+1)) -> 0 | AI38: =IF(F38=0,0,INDEX('Project Description'!$C$776:$G$776,1,'Unit Mix and Rents'!C38+1)) -> 0 | AJ38: =IF(F38=0,0,INDEX($AE$44:$AI$44,1,'Unit Mix and Rents'!$C38+1)) -> 0 | AK38: =IF(F38=0,0,INDEX($AE$44:$AI$45,2,'Unit Mix and Rents'!$C38+1)) -> 0 | AQ38: =IF(J38<>"Yes","",IF(AND(OR(C38=0,C38=1),K38=Controls!$A$139),"",5)) ->  | AU38: 0 | AV38: 0 | AW38: 0 | AX38: 0 | AY38: 0
A39: 30 | O39: 0 | P39: 0 | Q39: =IF(K39="","",MATCH(K39,Controls!$A$138:$A$146,0)) ->  | R39: 0 | S39: 0 | T39: 0 | U39: =IF(AND(T39=0,OR(K39=Controls!$A$139,K39=Controls!$A$140)),F39,0) -> 0 | V39: 0 | W39: 0 | X39: 0 | Y39: 0 | Z39: 0 | AB39: 0 | AC39: 0 | AD39: 0 | AE39: =IF(K39="","",VLOOKUP(K39,'Project Description'!$B$760:$G$767,'Unit Mix and Rents'!AF39,FALSE)) ->  | AF39: 2 | AH39: =IF(F39=0,0,INDEX('Project Description'!$C$784:$G$785,2,C39+1)) -> 0 | AI39: =IF(F39=0,0,INDEX('Project Description'!$C$776:$G$776,1,'Unit Mix and Rents'!C39+1)) -> 0 | AJ39: =IF(F39=0,0,INDEX($AE$44:$AI$44,1,'Unit Mix and Rents'!$C39+1)) -> 0 | AK39: =IF(F39=0,0,INDEX($AE$44:$AI$45,2,'Unit Mix and Rents'!$C39+1)) -> 0 | AQ39: =IF(J39<>"Yes","",IF(AND(OR(C39=0,C39=1),K39=Controls!$A$139),"",5)) ->  | AU39: 0 | AV39: 0 | AW39: 0 | AX39: 0 | AY39: 0
B41: Totals | E41: =SUMPRODUCT($F$9:$F$40,E9:E40) -> 0 | F41: =SUM(F9:F40) -> 0 | G41: =SUM(O9:O40) -> 0 | H41: =SUM(P9:P40) -> 0 | I41: =SUM(AD9:AD40) -> 0 | L41: =SUMPRODUCT($F$9:$F$40,L9:L40) -> 0 | O41: =SUM(O9:O40) -> 0 | P41: 0 | R41: 0 | S41: 0 | T41: 0 | U41: 0 | V41: 0 | W41: 0 | X41: 0 | Y41: 0 | Z41: 0 | AB41: =SUM(AB9:AB40) -> 0 | AC41: =SUM(AC9:AC40) -> 0 | AM41: =COUNTIF(AM9:AM40,">0") -> 0 | AN41: 0 | AO41: 0 | AP41: 0 | AQ41: 0 | AR41: 0 | AS41: 0 | AU41: =SUM(AU9:AU40) -> 0 | AV41: =SUM(AV9:AV40) -> 0 | AW41: =SUM(AW9:AW40) -> 0 | AX41: =SUM(AX9:AX40) -> 0 | AY41: =SUM(AY9:AY40) -> 0
Y42: =IF(O41=0,0,+Y41/O41) -> 0
B43: % of Rental Subsidy Units in the project: | G43: =IF($F$41=0,0,+I41/$F$41) -> 0 | AE43: 0BR | AF43: 1BR | AG43: 2BR | AH43: 3BR | AI43: 4BR | AM43: =SUM(AM41:AT41) -> 0 | AN43: total flags | AU43: =SUM(AU41:AY41) -> 0 | AV43: total units
B44: % of Low-Income Units in the project: | F44: =+R41 -> 0 | G44: =IF(F41=0,0,+R41/F41) -> 0 | I44: =IF(G44>=40%,"Meets 40/60 Setaside","Does not Meet 40/60 Setaside") -> Does not Meet 40/60 Setaside | O44: Minimum Sqft | AE44: 500 | AF44: 700 | AG44: 900 | AH44: 1200 | AI44: 1500
B45: Total square feet for LIHTC units: | E45: =+AB41 -> 0 | O45: Minimum # Baths | AE45: 1 | AF45: 1 | AG45: 1 | AH45: 2 | AI45: 3
B46: PSH Units: | F46: =+T41 -> 0 | G46: =IF($F$41=0,0,+F46/$F$41) -> 0
B47: Non-PSH Units Under 30% AMI: | F47: =+U41 -> 0 | G47: 0 | O47: =+'Project Description'!H200 -> Missing | Q47: is user's Set-Aside Election
B48: Units under 30% AMI: | F48: =+F46+F47 -> 0 | G48: 0
B49: Units under 20% AMI: | F49: =+V41 -> 0 | G49: 0 | O49: =IF(O47="40/60",IF(G44>=40%,"","Error: Applicant's 40/60 Set-Aside Is Not Met"),IF(O47="20/50",IF(G50>=20%,"","Error: Applicant's 20/50 Set-Aside is not Met"),"")) -> 
B50: Units under 50% AMI: | F50: =+S41 -> 0 | G50: 0 | I50: =IF(G50>=20%,"Meets 20/50 Setaside","Does not Meet 20/50 Setaside") -> Does not Meet 20/50 Setaside
B51: Units between 31% and 50% AMI: | F51: =+F50-F48 -> 0 | G51: 0
B52: Units under 80% AMI: | F52: =+W41 -> 0 | G52: 0
B53: Units Not AMI Restricted | F53: =+X41 -> 0 | G53: 0
B54: LIHTC 'Income Average' | G54: =+$Y$42 -> 0 | I54: (weighted average of income limits for LIHTC units)
B55: Staff Units | E55: =+AC41 -> 0 | F55: =+H41 -> 0 | G55: 0
B56: Residential Units | E56: =+E41-E55 -> 0 | F56: =+F41-F55 -> 0 | G56: 0
B58: =IF(G48>=5%,"",TEXT(O54,"0.0%")&" of units are affordable at or below 30% AMI; QAP requires at least 5%") -> 0.0% of units are affordable at or below 30% AMI; QAP requires at least 5%
A60: ="The applicant selected the following set-aside option: "&'Project Description'!H200 -> The applicant selected the following set-aside option: Missing
A62: * Rent is after subtracting the utility allowance; that is, this is the rent the project will collect.
A63: ** Note 1 indicates that the proposed rent is higher than the applicable AMI limit. Note 2 indicates that the proposed rent is higher than the estimated market rent for this unit type. Note 3 indicates that the square footage is below the LHC minimum for this unit type. Note 4 indicates that the number of baths is below the LHC minimum for this unit type. Note 5 indicates that units designated as PSH are either (a) larger than 1 BR or (b) not restricted at 20% AMI. Note 6 indicates that the proposed rent is higher than the FMR for this unit type. Note 7 indicates a potential problem with a Staff Unit; the Application expects to see LIHTC = No, PSH = No, AMI Restriction = Not Restricted, and Rent = zero. The values you entered may, however, be correct; if so, provide an explanation in your Checklist response. If any Note is indicated (in column M) for any unit type, the Checklist worksheet will include a question.
C64: 0 | D64: 1 | E64: 2 | F64: 3 | G64: 4
B65: Unit Mix Summary | C65: 0 BR | D65: 1 BR | E65: 2 BR | F65: 3 BR | G65: 4 BR | I65: Total
B66: =+Controls!A139 -> 20% AMI | C66: =SUMIFS($F$9:$F$40,$K$9:$K$40,$B66,$C$9:$C$40,C$64) -> 0 | D66: 0 | E66: 0 | F66: 0 | G66: 0 | I66: =SUM(C66:G66) -> 0
B67: =+Controls!A140 -> 30% AMI | C67: 0 | D67: 0 | E67: 0 | F67: 0 | G67: 0 | I67: 0
B68: =+Controls!A141 -> 40% AMI | C68: 0 | D68: 0 | E68: 0 | F68: 0 | G68: 0 | I68: 0
B69: =+Controls!A142 -> 50% AMI | C69: 0 | D69: 0 | E69: 0 | F69: 0 | G69: 0 | I69: 0
B70: =+Controls!A143 -> 60% AMI | C70: 0 | D70: 0 | E70: 0 | F70: 0 | G70: 0 | I70: 0
B71: =+Controls!A144 -> 70% AMI | C71: 0 | D71: 0 | E71: 0 | F71: 0 | G71: 0 | I71: 0
B72: =+Controls!A145 -> 80% AMI | C72: 0 | D72: 0 | E72: 0 | F72: 0 | G72: 0 | I72: 0
B73: =+Controls!A138 -> 120% AMI | C73: 0 | D73: 0 | E73: 0 | F73: 0 | G73: 0 | I73: 0
B74: =+Controls!A146 -> Not AMI Restricted | C74: 0 | D74: 0 | E74: 0 | F74: 0 | G74: 0 | I74: 0
B75: Total Units | C75: =+AU41 -> 0 | D75: =+AV41 -> 0 | E75: =+AW41 -> 0 | F75: =+AX41 -> 0 | G75: =+AY41 -> 0 | I75: =+AU43 -> 0
B77: PSH Units | C77: =SUMIFS($F$9:$F$40,$J$9:$J$40,"Yes",$C$9:$C$40,C$64) -> 0 | D77: =SUMIFS($F$9:$F$40,$J$9:$J$40,"Yes",$C$9:$C$40,D$64) -> 0 | E77: =SUMIFS($F$9:$F$40,$J$9:$J$40,"Yes",$C$9:$C$40,E$64) -> 0 | F77: =SUMIFS($F$9:$F$40,$J$9:$J$40,"Yes",$C$9:$C$40,F$64) -> 0 | G77: =SUMIFS($F$9:$F$40,$J$9:$J$40,"Yes",$C$9:$C$40,G$64) -> 0 | I77: =SUM(C77:G77) -> 0

Sheet Development Costs
A3: =+Instructions!$A$3 -> 2020 Piggyback Mixed Income Resilience (PRIME) Rental Housing Application
A4: =TRIM('Project Description'!$E$79)&" ("&TRIM('Project Description'!$E$81)&" LA), "&'Project Description'!$E$50 -> x (x LA), x
A6: Development Costs | I6: =+'Project Description'!L1019 -> 35
A8: ="Section "&$I8 -> Section 36 | B8: Detail of Development Costs | G8: QAP Reference | I8: =+I6+1 -> 36
B10: ="Note -- see Section "&I155&" for calculation of acquisition (4%) basis and construction (9%) basis." -> Note -- see Section 38 for calculation of acquisition (4%) basis and construction (9%) basis.
B12: Acquisition | D12: =SUM(C13:C17) -> 0
A13: =+I13 -> 36.01 | B13: Building Acquisition | C13: 0 | I13: =+I8+0.01 -> 36.01
A14: =+I14 -> 36.02 | B14: Land Acquisition (value of donated land) | C14: 0 | I14: =+I13+0.01 -> 36.02
A15: =+I15 -> 36.03 | B15: Land Acquisition (other) | C15: 0 | I15: =+I14+0.01 -> 36.03
A16: =+I16 -> 36.04 | B16: Acquisition Fee | C16: 0 | I16: =+I15+0.01 -> 36.04
B18: Construction Contract: Building Costs | D18: =SUM(C19:C27) -> 0
A19: =+I19 -> 36.04 | B19: Appliances | C19: 0 | I19: =+I15+0.01 -> 36.04
A20: 36.05 | B20: Community Facilities | C20: =+'Project Description'!$H$566 -> 0 | D20: ="See Section "&'Project Description'!$A$564 -> See Section 20.06 | G20: =+'QAP Reference'!$A$62 -> V.D | I20: =+I19+0.01 -> 36.05
A21: 36.06 | B21: Community Service Facilities | C21: =+'Project Description'!$H$575 -> 0 | D21: ="See Section "&'Project Description'!$A$573 -> See Section 20.07 | G21: =+'QAP Reference'!$A$62 -> V.D | I21: 36.06
A22: 36.07 | B22: Excess Costs | C22: =+'Project Description'!$H$585 -> 0 | D22: ="See Section "&'Project Description'!$A$581 -> See Section 20.08 | I22: 36.07
A23: 36.08 | B23: Residential Buildings - New Construction | C23: 0 | I23: 36.08
A24: 36.09 | B24: Residential Buildings - Rehabilitation | C24: 0 | I24: 36.09
A25: 36.1 | B25: Lead-based paint controls or abatement | C25: 0 | I25: =+I24+0.01 -> 36.1
A26: 36.11 | B26: Costs to Operate Self-Owned Equipment | C26: =+'Project Description'!H534 -> 0 | D26: ="See Section "&'Project Description'!$A$527 -> See Section 20.01 | I26: 36.11
B28: Construction Contract: Site Work | D28: =SUM(C29:C37) -> 0
A29: =+I29 -> 36.11 | B29: Demolition Cost | C29: 0 | I29: =+I25+0.01 -> 36.11
A30: 36.12 | B30: Earth Work | C30: 0 | I30: =+I29+0.01 -> 36.12
A31: 36.13 | B31: Lawn/Plantings | C31: 0 | I31: =+I30+0.01 -> 36.13
A32: 36.14 | B32: Off Site Work | C32: 0 | I32: 36.14
A33: 36.15 | B33: Roads/Walks | C33: 0 | I33: 36.15
A34: 36.16 | B34: Site Utilities | C34: 0 | I34: 36.16
A35: 36.17 | B35: Unusual Site Conditions | I35: 36.17
A36: 36.18 | B36: Extraordinary Site Costs | C36: =+'Project Description'!H562 -> 0 | D36: ="See Section "&'Project Description'!$A$561 -> See Section 20.05 | I36: 36.18
B38: Construction Contract: Other Costs | D38: =SUM(C39:C51) -> 0
A39: =+I39 -> 36.19 | B39: Bond Premium Paid by Contractor | C39: 0 | I39: =+I36+0.01 -> 36.19
A40: 36.2 | B40: General Requirements | C40: 0 | E40: =IF(J371>0,"GR is "&TEXT(J371,"$#,##0")&" above the limit","") ->  | I40: =+I39+0.01 -> 36.2
A41: 36.21 | B41: Costs to Lease Self-Owned Equipment | C41: =+'Project Description'!H532 -> 0 | D41: ="See Section "&'Project Description'!$A$527 -> See Section 20.01 | I41: 36.21
A42: 36.22 | B42: Builder's Overhead | C42: 0 | E42: =IF(J372>0,"BO is "&TEXT(J372,"$#,##0")&" above the limit","") ->  | I42: 36.22
A43: 36.23 | B43: Builder's Profit | C43: 0 | E43: =IF(J373>0,"BP is "&TEXT(J373,"$#,##0")&" above the limit","") ->  | I43: 36.23
A44: 36.24 | B44: Construction Manager's Fee | C44: =+'Project Description'!$H$545 -> 0 | D44: ="See Section "&'Project Description'!$A$544 -> See Section 20.03 | I44: 36.24
A45: 36.25 | B45: Builder's Risk Insurance | C45: 0 | I45: 36.25
A46: 36.26 | B46: Builder's Liability Insurance | C46: 0 | I46: 36.26
A47: 36.27 | B47: Worker's Compensation Insurance | C47: 0 | I47: 36.27
A48: 36.28 | B48: Other: | C48: 0 | I48: 36.28
A49: 36.29 | B49: Other: | C49: 0 | I49: 36.29
A50: 36.3 | B50: Other: | C50: 0 | I50: 36.3
B51: =IF(J377>0,B377,"") -> 
B52: Hard Costs Outside Construction Contract | D52: =SUM(C55:C58) -> 0
A53: =+I53 -> 36.31 | B53: Bond Premium Paid by Taxpayer | I53: =+I50+0.01 -> 36.31
A55: =+I55 -> 36.28 | B55: Other Hard Cost (describe): | I55: =+I47+0.01 -> 36.28
A56: =+I56 -> 36.29 | B56: Other Hard Cost (describe): | I56: =+I55+0.01 -> 36.29
A57: =+I57 -> 36.3 | B57: Other Hard Cost (describe): | I57: =+I56+0.01 -> 36.3
B59: Construction Contingency | D59: =+C60 -> 0
A60: =+I60 -> 36.31 | B60: Construction Hard Cost Contingency | C60: 0 | E60: =IF(ROUND(C61,4)>10%,"Contingency is above the 10% limit","") ->  | I60: =+I57+0.01 -> 36.31
B61: Construction Hard Cost Contingency % | C61: =IF($C$269=0,0,+C60/$C$269) -> 0
B63: Construction Interim Costs | D63: =SUM(C64:C76) -> 0
A64: =+I64 -> 36.32 | B64: Bridge Loan Fees | C64: 0 | I64: =+I60+0.01 -> 36.32
A65: 36.33 | B65: Bridge Loan Legal Fees | C65: 0 | I65: =+I64+0.01 -> 36.33
A66: 36.34 | B66: Building Permits/Fees | C66: 0 | I66: 36.34
A67: 36.35 | B67: Construction Credit Enhancement | C67: 0 | I67: 36.35
A68: 36.36 | B68: Construction Financing Fees | C68: 0 | I68: 36.36
A69: 36.37 | B69: Construction Hazard Insurance | C69: 0 | I69: 36.37
A70: 36.38 | B70: Construction Interest | C70: 0 | I70: 36.38
A71: 36.39 | B71: Construction Legal Fees | C71: 0 | I71: 36.39
A72: 36.4 | B72: Construction Liability Insurance | C72: 0 | I72: 36.4
A73: 36.41 | B73: Construction Loan Points | C73: 0 | I73: 36.41
A74: 36.42 | B74: Construction Title and Recording | C74: 0 | I74: 36.42
A75: 36.43 | B75: Other Construction Finance Fees | C75: 0 | I75: 36.43
B77: Permanent Financing Costs | D77: =SUM(C78:C85) -> 0
A78: =+I78 -> 36.44 | B78: Permanent Credit Enhancement | C78: 0 | I78: =+I75+0.01 -> 36.44
A79: 36.45 | B79: Permanent Financing Fees | C79: 0 | I79: =+I78+0.01 -> 36.45
A80: 36.46 | B80: Permanent Legal Fee | C80: 0 | I80: 36.46
A81: 36.47 | B81: Permanent Loan Points | C81: 0 | I81: 36.47
A82: 36.48 | B82: Permanent Title and Recording | C82: 0 | I82: 36.48
A83: 36.49 | B83: Other (describe): | C83: 0 | I83: 36.49
A84: 36.5 | B84: Other (describe): | C84: 0 | I84: 36.5
B86: LHC Risk-Sharing Fees | D86: =SUM(C87:C91) -> 0
A87: =+I87 -> 36.51 | B87: Application Fee ($3,000) | C87: 0 | I87: =+I84+0.01 -> 36.51
A88: =+I88 -> 36.52 | B88: Commitment Fee (3% of loan amount) | C88: 0 | I88: =+I87+0.01 -> 36.52
A89: =+I89 -> 36.53 | B89: Upfront MIP (.5% of loan amount) | C89: 0 | I89: =+I88+0.01 -> 36.53
A90: =+I90 -> 36.54 | B90: Closing Fee ($5,000) | C90: 0 | I90: =+I89+0.01 -> 36.54
B92: Professional Fees | D92: =SUM(C93:C96) -> 0
A93: =+I93 -> 36.55 | B93: Accounting Fees | C93: 0 | I93: =+I90+0.01 -> 36.55
A94: =+I94 -> 36.56 | B94: Architect Fees | C94: 0 | E94: =IF(J375>0,"Arch. Is "&TEXT(J375,"$#,##0")&" above the limit","") ->  | I94: =+I93+0.01 -> 36.56
A95: =+I95 -> 36.57 | B95: Engineering Fees | C95: 0 | I95: =+I94+0.01 -> 36.57
B97: Reserves | D97: =SUM(C98:C105) -> 0
A98: =+I98 -> 36.58 | B98: Escrows | C98: 0 | I98: =+I95+0.01 -> 36.58
A99: 36.59 | B99: Operating Deficit Reserve | C99: 0 | E99: =IF(C99<J99,"Op. Rsv. must be at least "&TEXT(J99,"$#,##0"),"") -> Op. Rsv. must be at least $1 | I99: =+I98+0.01 -> 36.59 | J99: =+'Revenues and Expenses'!C89/2 -> 0.5 | K99: LHC Minimum Operating Reserve
A100: 36.6 | B100: Rent Up Reserves | C100: 0 | I100: 36.6
A101: 36.61 | B101: Replacement Reserve Deposit | C101: 0 | I101: 36.61
A102: 36.62 | B102: Other: | C102: 0 | I102: 36.62
A103: 36.63 | B103: Other: | C103: 0 | I103: 36.63
A104: 36.64 | B104: Other: | C104: 0 | I104: 36.64
B106: Syndication Costs | D106: =SUM(C107:C110) -> 0
A107: =+I107 -> 36.65 | B107: Syndication Legal Fees | C107: 0 | I107: =+I104+0.01 -> 36.65
A108: =+I108 -> 36.66 | B108: Syndication Organization Expenses | C108: 0 | I108: =+I107+0.01 -> 36.66
A109: =+I109 -> 36.67 | B109: Other Syndication Expenses | C109: 0 | I109: =+I108+0.01 -> 36.67
B111: Other Soft Costs | D111: =SUM(C112:C132) -> 0
A112: =+I112 -> 36.68 | B112: Relocation Expenses | C112: 0 | I112: =+I109+0.01 -> 36.68
A113: 36.69 | B113: Appraisal | C113: 0 | I113: =+I112+0.01 -> 36.69
A114: 36.7 | B114: Market Study | C114: 0 | I114: 36.7
A115: 36.71 | B115: Environmental Study | C115: 0 | I115: 36.71
A116: 36.72 | B116: Environmental Review (HOME/Risk Sharing) | C116: 0 | I116: 36.72
A117: 36.73 | B117: Lead-Based Paint Assessment and Testing | C117: 0 | I117: 36.73
A118: 36.74 | B118: Survey | C118: 0 | I118: 36.74
A119: 36.75 | B119: Physical Capital Needs Assessment | C119: 0 | I119: 36.75
A120: 36.76 | B120: Marketing | C120: 0 | I120: 36.76
A121: 36.77 | B121: Property Taxes | C121: 0 | I121: 36.77
A122: 36.78 | B122: Cost Certification | C122: 0 | I122: 36.78
A123: 36.79 | B123: Asset Management Fee | C123: 0 | I123: 36.79
A124: 36.8 | B124: LHC Non-Tax Credit Application Fee | C124: 0 | I124: 36.8
A125: 36.81 | B125: LHC Tax Credit Application Fee | C125: 0 | I125: 36.81
A126: 36.82 | B126: LHC Tax Credit Reservation Fee (5%) | C126: 0 | I126: 36.82
A127: 36.83 | B127: LHC Fees other | C127: 0 | I127: 36.83
A128: 36.84 | B128: Non-LHC Tax Credit Fees | C128: 0 | I128: 36.84
A129: 36.85 | B129: Other: | C129: 0 | I129: 36.85
A130: 36.86 | B130: Other: | C130: 0 | I130: 36.86
A131: 36.87 | B131: Other: | C131: 0 | I131: 36.87
B133: Developer's Fee | D133: =SUM(C134:C139) -> 0 | E133: =IF(J374>0,"Dev Fee is "&TEXT(J374,"$#,##0")&" above the limit","") -> 
A134: =+I134 -> 36.88 | B134: Consulting Fee | C134: 0 | I134: =+I131+0.01 -> 36.88
A135: =+I135 -> 36.89 | B135: Fees paid to CHDOs | C135: 0 | I135: =+I134+0.01 -> 36.89
A136: =+I136 -> 36.9 | B136: Fees paid to nonprofits | C136: 0 | I136: =+I135+0.01 -> 36.9
A137: =+I137 -> 36.91 | B137: Developer Fee | C137: 0 | I137: =+I136+0.01 -> 36.91
A138: =+I138 -> 36.92 | B138: Other developer fee | C138: 0 | I138: =+I137+0.01 -> 36.92
B140: TOTAL DEVELOPMENT COSTS | D140: =SUM(D9:D139) -> 0
B142: =IF(J142=0,"","There are Fee Limit problems; see Section "&$I$365) ->  | J142: =COUNTIF(J366:J378,">0") -> 0
B144: Comment on Development Costs
A146: ="Section "&$I146 -> Section 37 | B146: Do Sources and Uses Balance? | G146: QAP Reference | I146: =+I8+1 -> 37
B148: ="Total Permanent Sources of Funds ("&'Project Description'!A498&")" -> Total Permanent Sources of Funds (Section 19) | D148: =+'Project Description'!H517 -> 2000001
B150: Total Development Costs | D150: =+D140 -> 0
B152: Total Sources Minus TDC | D152: =+D148-D150 -> 2000001
B153: =IF(ROUND(D152,0)=0,"","Sources and Uses are out of Balance:"&IF(D152<0," Sources Too Low"," Excess Sources")) -> Sources and Uses are out of Balance: Excess Sources
A155: ="Section "&$I155 -> Section 38 | B155: Acquisition Basis and Construction Basis | G155: QAP Reference | I155: =+I146+1 -> 38
A157: =+I157 -> 38.01 | B157: Calculation of Adjusted Acquisition Basis | I157: =+I155+0.01 -> 38.01
B159: Building Acquisition | C159: =+C13 -> 0
B160: Adjustment (explain) | C160: 0
B161: Adjustment (explain) | C161: 0
B162: Adjustment (explain) | C162: 0
B164: Adjusted Acquisition Basis | C164: =SUM(C158:C163) -> 0
B166: Comment on Acquisition Basis
A168: =+I168 -> 38.02 | B168: Calculation of Adjusted Construction Basis | I168: =+I157+0.01 -> 38.02
B170: The computation below subtracts amounts that LHC understands are generally excluded from construction basis. If your advisors conclude that any of the formula deductions are inappropriate for your transaction, use one of the Adjustment rows to add back amounts as appropriate. Also use the Adjustment rows to exclude other amounts as appropriate for your transaction.
B172: Total Development Cost | C172: =+D140 -> 0
B173: Subtract Adjusted Acquisition Basis | C173: =+-C164 -> 0
B174: Subtract Land Cost | C174: =+-C14-C15 -> 0
B175: Subtract the out-of-basis portion of:
B176: Community Facilities | C176: =-'Project Description'!H568 -> 0
B177: Community Service Facilities | C177: =+-'Project Description'!H577 -> 0
B178: Subtract Commercial Development Cost | C178: =+-'Project Description'!$H$612 -> 0
B179: Subtract Permanent Financing Costs | C179: =+-D77 -> 0
B180: Subtract Reserves | C180: =+-D97 -> 0
B181: Subtract Syndication Costs | C181: =+-D106 -> 0
B182: Subtract LHC Fees | C182: =+-C124-C125-C126-C127 -> 0
B183: Subtract Federal Grants | C183: =+-'Project Description'!H518 -> 0 | D183: ="See Section "&'Project Description'!$L$498 -> See Section 19
B184: Subtract HOME Forgiven at Maturity | C184: =IF(AND('Project Description'!E350>0,'Project Description'!E348=Controls!$A$82),-'Project Description'!E350,0) -> 0
B185: Subtract issuance costs for tax-exempt bonds | C185: =IF('Project Description'!H9="Yes",'Project Description'!H18,0) -> 0 | D185: ="See Section "&TEXT('Project Description'!A8,"0.00") -> See Section 10.01
B186: Adjustment (explain) | C186: 0
B187: Adjustment (explain) | C187: 0
B188: Adjustment (explain) | C188: 0
B189: Adjustment (explain) | C189: 0
B190: Adjustment (explain) | C190: 0
B191: Adjustment (explain) | C191: 0
B193: Adjusted Construction Basis | C193: =SUM(C169:C192) -> 0
B195: Comment on Construction Basis
A197: ="Section "&$I197 -> Section 39 | B197: Total Development Cost Summary | G197: QAP Reference | I197: =+I155+1 -> 39
B199: USES OF FUNDS / TOTAL DEVELOPMENT COST | C199: TOTAL
A201: =+I201 -> 39.01 | B201: Building Acquisition | C201: =+C13 -> 0 | D201: =IF($J$201=0,0,C201/$J$201) -> 0 | E201: per unit | I201: =+I197+0.01 -> 39.01 | J201: =+'Unit Mix and Rents'!$F$41 -> 0 | K201: total units
A202: 39.02 | B202: Land Acquisition | C202: =+D12-C13 -> 0 | D202: =IF($J$201=0,0,C202/$J$201) -> 0 | E202: per unit | I202: =+I201+0.01 -> 39.02
A203: 39.03 | B203: Construction Contract: New Construction | C203: =+C23 -> 0 | D203: 0 | E203: per unit | I203: =+I202+0.01 -> 39.03
A204: 39.04 | B204: Construction Contract: Rehab | C204: =+C24 -> 0 | D204: 0 | E204: per unit | I204: 39.04
A205: 39.05 | B205: Other Construction Contract Building Costs | C205: =+D18-C204-C203 -> 0 | D205: 0 | E205: per unit | I205: 39.05
A206: 39.06 | B206: Construction Contract: Site Work | C206: =+D28 -> 0 | D206: 0 | E206: per unit | I206: 39.06
A207: 39.07 | B207: General Requirements | C207: =+C40 -> 0 | D207: 0 | E207: per unit | I207: 39.07
A208: 39.08 | B208: Builder's Overhead | C208: =+C42 -> 0 | D208: 0 | E208: per unit | I208: 39.08
A209: 39.09 | B209: Builder's Profit | C209: =+C43 -> 0 | D209: 0 | E209: per unit | I209: 39.09
A210: 39.1 | B210: Other Construction Contract Costs | C210: =+D38-C209-C208-C207 -> 0 | D210: 0 | E210: per unit | I210: 39.1
A211: 39.11 | B211: Hard Costs Outside Construction Contract | C211: =+D52 -> 0 | D211: 0 | E211: per unit | I211: 39.11
A212: 39.12 | B212: Construction Hard Cost Contingency | C212: =+D59 -> 0 | D212: 0 | E212: per unit | I212: 39.12
A213: 39.13 | B213: Total Construction Interim Costs | C213: =+D63 -> 0 | D213: 0 | E213: per unit | I213: 39.13
A214: 39.14 | B214: Total Permanent Financing Costs | C214: =+D77 -> 0 | D214: 0 | E214: per unit | I214: 39.14
A215: 39.15 | B215: Total LHC Risk-Sharing Fees | C215: =+D86 -> 0 | D215: 0 | E215: per unit | I215: 39.15
A216: 39.16 | B216: Total Professional Fees | C216: =+D92 -> 0 | D216: 0 | E216: per unit | I216: 39.16
A217: 39.17 | B217: Escrows | C217: =+C98 -> 0 | D217: 0 | E217: per unit | I217: 39.17
A218: 39.18 | B218: Operating Deficit Reserve | C218: 0 | D218: 0 | E218: per unit | I218: 39.18
A219: 39.19 | B219: Rent Up Reserves | C219: 0 | D219: 0 | E219: per unit | I219: 39.19
A220: 39.2 | B220: Replacement Reserve Deposit IDRR | C220: 0 | D220: 0 | E220: per unit | I220: 39.2
A221: 39.21 | B221: =+B102 -> Other: | C221: 0 | D221: 0 | E221: per unit | I221: 39.21
A222: 39.22 | B222: =+B103 -> Other: | C222: 0 | D222: 0 | E222: per unit | I222: 39.22
A223: 39.23 | B223: =+B104 -> Other: | C223: 0 | D223: 0 | E223: per unit | I223: 39.23
A224: 39.24 | B224: Total Syndication Costs | C224: =+D106 -> 0 | D224: 0 | E224: per unit | I224: 39.24
A225: 39.25 | B225: Total Other Soft Costs | C225: =+D111 -> 0 | D225: 0 | E225: per unit | I225: 39.25
A226: 39.26 | B226: Developer Fee | C226: =+C137 -> 0 | D226: 0 | E226: per unit | I226: 39.26
A227: 39.27 | B227: Other Developer's Fee | C227: =+D133-C226 -> 0 | D227: 0 | E227: per unit | I227: 39.27
B229: Total Development Cost (Total Uses of Funds) | C229: =SUM(C200:C228) -> 0 | D229: 0 | E229: per unit | J229: =+D140-C229 -> 0
A231: ="Section "&$I231 -> Section 40 | B231: HUD TDC Per Unit Limit | G231: QAP Reference | I231: =+I197+1 -> 40
B233: Parish | C233: =+'Project Description'!$E$82 -> Acadia
B234: Louisiana Cost Area for TDC Limit Purposes | C234: =+K234 -> Lafayette | K234: =VLOOKUP(C233,Parishes!$A$10:$V$73,22,FALSE) -> Lafayette
B235: Primary Building Type | C235: =+'Project Description'!H111 -> Missing | F235: Maximum
B236: Building Type for TDC Limit Purposes | C236: =VLOOKUP(C235,Controls!$A$44:$B$53,2,FALSE) -> Walkup | E236: TDC / Unit | F236: TDC | K236: =TRIM(C234&" "&C236) -> Lafayette Walkup
B238: 0 BR Units | C238: =+'Unit Mix and Rents'!$AU$41 -> 0 | D238: units | E238: =VLOOKUP($K$236,'HUD TDC Data'!$C$8:$J$35,$K238,FALSE) -> 111316 | F238: =+C238*E238 -> 0 | K238: 2
B239: 1 BR Units | C239: =+'Unit Mix and Rents'!$AV$41 -> 0 | D239: units | E239: =VLOOKUP($K$236,'HUD TDC Data'!$C$8:$J$35,$K239,FALSE) -> 151889 | F239: =+C239*E239 -> 0 | K239: 3
B240: 2 BR Units | C240: =+'Unit Mix and Rents'!$AW$41 -> 0 | D240: units | E240: =VLOOKUP($K$236,'HUD TDC Data'!$C$8:$J$35,$K240,FALSE) -> 192164 | F240: =+C240*E240 -> 0 | K240: 4
B241: 3 BR Units | C241: =+'Unit Mix and Rents'!$AX$41 -> 0 | D241: units | E241: =VLOOKUP($K$236,'HUD TDC Data'!$C$8:$J$35,$K241,FALSE) -> 253109 | F241: =+C241*E241 -> 0 | K241: 5
B242: 4 BR Units | C242: =+'Unit Mix and Rents'!$AY$41 -> 0 | D242: units | E242: =VLOOKUP($K$236,'HUD TDC Data'!$C$8:$J$35,$K242,FALSE) -> 313641 | F242: =+C242*E242 -> 0 | K242: 6
B244: Total | C244: =SUM(C235:C243) -> 0 | D244: units | E244: =IF(C244=0,0,+F244/C244) -> 0 | F244: =SUM(F235:F243) -> 0 | G244: = Maximum TDC Limit | J244: =+F253+-F248 -> 0 | K244: Adjusted TDC, adding back Extraordinary Site Costs
... 95 more rows

Sheet Basis Calculation
A3: =+Instructions!$A$3 -> 2020 Piggyback Mixed Income Resilience (PRIME) Rental Housing Application
A4: =TRIM('Project Description'!$E$79)&" ("&TRIM('Project Description'!$E$81)&" LA), "&'Project Description'!$E$50 -> x (x LA), x
A6: Basis Calculation | D6: =IF(C9<'Project Description'!$H$591,1,0) -> 0 | E6: =IF(D9<'Project Description'!$H$591,1,0) -> 0 | F6: =IF(E9<'Project Description'!$H$591,1,0) -> 0 | G6: =IF(F9<'Project Description'!$H$591,1,0) -> 0 | H6: =IF(G9<'Project Description'!$H$591,1,0) -> 0 | I6: =IF(H9<'Project Description'!$H$591,1,0) -> 0 | J6: =IF(I9<'Project Description'!$H$591,1,0) -> 0 | K6: =IF(J9<'Project Description'!$H$591,1,0) -> 0 | L6: =IF(K9<'Project Description'!$H$591,1,0) -> 0 | M6: =IF(L9<'Project Description'!$H$591,1,0) -> 0 | N6: =IF(M9<'Project Description'!$H$591,1,0) -> 0 | O6: =IF(N9<'Project Description'!$H$591,1,0) -> 0 | P6: =IF(O9<'Project Description'!$H$591,1,0) -> 0 | Q6: =IF(P9<'Project Description'!$H$591,1,0) -> 0 | R6: =IF(Q9<'Project Description'!$H$591,1,0) -> 0 | S6: =IF(R9<'Project Description'!$H$591,1,0) -> 0 | T6: =IF(S9<'Project Description'!$H$591,1,0) -> 0 | U6: =IF(T9<'Project Description'!$H$591,1,0) -> 0
B7: =IF(K56=0,"","Note -- there are error conditions; see the Notes at the end of this worksheet") -> 
C8: Total | D8: Configuration | E8: =IF(E6=1,"Configuration","") ->  | F8: =IF(F6=1,"Configuration","") -> 
B9: BUILDING CONFIGURATION | C9: =+'Project Description'!H591 -> 0 | D9: 1 | E9: =IF(E6=1,+D9+1,"") ->  | F9: =IF(F6=1,+E9+1,"") -> 
B10: =IF('Project Description'!$H$192=0,"THIS SECTION IS NOT REQUIRED BECAUSE THERE ARE NO TAX CREDITS REQUESTED","") -> THIS SECTION IS NOT REQUIRED BECAUSE THERE ARE NO TAX CREDITS REQUESTED
B11: Number of Buildings with Configuration | C11: =SUM(D11:U11) -> 0 | D11: 0 | E11: 0 | F11: 0 | G11: 0 | H11: 0 | I11: 0 | J11: 0 | K11: 0
A13: =+'Project Description'!H627+'Project Description'!H628 -> 0 | B13: Floor Area of Residential Units + Staff Units | C13: =SUMPRODUCT(D13:U13,D$11:U$11) -> 0 | D13: 0 | E13: 0 | F13: 0 | G13: 0 | H13: 0 | I13: 0 | J13: 0 | K13: 0
A14: =+A15-A13 -> 0 | B14: Other (Comml, Common Areas, …) | C14: =SUMPRODUCT(D14:U14,D$11:U$11) -> 0 | D14: 0 | E14: 0 | F14: 0 | G14: 0 | H14: 0 | I14: 0 | J14: 0 | K14: 0
A15: =+'Project Description'!$H$634 -> 0 | B15: Per Building Total Area | C15: =SUMPRODUCT(D15:U15,D$11:U$11) -> 0 | D15: =SUM(D13:D14) -> 0 | E15: =IF(E$6=1,SUM(E13:E14),"") ->  | F15: =IF(F$6=1,SUM(F13:F14),"") ->  | G15: =IF(G$6=1,SUM(G13:G14),"") ->  | H15: =IF(H$6=1,SUM(H13:H14),"") -> 
A17: =+'Unit Mix and Rents'!$G$41 -> 0 | B17: Number of LIHTC Units | C17: =SUMPRODUCT(D17:U17,D$11:U$11) -> 0 | D17: 0 | E17: 0
A18: =+'Unit Mix and Rents'!$F$56 -> 0 | B18: Number of Residential Units | C18: =SUMPRODUCT(D18:U18,D$11:U$11) -> 0 | D18: 0 | E18: 0
B19: Applicable Fraction by Units | D19: =IF(D18=0,0,+D17/D18) -> 0 | E19: =IF(E$6=1,IF(E18=0,0,E17/E18),"") ->  | F19: =IF(F$6=1,IF(F18=0,0,F17/F18),"") -> 
A21: =+'Unit Mix and Rents'!$E$45 -> 0 | B21: Sqft of LIHTC Units | C21: =SUMPRODUCT(D21:U21,D$11:U$11) -> 0 | D21: 0 | E21: 0 | F21: 0 | G21: 0 | H21: 0 | I21: 0 | J21: 0 | K21: 0
A22: =+'Unit Mix and Rents'!E56 -> 0 | B22: Total Sqft of Residential Units | C22: =SUMPRODUCT(D22:U22,D$11:U$11) -> 0 | D22: 0 | E22: 0 | F22: 0 | G22: 0 | H22: 0 | I22: 0 | J22: 0 | K22: 0
B23: Applicable Fraction by Sqft | D23: =IF(D22=0,0,+D21/D22) -> 0 | E23: =IF(E$6=1,IF(E22=0,0,E21/E22),"") ->  | F23: =IF(F$6=1,IF(F22=0,0,F21/F22),"") ->  | G23: =IF(G$6=1,IF(G22=0,0,G21/G22),"") ->  | H23: =IF(H$6=1,IF(H22=0,0,H21/H22),"") -> 
B25: BASIS CALCULATION
A27: =+'Development Costs'!$C$193 -> 0 | B27: Adjusted Construction Basis | C27: =SUMPRODUCT(D27:U27,$D$11:$U$11) -> 0 | D27: =IF($C$15=0,0,ROUND((D$13/$C$15)*'Development Costs'!$C$193,0)) -> 0 | E27: =IF(E$6=1,ROUND((E$13/$C$15)*'Development Costs'!$C$193,0),0) -> 0 | F27: =IF(F$6=1,ROUND((F$13/$C$15)*'Development Costs'!$C$193,0),0) -> 0 | G27: =IF(G$6=1,ROUND((G$13/$C$15)*'Development Costs'!$C$193,0),0) -> 0 | H27: =IF(H$6=1,ROUND((H$13/$C$15)*'Development Costs'!$C$193,0),0) -> 0 | I27: =IF(I$6=1,ROUND((I$13/$C$15)*'Development Costs'!$C$193,0),0) -> 0 | J27: =IF(J$6=1,ROUND((J$13/$C$15)*'Development Costs'!$C$193,0),0) -> 0 | K27: =IF(K$6=1,ROUND((K$13/$C$15)*'Development Costs'!$C$193,0),0) -> 0 | L27: =IF(L$6=1,ROUND((L$13/$C$15)*'Development Costs'!$C$193,0),0) -> 0 | M27: =IF(M$6=1,ROUND((M$13/$C$15)*'Development Costs'!$C$193,0),0) -> 0 | N27: =IF(N$6=1,ROUND((N$13/$C$15)*'Development Costs'!$C$193,0),0) -> 0 | O27: =IF(O$6=1,ROUND((O$13/$C$15)*'Development Costs'!$C$193,0),0) -> 0 | P27: =IF(P$6=1,ROUND((P$13/$C$15)*'Development Costs'!$C$193,0),0) -> 0 | Q27: =IF(Q$6=1,ROUND((Q$13/$C$15)*'Development Costs'!$C$193,0),0) -> 0 | R27: =IF(R$6=1,ROUND((R$13/$C$15)*'Development Costs'!$C$193,0),0) -> 0 | S27: =IF(S$6=1,ROUND((S$13/$C$15)*'Development Costs'!$C$193,0),0) -> 0 | T27: =IF(T$6=1,ROUND((T$13/$C$15)*'Development Costs'!$C$193,0),0) -> 0 | U27: =IF(U$6=1,ROUND((U$13/$C$15)*'Development Costs'!$C$193,0),0) -> 0
A28: =+'Development Costs'!$C$164 -> 0 | B28: Adjusted Acquisition Basis | C28: =SUMPRODUCT(D28:U28,$D$11:$U$11) -> 0 | D28: =IF($C$15=0,0,ROUND((D$13/$C$15)*'Development Costs'!$C$164,0)) -> 0 | E28: =IF(E$6=1,ROUND((E$13/$C$15)*'Development Costs'!$C$164,0),0) -> 0 | F28: =IF(F$6=1,ROUND((F$13/$C$15)*'Development Costs'!$C$164,0),0) -> 0 | G28: =IF(G$6=1,ROUND((G$13/$C$15)*'Development Costs'!$C$164,0),0) -> 0 | H28: =IF(H$6=1,ROUND((H$13/$C$15)*'Development Costs'!$C$164,0),0) -> 0 | I28: =IF(I$6=1,ROUND((I$13/$C$15)*'Development Costs'!$C$164,0),0) -> 0 | J28: =IF(J$6=1,ROUND((J$13/$C$15)*'Development Costs'!$C$164,0),0) -> 0 | K28: =IF(K$6=1,ROUND((K$13/$C$15)*'Development Costs'!$C$164,0),0) -> 0 | L28: =IF(L$6=1,ROUND((L$13/$C$15)*'Development Costs'!$C$164,0),0) -> 0 | M28: =IF(M$6=1,ROUND((M$13/$C$15)*'Development Costs'!$C$164,0),0) -> 0 | N28: =IF(N$6=1,ROUND((N$13/$C$15)*'Development Costs'!$C$164,0),0) -> 0 | O28: =IF(O$6=1,ROUND((O$13/$C$15)*'Development Costs'!$C$164,0),0) -> 0 | P28: =IF(P$6=1,ROUND((P$13/$C$15)*'Development Costs'!$C$164,0),0) -> 0 | Q28: =IF(Q$6=1,ROUND((Q$13/$C$15)*'Development Costs'!$C$164,0),0) -> 0 | R28: =IF(R$6=1,ROUND((R$13/$C$15)*'Development Costs'!$C$164,0),0) -> 0 | S28: =IF(S$6=1,ROUND((S$13/$C$15)*'Development Costs'!$C$164,0),0) -> 0 | T28: =IF(T$6=1,ROUND((T$13/$C$15)*'Development Costs'!$C$164,0),0) -> 0 | U28: =IF(U$6=1,ROUND((U$13/$C$15)*'Development Costs'!$C$164,0),0) -> 0
A30: =+'Project Description'!$H$207+1 -> 1 | B30: Construction Basis After Boost | C30: =SUMPRODUCT(D30:U30,$D$11:$U$11) -> 0 | D30: =+D27*$A30 -> 0 | E30: =IF(E$6=1,+E27*$A30,"") ->  | F30: =IF(F$6=1,+F27*$A30,"") -> 
A31: =+'Project Description'!$H$208+1 -> 1 | B31: Acquisition Basis After Boost | C31: =SUMPRODUCT(D31:U31,$D$11:$U$11) -> 0 | D31: =+D28*$A31 -> 0 | E31: =IF(E$6=1,+E28*$A31,"") ->  | F31: =IF(F$6=1,+F28*$A31,"") -> 
B33: Applicable Fraction | C33: =IF(C30=0,0,+C35/C30) -> 0 | D33: =MIN(D23,D19) -> 0 | E33: =IF(E$6=1,MIN(E23,E19),"") -> 
B35: Unadjusted Qualified Construction Basis | C35: =SUMPRODUCT(D35:U35,$D$11:$U$11) -> 0 | D35: =+D33*D30 -> 0 | E35: =IF(E$6=1,+E33*E30,"") -> 
B36: Unadjusted Qualified Acquisition. Basis | C36: =SUMPRODUCT(D36:U36,$D$11:$U$11) -> 0 | D36: =+D33*D31 -> 0 | E36: =IF(E$6=1,E33*E31,"") -> 
B38: Homeless Basis Adjustment (Construction)* | C38: =SUMPRODUCT(D38:U38,$D$11:$U$11) -> 0 | D38: 0 | E38: 0 | F38: 0 | G38: 0 | H38: 0 | I38: 0 | J38: 0 | K38: 0 | L38: 0 | M38: 0 | N38: 0 | O38: 0 | P38: 0 | Q38: 0 | R38: 0 | S38: 0 | T38: 0 | U38: 0
B39: Homeless Basis Adjustment (Acquisition)* | C39: =SUMPRODUCT(D39:U39,$D$11:$U$11) -> 0 | D39: 0 | E39: 0 | F39: 0 | G39: 0 | H39: 0 | I39: 0 | J39: 0 | K39: 0 | L39: 0 | M39: 0 | N39: 0 | O39: 0 | P39: 0 | Q39: 0 | R39: 0 | S39: 0 | T39: 0 | U39: 0
B41: Qualified Construction Basis | C41: =SUMPRODUCT(D41:U41,$D$11:$U$11) -> 0 | D41: =+D38+D35 -> 0 | E41: =IF(E$6=1,+E35+E38,"") -> 
B42: Qualified Acquisition Basis | C42: =SUMPRODUCT(D42:U42,$D$11:$U$11) -> 0 | D42: =+D39+D36 -> 0 | E42: =IF(E$6=1,+E36+E39,"") -> 
B44: Construction Credit Percentage | C44: =IF('Project Description'!H23="Yes",'Project Description'!$H$195,IF('Project Description'!H12="Yes",'Project Description'!H15,0)) -> 0
B45: Acquisition Credit Percentage | C45: =IF('Project Description'!H23="Yes",+'Project Description'!$H$197,IF('Project Description'!H12="Yes",'Project Description'!H15,0)) -> 0
B48: Permitted Construction Credit | C48: =SUMPRODUCT(D48:U48,$D$11:$U$11) -> 0 | D48: =+D41*$C$44 -> 0 | E48: =IF(E$6=1,+E41*$C$44,"") -> 
B49: Permitted Acquisition Credi | C49: =SUMPRODUCT(D49:U49,$D$11:$U$11) -> 0 | D49: =+D42*$C$45 -> 0 | E49: =IF(E$6=1,+E42*$C$45,"") -> 
B51: Maximum Permitted Credit for Project | C51: =+C49+C48 -> 0
B52: (Based on estimated development costs, without regard to Equity Gap limitation and without regard to maximum credits allowable in the selected pool)
B54: * Section 42(c)(1)(E) permits an upward adjustment to basis for buildings used at least in part "to provide supportive services designed to assist [homeless] tenants in locating and retaiing permanent housing".
B56: Error checks: | K56: =SUM(K57:K62) -> 0
B57: =IF(C11='Project Description'!$H$590,"","Note 1 -- Total number of buildings ("&C11&" buildings) does not agree with Project Description section "&'Project Description'!$A$588&" ("&'Project Description'!H590&" buildings)") ->  | K57: =IF(B57="","",1) -> 
B58: =IF(A13=C13,"","Note 2 -- Total Floor Area (Residential + Staff Units) of "&TEXT(C13,"#,##0")&" square feet, does not agree with Unit Mix and Rents worksheet ("&TEXT(A13,"#,##0")&" square feet)") -> 
B59: =IF(A17=C17,"","Note 3 -- Total LIHTC Units ("&TEXT(C17,"#,##0")&" units) does not agree with Unit Mix and Rents worksheet ("&TEXT(A17,"#,##0")&" units)") -> 
B60: =IF(A18=C18,"","Note 4 -- Total Residential Units ("&TEXT(C18,"#,##0")&" units) does not agree with Unit Mix and Rents worksheet ("&TEXT(A18,"#,##0")&" units)") -> 
B61: =IF(A21=C21,"","Note 5 -- Total LIHTC Units Floor Area ("&TEXT(C21,"#,##0")&" sqft) does not agree with Unit Mix and Rents worksheet ("&TEXT(A21,"#,##0")&" sqft)") -> 
B62: =IF(A22=C22,"","Note 6 -- Total Residential Floor Area ("&TEXT(C22,"#,##0")&" sqft) does not agree with Unit Mix and Rents worksheet ("&TEXT(A22,"#,##0")&" sqft)") -> 

Sheet Revenues and Expenses
A3: =+Instructions!$A$3 -> 2020 Piggyback Mixed Income Resilience (PRIME) Rental Housing Application
A4: =TRIM('Project Description'!$E$79)&" ("&TRIM('Project Description'!$E$81)&" LA), "&'Project Description'!$E$50 -> x (x LA), x
A6: Revenues and Expenses, For First Stabilized Year After Lease-Up
A8: ="Section "&$H8 -> Section 43 | B8: Revenues for First Stabilized Year | H8: =+'Development Costs'!I388+1 -> 43
A10: =+H10 -> 43.01 | B10: Gross Potential Rents (excluding utilities) | C10: =+'Unit Mix and Rents'!$L$41*12 -> 0 | H10: =+H8+0.01 -> 43.01
A11: 43.02 | B11: Rent from Commercial Space | C11: 0 | H11: =+H10+0.01 -> 43.02
A12: 43.03 | B12: Interest Income | C12: 0 | H12: =+H11+0.01 -> 43.03
A13: 43.04 | B13: Laundry Income | C13: 0 | H13: 43.04
A14: 43.05 | B14: Parking Income | C14: 0 | H14: 43.05
A15: 43.06 | B15: Tenant Charges (e.g. late fees) | C15: 0 | H15: 43.06
B16: Operating Subsidies:
A17: =+H17 -> 43.07 | B17: Other (identify) | C17: 0 | H17: =+H15+0.01 -> 43.07
A18: =+H18 -> 43.08 | B18: Other (identify) | C18: 0 | H18: 43.08
A19: =+H19 -> 43.09 | B19: Other (identify) | C19: 0 | H19: 43.09
B20: Other Revenue:
A21: =+H21 -> 43.1 | B21: Other (identify) | C21: 0 | H21: =+H19+0.01 -> 43.1
A22: =+H22 -> 43.11 | B22: Other (identify) | C22: 0 | H22: 43.11
A23: =+H23 -> 43.12 | B23: Other (identify) | C23: 0 | H23: 43.12
A25: =+H25 -> 43.13 | B25: Total Revenue Before Rent Loss | C25: =SUM(C9:C24) -> 0 | H25: =+H23+0.01 -> 43.13
B27: Comment regarding Revenues
A29: ="Section "&$H29 -> Section 44 | B29: Must-Pay Operating Expenses for First Stabilized Year | H29: =+H8+1 -> 44
A31: =+H31 -> 44.01 | B31: Administrative Expenses: | C31: =SUM(C32:C51) -> 1 | D31: =IF($I$31=0,0,C31/$I$31) -> 0 | E31: PUPA | H31: =+H29+0.01 -> 44.01 | I31: =+'Unit Mix and Rents'!$F$41 -> 0 | J31: total units
A32: =+H32 -> 44.02 | B32: Accounting Services | C32: 0 | H32: =+H31+0.01 -> 44.02
A33: 44.03 | B33: Administrative Rent Free Unit(s) | C33: 0 | H33: =+H32+0.01 -> 44.03
A34: 44.04 | B34: Bad Debt | C34: 0 | H34: 44.04
A35: 44.05 | B35: Rent Concessions | C35: 0 | H35: 44.05
A36: 44.06 | B36: Advertising | C36: 0 | H36: 44.06
A37: 44.07 | B37: LHC Compliance Monitoring Fee | C37: =+'Project Description'!$H$994 -> 0 | H37: 44.07
A38: 44.08 | B38: Compliance Fees (Other) | C38: 0 | H38: 44.08
A39: 44.09 | B39: LHC Asset Management Fee | C39: 0 | H39: 44.09
A40: 44.1 | B40: Asset Management Fee (Other) | C40: 1 | H40: 44.1
A41: 44.11 | B41: Legal Auditing | C41: 0 | H41: 44.11
A42: 44.12 | B42: Management Fee | C42: 0 | H42: 44.12
A43: 44.13 | B43: Manager(s) Salaries | C43: 0 | H43: 44.13
A44: 44.14 | B44: Office Salaries | C44: 0 | H44: 44.14
A45: 44.15 | B45: Office Supplies | C45: 0 | H45: 44.15
A46: 44.16 | B46: Telephone | C46: 0 | H46: 44.16
A47: 44.17 | B47: Supportive Services Expense | C47: 0 | H47: 44.17
A48: 44.18 | B48: Other (identify) | C48: 0 | H48: 44.18
A49: 44.19 | B49: Other (identify) | C49: 0 | H49: 44.19
A50: 44.2 | B50: Other (identify) | H50: 44.2
A52: 44.21 | B52: Operating/Maintenance Expenses: | C52: =SUM(C53:C63) -> 0 | D52: =IF($I$31=0,0,C52/$I$31) -> 0 | E52: PUPA | H52: =+H50+0.01 -> 44.21
A53: 44.22 | B53: Elevator Maintenance/Contract | C53: 0 | H53: 44.22
A54: 44.23 | B54: Exterminating Contract | C54: 0 | H54: 44.23
A55: 44.24 | B55: Grounds Expense | C55: 0 | H55: 44.24
A56: 44.25 | B56: Janitorial Services | C56: 0 | H56: 44.25
A57: 44.26 | B57: Repairs/Maintenance | C57: 0 | H57: 44.26
A58: 44.27 | B58: Security Payroll/Contract | C58: 0 | H58: 44.27
A59: 44.28 | B59: Waste Collection | C59: 0 | H59: 44.28
A60: 44.29 | B60: Other (identify) | C60: 0 | H60: 44.29
A61: 44.3 | B61: Other (identify) | C61: 0 | H61: 44.3
A62: 44.31 | B62: Other (identify) | C62: 0 | H62: 44.31
A64: 44.32 | B64: Utilities Expenses: | C64: =SUM(C65:C72) -> 0 | D64: =IF($I$31=0,0,C64/$I$31) -> 0 | E64: PUPA | H64: =+H62+0.01 -> 44.32
A65: 44.33 | B65: Electricity | C65: 0 | H65: 44.33
A66: 44.34 | B66: Gas | C66: 0 | H66: 44.34
A67: 44.35 | B67: Sewer | C67: 0 | H67: 44.35
A68: 44.36 | B68: Water | C68: 0 | H68: 44.36
A69: 44.37 | B69: Other (identify): | C69: 0 | H69: 44.37
A70: 44.38 | B70: Other (identify) | C70: 0 | H70: 44.38
A71: 44.39 | B71: Other (identify) | C71: 0 | H71: 44.39
A73: 44.4 | B73: Tax and Insurance Expenses: | C73: =SUM(C74:C82) -> 0 | D73: =IF($I$31=0,0,C73/$I$31) -> 0 | E73: PUPA | H73: =+H71+0.01 -> 44.4
A74: 44.41 | B74: Property Insurance | C74: 0 | H74: 44.41
A75: 44.42 | B75: Other Insurance | C75: 0 | H75: 44.42
A76: 44.43 | B76: Payroll Taxes | C76: 0 | H76: 44.43
A77: 44.44 | B77: Real Estate Taxes | C77: 0 | H77: 44.44
A78: 44.45 | B78: Workmen's Compensation | C78: 0 | H78: 44.45
A79: 44.46 | B79: Other (identify): | C79: 0 | H79: 44.46
A80: 44.47 | B80: Other (identify) | C80: 0 | H80: 44.47
A81: 44.48 | B81: Other (identify) | C81: 0 | H81: 44.48
A83: 44.49 | B83: Total Operating Expenses | C83: =+C73+C64+C52+C31 -> 1 | D83: =IF($I$31=0,0,C83/$I$31) -> 0 | E83: PUPA | H83: =+H81+0.01 -> 44.49
B85: ="LHC Minimum Expenses (QAP "&I85&")" -> LHC Minimum Expenses (QAP IV.D.8) | C85: =+D85*'Unit Mix and Rents'!$F$41 -> 0 | D85: =+K85 -> 3600 | E85: PUPA | I85: =+'QAP Reference'!$A$33 -> IV.D.8 | K85: 3600 | L85: PUPA
B87: =IF(C83<C85,K87,"") ->  | K87: You have proposed total operating expenses that are below the minimum level specified in the QAP. Either increase the operating expenses so they are at or above LHC's minimum, or your Checklist response must include a waiver request.
B89: Use These Expenses for Underwriting | C89: =+C83 -> 1 | D89: =IF($I$31=0,0,C89/$I$31) -> 0 | E89: PUPA
B91: =IF(AND('Project Description'!H111=Controls!$A$46,'Revenues and Expenses'!C53=0),"This is an elevator building; explain why no elevator maintenance was budgeted.","") -> 
B93: =IF(C40>0,"Asset Management Fees (Other) is generally not permitted as an ‘above the line’ operating expense, and may be structured to be paid only from the sponsor’s share of Surplus Cash—input any such fee at Section 45.01 below.",IF(C39<>0,"Include a full explanation of the proposed asset management fee(s) below.","")) -> Asset Management Fees (Other) is generally not permitted as an ‘above the line’ operating expense, and may be structured to be paid only from the sponsor’s share of Surplus Cash—input any such fee at Section 45.01 below.
B95: Comment regarding Must-Pay Expenses
A97: ="Section "&$H97 -> Section 45 | B97: Contingent Operating Expenses | H97: =+H29+1 -> 45
A99: Please explain below any operating expenses that are payable only if cash is available, and/or after certain other payments are made first from available cash flow. Please use the comment area below if additional explanation is needed.
A100: =IF('Project Description'!H183=0,"",K100) -> You have applied for CDBG-DR funds. Note that expenses such as the following cannot be paid from operations, but instead can be paid only from the borrower's share of Surplus Cash: deferred developer fee, other development costs, tax credit adjusters, most asset management fees, and investor service fees. | K100: You have applied for CDBG-DR funds. Note that expenses such as the following cannot be paid from operations, but instead can be paid only from the borrower's share of Surplus Cash: deferred developer fee, other development costs, tax credit adjusters, most asset management fees, and investor service fees.
A102: =+H102 -> 45.01 | B102: Asset Management Fee | C102: 6000 | H102: =+H97+0.01 -> 45.01 | J102: =+C102+C40 -> 6001 | K102: Total asset mgmt fee (must-pay + contingent)
A103: 45.02 | B103: Investor Service Fee | C103: 0 | H103: =+H102+0.01 -> 45.02 | J103: 5000 | K103: Maximum allowable as operating expense (combination of must-pay + contingent)
A104: 45.03 | B104: Other (identify) | C104: 0 | H104: 45.03 | J104: =MIN(J103,J102) -> 5000 | K104: Allowable as operating expense for this transaction
A105: 45.04 | B105: Other (identify) | C105: 0 | H105: 45.04 | J105: =+J104-C40 -> 4999 | K105: Allowable as contingent expense for this transaction
A106: 45.05 | B106: Other (identify) | C106: 0 | H106: 45.05
A107: 45.06 | B107: Other (identify) | C107: 0 | H107: 45.06
A108: 45.07 | B108: Other (identify) | C108: 0 | H108: 45.07
A110: 45.08 | B110: Comment regarding Contingent Expenses | H110: =+H108+0.01 -> 45.08

Sheet Proforma
A3: =+Instructions!$A$3 -> 2020 Piggyback Mixed Income Resilience (PRIME) Rental Housing Application
A4: =TRIM('Project Description'!$E$79)&" ("&TRIM('Project Description'!$E$81)&" LA), "&'Project Description'!$E$50 -> x (x LA), x
A6: Pro Forma Cash Flows
A8: 9 | H8: =+'Unit Mix and Rents'!$F$41 -> 0 | I8: Units
C9: 1 | D9: =+C9+1 -> 2 | E9: =+D9+1 -> 3 | F9: 4 | G9: 5 | H9: 6 | I9: 7 | J9: 8 | K9: 9 | L9: 10 | M9: 11 | N9: 12 | O9: 13 | P9: 14 | Q9: 15 | R9: 16 | S9: 17 | T9: 18 | U9: 19 | V9: 20 | W9: 21 | X9: 22 | Y9: 23 | Z9: 24 | AA9: 25 | AB9: 26 | AC9: 27 | AD9: 28 | AE9: 29 | AF9: 30 | AG9: 31 | AH9: 32 | AI9: 33 | AJ9: 34 | AK9: 35 | AL9: =+AK9+1 -> 36 | AM9: =+AL9+1 -> 37 | AN9: =+AM9+1 -> 38 | AO9: =+AN9+1 -> 39 | AP9: =+AO9+1 -> 40
A10: =ROW(A10)-$A$8 -> 1 | C10: Year 1 | D10: Year 2 | E10: Year 3 | F10: Year 4 | G10: Year 5 | H10: Year 6 | I10: Year 7 | J10: Year 8 | K10: Year 9 | L10: Year 10 | M10: Year 11 | N10: Year 12 | O10: Year 13 | P10: Year 14 | Q10: Year 15 | R10: Year 16 | S10: Year 17 | T10: Year 18 | U10: Year 19 | V10: Year 20 | W10: Year 21 | X10: Year 22 | Y10: Year 23 | Z10: Year 24 | AA10: Year 25 | AB10: Year 26 | AC10: Year 27 | AD10: Year 28 | AE10: Year 29 | AF10: Year 30 | AG10: Year 31 | AH10: Year 32 | AI10: Year 33 | AJ10: Year 34 | AK10: Year 35 | AL10: Year 36 | AM10: Year 37 | AN10: Year 38 | AO10: Year 39 | AP10: Year 40
A11: =ROW(A11)-$A$8 -> 2
A12: 3 | B12: Rent Loss % | C12: =+'Project Description'!$H$908 -> 0.07 | D12: =+'Project Description'!$H$908 -> 0.07 | E12: =+'Project Description'!$H$908 -> 0.07 | F12: =+'Project Description'!$H$910 -> 0.07 | G12: =+F12 -> 0.07 | H12: =+G12 -> 0.07 | I12: 0.07 | J12: 0.07 | K12: 0.07 | L12: 0.07 | M12: 0.07 | N12: 0.07 | O12: 0.07 | P12: 0.07 | Q12: 0.07 | R12: 0.07 | S12: 0.07 | T12: 0.07 | U12: 0.07 | V12: 0.07 | W12: 0.07 | X12: 0.07 | Y12: 0.07 | Z12: 0.07 | AA12: 0.07 | AB12: 0.07 | AC12: 0.07 | AD12: 0.07 | AE12: 0.07 | AF12: 0.07 | AG12: 0.07 | AH12: 0.07 | AI12: 0.07 | AJ12: 0.07 | AK12: 0.07 | AL12: =+AK12 -> 0.07 | AM12: =+AL12 -> 0.07 | AN12: =+AM12 -> 0.07 | AO12: =+AN12 -> 0.07 | AP12: =+AO12 -> 0.07
A13: 4
A14: 5 | B14: Gross Rent Potential | C14: =+'Revenues and Expenses'!C10 -> 0 | D14: =ROUND(C14*(1+'Project Description'!$H$912),0) -> 0 | E14: =ROUND(D14*(1+'Project Description'!$H$912),0) -> 0 | F14: =ROUND(E14*(1+'Project Description'!$H$914),0) -> 0 | G14: =ROUND(F14*(1+'Project Description'!$H$914),0) -> 0 | H14: =ROUND(G14*(1+'Project Description'!$H$914),0) -> 0 | I14: =ROUND(H14*(1+'Project Description'!$H$914),0) -> 0 | J14: =ROUND(I14*(1+'Project Description'!$H$914),0) -> 0 | K14: =ROUND(J14*(1+'Project Description'!$H$914),0) -> 0 | L14: =ROUND(K14*(1+'Project Description'!$H$914),0) -> 0 | M14: =ROUND(L14*(1+'Project Description'!$H$914),0) -> 0 | N14: =ROUND(M14*(1+'Project Description'!$H$914),0) -> 0 | O14: =ROUND(N14*(1+'Project Description'!$H$914),0) -> 0 | P14: =ROUND(O14*(1+'Project Description'!$H$914),0) -> 0 | Q14: =ROUND(P14*(1+'Project Description'!$H$914),0) -> 0 | R14: =ROUND(Q14*(1+'Project Description'!$H$914),0) -> 0 | S14: =ROUND(R14*(1+'Project Description'!$H$914),0) -> 0 | T14: =ROUND(S14*(1+'Project Description'!$H$914),0) -> 0 | U14: =ROUND(T14*(1+'Project Description'!$H$914),0) -> 0 | V14: =ROUND(U14*(1+'Project Description'!$H$914),0) -> 0 | W14: =ROUND(V14*(1+'Project Description'!$H$914),0) -> 0 | X14: =ROUND(W14*(1+'Project Description'!$H$914),0) -> 0 | Y14: =ROUND(X14*(1+'Project Description'!$H$914),0) -> 0 | Z14: =ROUND(Y14*(1+'Project Description'!$H$914),0) -> 0 | AA14: =ROUND(Z14*(1+'Project Description'!$H$914),0) -> 0 | AB14: =ROUND(AA14*(1+'Project Description'!$H$914),0) -> 0 | AC14: =ROUND(AB14*(1+'Project Description'!$H$914),0) -> 0 | AD14: =ROUND(AC14*(1+'Project Description'!$H$914),0) -> 0 | AE14: =ROUND(AD14*(1+'Project Description'!$H$914),0) -> 0 | AF14: =ROUND(AE14*(1+'Project Description'!$H$914),0) -> 0 | AG14: =ROUND(AF14*(1+'Project Description'!$H$914),0) -> 0 | AH14: =ROUND(AG14*(1+'Project Description'!$H$914),0) -> 0 | AI14: =ROUND(AH14*(1+'Project Description'!$H$914),0) -> 0 | AJ14: =ROUND(AI14*(1+'Project Description'!$H$914),0) -> 0 | AK14: =ROUND(AJ14*(1+'Project Description'!$H$914),0) -> 0 | AL14: =ROUND(AK14*(1+'Project Description'!$H$914),0) -> 0 | AM14: =ROUND(AL14*(1+'Project Description'!$H$914),0) -> 0 | AN14: =ROUND(AM14*(1+'Project Description'!$H$914),0) -> 0 | AO14: =ROUND(AN14*(1+'Project Description'!$H$914),0) -> 0 | AP14: =ROUND(AO14*(1+'Project Description'!$H$914),0) -> 0
A15: 6 | B15: Rent Loss | C15: =-ROUND(C14*C12,0) -> 0 | D15: =-ROUND(D14*D12,0) -> 0 | E15: 0 | F15: 0 | G15: 0 | H15: 0 | I15: 0 | J15: 0 | K15: 0 | L15: 0 | M15: 0 | N15: 0 | O15: 0 | P15: 0 | Q15: 0 | R15: 0 | S15: 0 | T15: 0 | U15: 0 | V15: 0 | W15: 0 | X15: 0 | Y15: 0 | Z15: 0 | AA15: 0 | AB15: 0 | AC15: 0 | AD15: 0 | AE15: 0 | AF15: 0 | AG15: 0 | AH15: 0 | AI15: 0 | AJ15: 0 | AK15: 0 | AL15: =-ROUND(AL14*AL12,0) -> 0 | AM15: =-ROUND(AM14*AM12,0) -> 0 | AN15: =-ROUND(AN14*AN12,0) -> 0 | AO15: =-ROUND(AO14*AO12,0) -> 0 | AP15: =-ROUND(AP14*AP12,0) -> 0
A16: 7 | B16: Rent from Commercial Space | C16: =+'Revenues and Expenses'!C11 -> 0 | D16: =ROUND(C16*(1+'Project Description'!$H$912),0) -> 0 | E16: =ROUND(D16*(1+'Project Description'!$H$912),0) -> 0 | F16: =ROUND(E16*(1+'Project Description'!$H$914),0) -> 0 | G16: =ROUND(F16*(1+'Project Description'!$H$914),0) -> 0 | H16: =ROUND(G16*(1+'Project Description'!$H$914),0) -> 0 | I16: =ROUND(H16*(1+'Project Description'!$H$914),0) -> 0 | J16: =ROUND(I16*(1+'Project Description'!$H$914),0) -> 0 | K16: =ROUND(J16*(1+'Project Description'!$H$914),0) -> 0 | L16: =ROUND(K16*(1+'Project Description'!$H$914),0) -> 0 | M16: =ROUND(L16*(1+'Project Description'!$H$914),0) -> 0 | N16: =ROUND(M16*(1+'Project Description'!$H$914),0) -> 0 | O16: =ROUND(N16*(1+'Project Description'!$H$914),0) -> 0 | P16: =ROUND(O16*(1+'Project Description'!$H$914),0) -> 0 | Q16: =ROUND(P16*(1+'Project Description'!$H$914),0) -> 0 | R16: =ROUND(Q16*(1+'Project Description'!$H$914),0) -> 0 | S16: =ROUND(R16*(1+'Project Description'!$H$914),0) -> 0 | T16: =ROUND(S16*(1+'Project Description'!$H$914),0) -> 0 | U16: =ROUND(T16*(1+'Project Description'!$H$914),0) -> 0 | V16: =ROUND(U16*(1+'Project Description'!$H$914),0) -> 0 | W16: =ROUND(V16*(1+'Project Description'!$H$914),0) -> 0 | X16: =ROUND(W16*(1+'Project Description'!$H$914),0) -> 0 | Y16: =ROUND(X16*(1+'Project Description'!$H$914),0) -> 0 | Z16: =ROUND(Y16*(1+'Project Description'!$H$914),0) -> 0 | AA16: =ROUND(Z16*(1+'Project Description'!$H$914),0) -> 0 | AB16: =ROUND(AA16*(1+'Project Description'!$H$914),0) -> 0 | AC16: =ROUND(AB16*(1+'Project Description'!$H$914),0) -> 0 | AD16: =ROUND(AC16*(1+'Project Description'!$H$914),0) -> 0 | AE16: =ROUND(AD16*(1+'Project Description'!$H$914),0) -> 0 | AF16: =ROUND(AE16*(1+'Project Description'!$H$914),0) -> 0 | AG16: =ROUND(AF16*(1+'Project Description'!$H$914),0) -> 0 | AH16: =ROUND(AG16*(1+'Project Description'!$H$914),0) -> 0 | AI16: =ROUND(AH16*(1+'Project Description'!$H$914),0) -> 0 | AJ16: =ROUND(AI16*(1+'Project Description'!$H$914),0) -> 0 | AK16: =ROUND(AJ16*(1+'Project Description'!$H$914),0) -> 0 | AL16: =ROUND(AK16*(1+'Project Description'!$H$914),0) -> 0 | AM16: =ROUND(AL16*(1+'Project Description'!$H$914),0) -> 0 | AN16: =ROUND(AM16*(1+'Project Description'!$H$914),0) -> 0 | AO16: =ROUND(AN16*(1+'Project Description'!$H$914),0) -> 0 | AP16: =ROUND(AO16*(1+'Project Description'!$H$914),0) -> 0
A17: 8 | B17: Interest | C17: =+'Revenues and Expenses'!C12 -> 0 | D17: =ROUND(C17*(1+'Project Description'!$H$912),0) -> 0 | E17: =ROUND(D17*(1+'Project Description'!$H$912),0) -> 0 | F17: =ROUND(E17*(1+'Project Description'!$H$914),0) -> 0 | G17: =ROUND(F17*(1+'Project Description'!$H$914),0) -> 0 | H17: =ROUND(G17*(1+'Project Description'!$H$914),0) -> 0 | I17: =ROUND(H17*(1+'Project Description'!$H$914),0) -> 0 | J17: =ROUND(I17*(1+'Project Description'!$H$914),0) -> 0 | K17: =ROUND(J17*(1+'Project Description'!$H$914),0) -> 0 | L17: =ROUND(K17*(1+'Project Description'!$H$914),0) -> 0 | M17: =ROUND(L17*(1+'Project Description'!$H$914),0) -> 0 | N17: =ROUND(M17*(1+'Project Description'!$H$914),0) -> 0 | O17: =ROUND(N17*(1+'Project Description'!$H$914),0) -> 0 | P17: =ROUND(O17*(1+'Project Description'!$H$914),0) -> 0 | Q17: =ROUND(P17*(1+'Project Description'!$H$914),0) -> 0 | R17: =ROUND(Q17*(1+'Project Description'!$H$914),0) -> 0 | S17: =ROUND(R17*(1+'Project Description'!$H$914),0) -> 0 | T17: =ROUND(S17*(1+'Project Description'!$H$914),0) -> 0 | U17: =ROUND(T17*(1+'Project Description'!$H$914),0) -> 0 | V17: =ROUND(U17*(1+'Project Description'!$H$914),0) -> 0 | W17: =ROUND(V17*(1+'Project Description'!$H$914),0) -> 0 | X17: =ROUND(W17*(1+'Project Description'!$H$914),0) -> 0 | Y17: =ROUND(X17*(1+'Project Description'!$H$914),0) -> 0 | Z17: =ROUND(Y17*(1+'Project Description'!$H$914),0) -> 0 | AA17: =ROUND(Z17*(1+'Project Description'!$H$914),0) -> 0 | AB17: =ROUND(AA17*(1+'Project Description'!$H$914),0) -> 0 | AC17: =ROUND(AB17*(1+'Project Description'!$H$914),0) -> 0 | AD17: =ROUND(AC17*(1+'Project Description'!$H$914),0) -> 0 | AE17: =ROUND(AD17*(1+'Project Description'!$H$914),0) -> 0 | AF17: =ROUND(AE17*(1+'Project Description'!$H$914),0) -> 0 | AG17: =ROUND(AF17*(1+'Project Description'!$H$914),0) -> 0 | AH17: =ROUND(AG17*(1+'Project Description'!$H$914),0) -> 0 | AI17: =ROUND(AH17*(1+'Project Description'!$H$914),0) -> 0 | AJ17: =ROUND(AI17*(1+'Project Description'!$H$914),0) -> 0 | AK17: =ROUND(AJ17*(1+'Project Description'!$H$914),0) -> 0 | AL17: =ROUND(AK17*(1+'Project Description'!$H$914),0) -> 0 | AM17: =ROUND(AL17*(1+'Project Description'!$H$914),0) -> 0 | AN17: =ROUND(AM17*(1+'Project Description'!$H$914),0) -> 0 | AO17: =ROUND(AN17*(1+'Project Description'!$H$914),0) -> 0 | AP17: =ROUND(AO17*(1+'Project Description'!$H$914),0) -> 0
A18: 9 | B18: Laundry | C18: =+'Revenues and Expenses'!C13 -> 0 | D18: =ROUND(C18*(1+'Project Description'!$H$912),0) -> 0 | E18: =ROUND(D18*(1+'Project Description'!$H$912),0) -> 0 | F18: =ROUND(E18*(1+'Project Description'!$H$914),0) -> 0 | G18: =ROUND(F18*(1+'Project Description'!$H$914),0) -> 0 | H18: =ROUND(G18*(1+'Project Description'!$H$914),0) -> 0 | I18: =ROUND(H18*(1+'Project Description'!$H$914),0) -> 0 | J18: =ROUND(I18*(1+'Project Description'!$H$914),0) -> 0 | K18: =ROUND(J18*(1+'Project Description'!$H$914),0) -> 0 | L18: =ROUND(K18*(1+'Project Description'!$H$914),0) -> 0 | M18: =ROUND(L18*(1+'Project Description'!$H$914),0) -> 0 | N18: =ROUND(M18*(1+'Project Description'!$H$914),0) -> 0 | O18: =ROUND(N18*(1+'Project Description'!$H$914),0) -> 0 | P18: =ROUND(O18*(1+'Project Description'!$H$914),0) -> 0 | Q18: =ROUND(P18*(1+'Project Description'!$H$914),0) -> 0 | R18: =ROUND(Q18*(1+'Project Description'!$H$914),0) -> 0 | S18: =ROUND(R18*(1+'Project Description'!$H$914),0) -> 0 | T18: =ROUND(S18*(1+'Project Description'!$H$914),0) -> 0 | U18: =ROUND(T18*(1+'Project Description'!$H$914),0) -> 0 | V18: =ROUND(U18*(1+'Project Description'!$H$914),0) -> 0 | W18: =ROUND(V18*(1+'Project Description'!$H$914),0) -> 0 | X18: =ROUND(W18*(1+'Project Description'!$H$914),0) -> 0 | Y18: =ROUND(X18*(1+'Project Description'!$H$914),0) -> 0 | Z18: =ROUND(Y18*(1+'Project Description'!$H$914),0) -> 0 | AA18: =ROUND(Z18*(1+'Project Description'!$H$914),0) -> 0 | AB18: =ROUND(AA18*(1+'Project Description'!$H$914),0) -> 0 | AC18: =ROUND(AB18*(1+'Project Description'!$H$914),0) -> 0 | AD18: =ROUND(AC18*(1+'Project Description'!$H$914),0) -> 0 | AE18: =ROUND(AD18*(1+'Project Description'!$H$914),0) -> 0 | AF18: =ROUND(AE18*(1+'Project Description'!$H$914),0) -> 0 | AG18: =ROUND(AF18*(1+'Project Description'!$H$914),0) -> 0 | AH18: =ROUND(AG18*(1+'Project Description'!$H$914),0) -> 0 | AI18: =ROUND(AH18*(1+'Project Description'!$H$914),0) -> 0 | AJ18: =ROUND(AI18*(1+'Project Description'!$H$914),0) -> 0 | AK18: =ROUND(AJ18*(1+'Project Description'!$H$914),0) -> 0 | AL18: =ROUND(AK18*(1+'Project Description'!$H$914),0) -> 0 | AM18: =ROUND(AL18*(1+'Project Description'!$H$914),0) -> 0 | AN18: =ROUND(AM18*(1+'Project Description'!$H$914),0) -> 0 | AO18: =ROUND(AN18*(1+'Project Description'!$H$914),0) -> 0 | AP18: =ROUND(AO18*(1+'Project Description'!$H$914),0) -> 0
A19: 10 | B19: Parking | C19: =+'Revenues and Expenses'!C14 -> 0 | D19: =ROUND(C19*(1+'Project Description'!$H$912),0) -> 0 | E19: =ROUND(D19*(1+'Project Description'!$H$912),0) -> 0 | F19: =ROUND(E19*(1+'Project Description'!$H$914),0) -> 0 | G19: =ROUND(F19*(1+'Project Description'!$H$914),0) -> 0 | H19: =ROUND(G19*(1+'Project Description'!$H$914),0) -> 0 | I19: =ROUND(H19*(1+'Project Description'!$H$914),0) -> 0 | J19: =ROUND(I19*(1+'Project Description'!$H$914),0) -> 0 | K19: =ROUND(J19*(1+'Project Description'!$H$914),0) -> 0 | L19: =ROUND(K19*(1+'Project Description'!$H$914),0) -> 0 | M19: =ROUND(L19*(1+'Project Description'!$H$914),0) -> 0 | N19: =ROUND(M19*(1+'Project Description'!$H$914),0) -> 0 | O19: =ROUND(N19*(1+'Project Description'!$H$914),0) -> 0 | P19: =ROUND(O19*(1+'Project Description'!$H$914),0) -> 0 | Q19: =ROUND(P19*(1+'Project Description'!$H$914),0) -> 0 | R19: =ROUND(Q19*(1+'Project Description'!$H$914),0) -> 0 | S19: =ROUND(R19*(1+'Project Description'!$H$914),0) -> 0 | T19: =ROUND(S19*(1+'Project Description'!$H$914),0) -> 0 | U19: =ROUND(T19*(1+'Project Description'!$H$914),0) -> 0 | V19: =ROUND(U19*(1+'Project Description'!$H$914),0) -> 0 | W19: =ROUND(V19*(1+'Project Description'!$H$914),0) -> 0 | X19: =ROUND(W19*(1+'Project Description'!$H$914),0) -> 0 | Y19: =ROUND(X19*(1+'Project Description'!$H$914),0) -> 0 | Z19: =ROUND(Y19*(1+'Project Description'!$H$914),0) -> 0 | AA19: =ROUND(Z19*(1+'Project Description'!$H$914),0) -> 0 | AB19: =ROUND(AA19*(1+'Project Description'!$H$914),0) -> 0 | AC19: =ROUND(AB19*(1+'Project Description'!$H$914),0) -> 0 | AD19: =ROUND(AC19*(1+'Project Description'!$H$914),0) -> 0 | AE19: =ROUND(AD19*(1+'Project Description'!$H$914),0) -> 0 | AF19: =ROUND(AE19*(1+'Project Description'!$H$914),0) -> 0 | AG19: =ROUND(AF19*(1+'Project Description'!$H$914),0) -> 0 | AH19: =ROUND(AG19*(1+'Project Description'!$H$914),0) -> 0 | AI19: =ROUND(AH19*(1+'Project Description'!$H$914),0) -> 0 | AJ19: =ROUND(AI19*(1+'Project Description'!$H$914),0) -> 0 | AK19: =ROUND(AJ19*(1+'Project Description'!$H$914),0) -> 0 | AL19: =ROUND(AK19*(1+'Project Description'!$H$914),0) -> 0 | AM19: =ROUND(AL19*(1+'Project Description'!$H$914),0) -> 0 | AN19: =ROUND(AM19*(1+'Project Description'!$H$914),0) -> 0 | AO19: =ROUND(AN19*(1+'Project Description'!$H$914),0) -> 0 | AP19: =ROUND(AO19*(1+'Project Description'!$H$914),0) -> 0
A20: 11 | B20: Tenant Charges | C20: =+'Revenues and Expenses'!C15 -> 0 | D20: =ROUND(C20*(1+'Project Description'!$H$912),0) -> 0 | E20: =ROUND(D20*(1+'Project Description'!$H$912),0) -> 0 | F20: =ROUND(E20*(1+'Project Description'!$H$914),0) -> 0 | G20: =ROUND(F20*(1+'Project Description'!$H$914),0) -> 0 | H20: =ROUND(G20*(1+'Project Description'!$H$914),0) -> 0 | I20: =ROUND(H20*(1+'Project Description'!$H$914),0) -> 0 | J20: =ROUND(I20*(1+'Project Description'!$H$914),0) -> 0 | K20: =ROUND(J20*(1+'Project Description'!$H$914),0) -> 0 | L20: =ROUND(K20*(1+'Project Description'!$H$914),0) -> 0 | M20: =ROUND(L20*(1+'Project Description'!$H$914),0) -> 0 | N20: =ROUND(M20*(1+'Project Description'!$H$914),0) -> 0 | O20: =ROUND(N20*(1+'Project Description'!$H$914),0) -> 0 | P20: =ROUND(O20*(1+'Project Description'!$H$914),0) -> 0 | Q20: =ROUND(P20*(1+'Project Description'!$H$914),0) -> 0 | R20: =ROUND(Q20*(1+'Project Description'!$H$914),0) -> 0 | S20: =ROUND(R20*(1+'Project Description'!$H$914),0) -> 0 | T20: =ROUND(S20*(1+'Project Description'!$H$914),0) -> 0 | U20: =ROUND(T20*(1+'Project Description'!$H$914),0) -> 0 | V20: =ROUND(U20*(1+'Project Description'!$H$914),0) -> 0 | W20: =ROUND(V20*(1+'Project Description'!$H$914),0) -> 0 | X20: =ROUND(W20*(1+'Project Description'!$H$914),0) -> 0 | Y20: =ROUND(X20*(1+'Project Description'!$H$914),0) -> 0 | Z20: =ROUND(Y20*(1+'Project Description'!$H$914),0) -> 0 | AA20: =ROUND(Z20*(1+'Project Description'!$H$914),0) -> 0 | AB20: =ROUND(AA20*(1+'Project Description'!$H$914),0) -> 0 | AC20: =ROUND(AB20*(1+'Project Description'!$H$914),0) -> 0 | AD20: =ROUND(AC20*(1+'Project Description'!$H$914),0) -> 0 | AE20: =ROUND(AD20*(1+'Project Description'!$H$914),0) -> 0 | AF20: =ROUND(AE20*(1+'Project Description'!$H$914),0) -> 0 | AG20: =ROUND(AF20*(1+'Project Description'!$H$914),0) -> 0 | AH20: =ROUND(AG20*(1+'Project Description'!$H$914),0) -> 0 | AI20: =ROUND(AH20*(1+'Project Description'!$H$914),0) -> 0 | AJ20: =ROUND(AI20*(1+'Project Description'!$H$914),0) -> 0 | AK20: =ROUND(AJ20*(1+'Project Description'!$H$914),0) -> 0 | AL20: =ROUND(AK20*(1+'Project Description'!$H$914),0) -> 0 | AM20: =ROUND(AL20*(1+'Project Description'!$H$914),0) -> 0 | AN20: =ROUND(AM20*(1+'Project Description'!$H$914),0) -> 0 | AO20: =ROUND(AN20*(1+'Project Description'!$H$914),0) -> 0 | AP20: =ROUND(AO20*(1+'Project Description'!$H$914),0) -> 0
A21: 12 | B21: Other | C21: =+'Revenues and Expenses'!C16+SUM('Revenues and Expenses'!C20:C24) -> 0 | D21: =ROUND(C21*(1+'Project Description'!$H$912),0) -> 0 | E21: =ROUND(D21*(1+'Project Description'!$H$912),0) -> 0 | F21: =ROUND(E21*(1+'Project Description'!$H$914),0) -> 0 | G21: =ROUND(F21*(1+'Project Description'!$H$914),0) -> 0 | H21: =ROUND(G21*(1+'Project Description'!$H$914),0) -> 0 | I21: =ROUND(H21*(1+'Project Description'!$H$914),0) -> 0 | J21: =ROUND(I21*(1+'Project Description'!$H$914),0) -> 0 | K21: =ROUND(J21*(1+'Project Description'!$H$914),0) -> 0 | L21: =ROUND(K21*(1+'Project Description'!$H$914),0) -> 0 | M21: =ROUND(L21*(1+'Project Description'!$H$914),0) -> 0 | N21: =ROUND(M21*(1+'Project Description'!$H$914),0) -> 0 | O21: =ROUND(N21*(1+'Project Description'!$H$914),0) -> 0 | P21: =ROUND(O21*(1+'Project Description'!$H$914),0) -> 0 | Q21: =ROUND(P21*(1+'Project Description'!$H$914),0) -> 0 | R21: =ROUND(Q21*(1+'Project Description'!$H$914),0) -> 0 | S21: =ROUND(R21*(1+'Project Description'!$H$914),0) -> 0 | T21: =ROUND(S21*(1+'Project Description'!$H$914),0) -> 0 | U21: =ROUND(T21*(1+'Project Description'!$H$914),0) -> 0 | V21: =ROUND(U21*(1+'Project Description'!$H$914),0) -> 0 | W21: =ROUND(V21*(1+'Project Description'!$H$914),0) -> 0 | X21: =ROUND(W21*(1+'Project Description'!$H$914),0) -> 0 | Y21: =ROUND(X21*(1+'Project Description'!$H$914),0) -> 0 | Z21: =ROUND(Y21*(1+'Project Description'!$H$914),0) -> 0 | AA21: =ROUND(Z21*(1+'Project Description'!$H$914),0) -> 0 | AB21: =ROUND(AA21*(1+'Project Description'!$H$914),0) -> 0 | AC21: =ROUND(AB21*(1+'Project Description'!$H$914),0) -> 0 | AD21: =ROUND(AC21*(1+'Project Description'!$H$914),0) -> 0 | AE21: =ROUND(AD21*(1+'Project Description'!$H$914),0) -> 0 | AF21: =ROUND(AE21*(1+'Project Description'!$H$914),0) -> 0 | AG21: =ROUND(AF21*(1+'Project Description'!$H$914),0) -> 0 | AH21: =ROUND(AG21*(1+'Project Description'!$H$914),0) -> 0 | AI21: =ROUND(AH21*(1+'Project Description'!$H$914),0) -> 0 | AJ21: =ROUND(AI21*(1+'Project Description'!$H$914),0) -> 0 | AK21: =ROUND(AJ21*(1+'Project Description'!$H$914),0) -> 0 | AL21: =ROUND(AK21*(1+'Project Description'!$H$914),0) -> 0 | AM21: =ROUND(AL21*(1+'Project Description'!$H$914),0) -> 0 | AN21: =ROUND(AM21*(1+'Project Description'!$H$914),0) -> 0 | AO21: =ROUND(AN21*(1+'Project Description'!$H$914),0) -> 0 | AP21: =ROUND(AO21*(1+'Project Description'!$H$914),0) -> 0
A22: 13 | B22: Total Operating Subsidy | C22: =SUM('Revenues and Expenses'!C16:C20) -> 0 | D22: =ROUND(C22*(1+'Project Description'!$H$912),0) -> 0 | E22: =ROUND(D22*(1+'Project Description'!$H$912),0) -> 0 | F22: =ROUND(E22*(1+'Project Description'!$H$914),0) -> 0 | G22: =ROUND(F22*(1+'Project Description'!$H$914),0) -> 0 | H22: =ROUND(G22*(1+'Project Description'!$H$914),0) -> 0 | I22: =ROUND(H22*(1+'Project Description'!$H$914),0) -> 0 | J22: =ROUND(I22*(1+'Project Description'!$H$914),0) -> 0 | K22: =ROUND(J22*(1+'Project Description'!$H$914),0) -> 0 | L22: =ROUND(K22*(1+'Project Description'!$H$914),0) -> 0 | M22: =ROUND(L22*(1+'Project Description'!$H$914),0) -> 0 | N22: =ROUND(M22*(1+'Project Description'!$H$914),0) -> 0 | O22: =ROUND(N22*(1+'Project Description'!$H$914),0) -> 0 | P22: =ROUND(O22*(1+'Project Description'!$H$914),0) -> 0 | Q22: =ROUND(P22*(1+'Project Description'!$H$914),0) -> 0 | R22: =ROUND(Q22*(1+'Project Description'!$H$914),0) -> 0 | S22: =ROUND(R22*(1+'Project Description'!$H$914),0) -> 0 | T22: =ROUND(S22*(1+'Project Description'!$H$914),0) -> 0 | U22: =ROUND(T22*(1+'Project Description'!$H$914),0) -> 0 | V22: =ROUND(U22*(1+'Project Description'!$H$914),0) -> 0 | W22: =ROUND(V22*(1+'Project Description'!$H$914),0) -> 0 | X22: =ROUND(W22*(1+'Project Description'!$H$914),0) -> 0 | Y22: =ROUND(X22*(1+'Project Description'!$H$914),0) -> 0 | Z22: =ROUND(Y22*(1+'Project Description'!$H$914),0) -> 0 | AA22: =ROUND(Z22*(1+'Project Description'!$H$914),0) -> 0 | AB22: =ROUND(AA22*(1+'Project Description'!$H$914),0) -> 0 | AC22: =ROUND(AB22*(1+'Project Description'!$H$914),0) -> 0 | AD22: =ROUND(AC22*(1+'Project Description'!$H$914),0) -> 0 | AE22: =ROUND(AD22*(1+'Project Description'!$H$914),0) -> 0 | AF22: =ROUND(AE22*(1+'Project Description'!$H$914),0) -> 0 | AG22: =ROUND(AF22*(1+'Project Description'!$H$914),0) -> 0 | AH22: =ROUND(AG22*(1+'Project Description'!$H$914),0) -> 0 | AI22: =ROUND(AH22*(1+'Project Description'!$H$914),0) -> 0 | AJ22: =ROUND(AI22*(1+'Project Description'!$H$914),0) -> 0 | AK22: =ROUND(AJ22*(1+'Project Description'!$H$914),0) -> 0 | AL22: =ROUND(AK22*(1+'Project Description'!$H$914),0) -> 0 | AM22: =ROUND(AL22*(1+'Project Description'!$H$914),0) -> 0 | AN22: =ROUND(AM22*(1+'Project Description'!$H$914),0) -> 0 | AO22: =ROUND(AN22*(1+'Project Description'!$H$914),0) -> 0 | AP22: =ROUND(AO22*(1+'Project Description'!$H$914),0) -> 0
A23: 14
A24: 15 | B24: Effective Gross Income | C24: =SUM(C13:C23) -> 0 | D24: =SUM(D13:D23) -> 0 | E24: 0 | F24: 0 | G24: 0 | H24: 0 | I24: 0 | J24: 0 | K24: 0 | L24: 0 | M24: 0 | N24: 0 | O24: 0 | P24: 0 | Q24: 0 | R24: 0 | S24: 0 | T24: 0 | U24: 0 | V24: 0 | W24: 0 | X24: 0 | Y24: 0 | Z24: 0 | AA24: 0 | AB24: 0 | AC24: 0 | AD24: 0 | AE24: 0 | AF24: 0 | AG24: 0 | AH24: 0 | AI24: 0 | AJ24: 0 | AK24: 0 | AL24: =SUM(AL13:AL23) -> 0 | AM24: =SUM(AM13:AM23) -> 0 | AN24: =SUM(AN13:AN23) -> 0 | AO24: =SUM(AO13:AO23) -> 0 | AP24: =SUM(AP13:AP23) -> 0
A25: 16
A26: 17 | B26: Property Management Fee | C26: =+'Revenues and Expenses'!C42 -> 0 | D26: =ROUND(C26*(1+'Project Description'!$H$918),0) -> 0 | E26: =ROUND(D26*(1+'Project Description'!$H$918),0) -> 0 | F26: =ROUND(E26*(1+'Project Description'!$H$918),0) -> 0 | G26: =ROUND(F26*(1+'Project Description'!$H$918),0) -> 0 | H26: =ROUND(G26*(1+'Project Description'!$H$918),0) -> 0 | I26: =ROUND(H26*(1+'Project Description'!$H$918),0) -> 0 | J26: =ROUND(I26*(1+'Project Description'!$H$918),0) -> 0 | K26: =ROUND(J26*(1+'Project Description'!$H$918),0) -> 0 | L26: =ROUND(K26*(1+'Project Description'!$H$918),0) -> 0 | M26: =ROUND(L26*(1+'Project Description'!$H$918),0) -> 0 | N26: =ROUND(M26*(1+'Project Description'!$H$918),0) -> 0 | O26: =ROUND(N26*(1+'Project Description'!$H$918),0) -> 0 | P26: =ROUND(O26*(1+'Project Description'!$H$918),0) -> 0 | Q26: =ROUND(P26*(1+'Project Description'!$H$918),0) -> 0 | R26: =ROUND(Q26*(1+'Project Description'!$H$918),0) -> 0 | S26: =ROUND(R26*(1+'Project Description'!$H$918),0) -> 0 | T26: =ROUND(S26*(1+'Project Description'!$H$918),0) -> 0 | U26: =ROUND(T26*(1+'Project Description'!$H$918),0) -> 0 | V26: =ROUND(U26*(1+'Project Description'!$H$918),0) -> 0 | W26: =ROUND(V26*(1+'Project Description'!$H$918),0) -> 0 | X26: =ROUND(W26*(1+'Project Description'!$H$918),0) -> 0 | Y26: =ROUND(X26*(1+'Project Description'!$H$918),0) -> 0 | Z26: =ROUND(Y26*(1+'Project Description'!$H$918),0) -> 0 | AA26: =ROUND(Z26*(1+'Project Description'!$H$918),0) -> 0 | AB26: =ROUND(AA26*(1+'Project Description'!$H$918),0) -> 0 | AC26: =ROUND(AB26*(1+'Project Description'!$H$918),0) -> 0 | AD26: =ROUND(AC26*(1+'Project Description'!$H$918),0) -> 0 | AE26: =ROUND(AD26*(1+'Project Description'!$H$918),0) -> 0 | AF26: =ROUND(AE26*(1+'Project Description'!$H$918),0) -> 0 | AG26: =ROUND(AF26*(1+'Project Description'!$H$918),0) -> 0 | AH26: =ROUND(AG26*(1+'Project Description'!$H$918),0) -> 0 | AI26: =ROUND(AH26*(1+'Project Description'!$H$918),0) -> 0 | AJ26: =ROUND(AI26*(1+'Project Description'!$H$918),0) -> 0 | AK26: =ROUND(AJ26*(1+'Project Description'!$H$918),0) -> 0 | AL26: =ROUND(AK26*(1+'Project Description'!$H$918),0) -> 0 | AM26: =ROUND(AL26*(1+'Project Description'!$H$918),0) -> 0 | AN26: =ROUND(AM26*(1+'Project Description'!$H$918),0) -> 0 | AO26: =ROUND(AN26*(1+'Project Description'!$H$918),0) -> 0 | AP26: =ROUND(AO26*(1+'Project Description'!$H$918),0) -> 0
A27: 18 | B27: LHC Compliance Monitoring Fee | C27: =+'Revenues and Expenses'!C37 -> 0 | D27: =ROUND(C27*(1+'Project Description'!$H$918),0) -> 0 | E27: =ROUND(D27*(1+'Project Description'!$H$918),0) -> 0 | F27: =ROUND(E27*(1+'Project Description'!$H$918),0) -> 0 | G27: =ROUND(F27*(1+'Project Description'!$H$918),0) -> 0 | H27: =ROUND(G27*(1+'Project Description'!$H$918),0) -> 0 | I27: =ROUND(H27*(1+'Project Description'!$H$918),0) -> 0 | J27: =ROUND(I27*(1+'Project Description'!$H$918),0) -> 0 | K27: =ROUND(J27*(1+'Project Description'!$H$918),0) -> 0 | L27: =ROUND(K27*(1+'Project Description'!$H$918),0) -> 0 | M27: =ROUND(L27*(1+'Project Description'!$H$918),0) -> 0 | N27: =ROUND(M27*(1+'Project Description'!$H$918),0) -> 0 | O27: =ROUND(N27*(1+'Project Description'!$H$918),0) -> 0 | P27: =ROUND(O27*(1+'Project Description'!$H$918),0) -> 0 | Q27: =ROUND(P27*(1+'Project Description'!$H$918),0) -> 0 | R27: =ROUND(Q27*(1+'Project Description'!$H$918),0) -> 0 | S27: =ROUND(R27*(1+'Project Description'!$H$918),0) -> 0 | T27: =ROUND(S27*(1+'Project Description'!$H$918),0) -> 0 | U27: =ROUND(T27*(1+'Project Description'!$H$918),0) -> 0 | V27: =ROUND(U27*(1+'Project Description'!$H$918),0) -> 0 | W27: =ROUND(V27*(1+'Project Description'!$H$918),0) -> 0 | X27: =ROUND(W27*(1+'Project Description'!$H$918),0) -> 0 | Y27: =ROUND(X27*(1+'Project Description'!$H$918),0) -> 0 | Z27: =ROUND(Y27*(1+'Project Description'!$H$918),0) -> 0 | AA27: =ROUND(Z27*(1+'Project Description'!$H$918),0) -> 0 | AB27: =ROUND(AA27*(1+'Project Description'!$H$918),0) -> 0 | AC27: =ROUND(AB27*(1+'Project Description'!$H$918),0) -> 0 | AD27: =ROUND(AC27*(1+'Project Description'!$H$918),0) -> 0 | AE27: =ROUND(AD27*(1+'Project Description'!$H$918),0) -> 0 | AF27: =ROUND(AE27*(1+'Project Description'!$H$918),0) -> 0 | AG27: =ROUND(AF27*(1+'Project Description'!$H$918),0) -> 0 | AH27: =ROUND(AG27*(1+'Project Description'!$H$918),0) -> 0 | AI27: =ROUND(AH27*(1+'Project Description'!$H$918),0) -> 0 | AJ27: =ROUND(AI27*(1+'Project Description'!$H$918),0) -> 0 | AK27: =ROUND(AJ27*(1+'Project Description'!$H$918),0) -> 0 | AL27: =ROUND(AK27*(1+'Project Description'!$H$918),0) -> 0 | AM27: =ROUND(AL27*(1+'Project Description'!$H$918),0) -> 0 | AN27: =ROUND(AM27*(1+'Project Description'!$H$918),0) -> 0 | AO27: =ROUND(AN27*(1+'Project Description'!$H$918),0) -> 0 | AP27: =ROUND(AO27*(1+'Project Description'!$H$918),0) -> 0
A28: 19 | B28: Asset Management Fee | C28: =+'Revenues and Expenses'!C39 -> 0 | D28: =ROUND(C28*(1+'Project Description'!$H$918),0) -> 0 | E28: =ROUND(D28*(1+'Project Description'!$H$918),0) -> 0 | F28: =ROUND(E28*(1+'Project Description'!$H$918),0) -> 0 | G28: =ROUND(F28*(1+'Project Description'!$H$918),0) -> 0 | H28: =ROUND(G28*(1+'Project Description'!$H$918),0) -> 0 | I28: =ROUND(H28*(1+'Project Description'!$H$918),0) -> 0 | J28: =ROUND(I28*(1+'Project Description'!$H$918),0) -> 0 | K28: =ROUND(J28*(1+'Project Description'!$H$918),0) -> 0 | L28: =ROUND(K28*(1+'Project Description'!$H$918),0) -> 0 | M28: =ROUND(L28*(1+'Project Description'!$H$918),0) -> 0 | N28: =ROUND(M28*(1+'Project Description'!$H$918),0) -> 0 | O28: =ROUND(N28*(1+'Project Description'!$H$918),0) -> 0 | P28: =ROUND(O28*(1+'Project Description'!$H$918),0) -> 0 | Q28: =ROUND(P28*(1+'Project Description'!$H$918),0) -> 0 | R28: =ROUND(Q28*(1+'Project Description'!$H$918),0) -> 0 | S28: =ROUND(R28*(1+'Project Description'!$H$918),0) -> 0 | T28: =ROUND(S28*(1+'Project Description'!$H$918),0) -> 0 | U28: =ROUND(T28*(1+'Project Description'!$H$918),0) -> 0 | V28: =ROUND(U28*(1+'Project Description'!$H$918),0) -> 0 | W28: =ROUND(V28*(1+'Project Description'!$H$918),0) -> 0 | X28: =ROUND(W28*(1+'Project Description'!$H$918),0) -> 0 | Y28: =ROUND(X28*(1+'Project Description'!$H$918),0) -> 0 | Z28: =ROUND(Y28*(1+'Project Description'!$H$918),0) -> 0 | AA28: =ROUND(Z28*(1+'Project Description'!$H$918),0) -> 0 | AB28: =ROUND(AA28*(1+'Project Description'!$H$918),0) -> 0 | AC28: =ROUND(AB28*(1+'Project Description'!$H$918),0) -> 0 | AD28: =ROUND(AC28*(1+'Project Description'!$H$918),0) -> 0 | AE28: =ROUND(AD28*(1+'Project Description'!$H$918),0) -> 0 | AF28: =ROUND(AE28*(1+'Project Description'!$H$918),0) -> 0 | AG28: =ROUND(AF28*(1+'Project Description'!$H$918),0) -> 0 | AH28: =ROUND(AG28*(1+'Project Description'!$H$918),0) -> 0 | AI28: =ROUND(AH28*(1+'Project Description'!$H$918),0) -> 0 | AJ28: =ROUND(AI28*(1+'Project Description'!$H$918),0) -> 0 | AK28: =ROUND(AJ28*(1+'Project Description'!$H$918),0) -> 0 | AL28: =ROUND(AK28*(1+'Project Description'!$H$918),0) -> 0 | AM28: =ROUND(AL28*(1+'Project Description'!$H$918),0) -> 0 | AN28: =ROUND(AM28*(1+'Project Description'!$H$918),0) -> 0 | AO28: =ROUND(AN28*(1+'Project Description'!$H$918),0) -> 0 | AP28: =ROUND(AO28*(1+'Project Description'!$H$918),0) -> 0
A29: 20 | B29: Other Administrative Expenses | C29: ='Revenues and Expenses'!C31-SUM(Proforma!C25:C28) -> 1 | D29: =ROUND(C29*(1+'Project Description'!$H$918),0) -> 1 | E29: =ROUND(D29*(1+'Project Description'!$H$918),0) -> 1 | F29: =ROUND(E29*(1+'Project Description'!$H$918),0) -> 1 | G29: =ROUND(F29*(1+'Project Description'!$H$918),0) -> 1 | H29: =ROUND(G29*(1+'Project Description'!$H$918),0) -> 1 | I29: =ROUND(H29*(1+'Project Description'!$H$918),0) -> 1 | J29: =ROUND(I29*(1+'Project Description'!$H$918),0) -> 1 | K29: =ROUND(J29*(1+'Project Description'!$H$918),0) -> 1 | L29: =ROUND(K29*(1+'Project Description'!$H$918),0) -> 1 | M29: =ROUND(L29*(1+'Project Description'!$H$918),0) -> 1 | N29: =ROUND(M29*(1+'Project Description'!$H$918),0) -> 1 | O29: =ROUND(N29*(1+'Project Description'!$H$918),0) -> 1 | P29: =ROUND(O29*(1+'Project Description'!$H$918),0) -> 1 | Q29: =ROUND(P29*(1+'Project Description'!$H$918),0) -> 1 | R29: =ROUND(Q29*(1+'Project Description'!$H$918),0) -> 1 | S29: =ROUND(R29*(1+'Project Description'!$H$918),0) -> 1 | T29: =ROUND(S29*(1+'Project Description'!$H$918),0) -> 1 | U29: =ROUND(T29*(1+'Project Description'!$H$918),0) -> 1 | V29: =ROUND(U29*(1+'Project Description'!$H$918),0) -> 1 | W29: =ROUND(V29*(1+'Project Description'!$H$918),0) -> 1 | X29: =ROUND(W29*(1+'Project Description'!$H$918),0) -> 1 | Y29: =ROUND(X29*(1+'Project Description'!$H$918),0) -> 1 | Z29: =ROUND(Y29*(1+'Project Description'!$H$918),0) -> 1 | AA29: =ROUND(Z29*(1+'Project Description'!$H$918),0) -> 1 | AB29: =ROUND(AA29*(1+'Project Description'!$H$918),0) -> 1 | AC29: =ROUND(AB29*(1+'Project Description'!$H$918),0) -> 1 | AD29: =ROUND(AC29*(1+'Project Description'!$H$918),0) -> 1 | AE29: =ROUND(AD29*(1+'Project Description'!$H$918),0) -> 1 | AF29: =ROUND(AE29*(1+'Project Description'!$H$918),0) -> 1 | AG29: =ROUND(AF29*(1+'Project Description'!$H$918),0) -> 1 | AH29: =ROUND(AG29*(1+'Project Description'!$H$918),0) -> 1 | AI29: =ROUND(AH29*(1+'Project Description'!$H$918),0) -> 1 | AJ29: =ROUND(AI29*(1+'Project Description'!$H$918),0) -> 1 | AK29: =ROUND(AJ29*(1+'Project Description'!$H$918),0) -> 1 | AL29: =ROUND(AK29*(1+'Project Description'!$H$918),0) -> 1 | AM29: =ROUND(AL29*(1+'Project Description'!$H$918),0) -> 1 | AN29: =ROUND(AM29*(1+'Project Description'!$H$918),0) -> 1 | AO29: =ROUND(AN29*(1+'Project Description'!$H$918),0) -> 1 | AP29: =ROUND(AO29*(1+'Project Description'!$H$918),0) -> 1
A30: 21 | B30: Operating & Maintenance Expenses | C30: =+'Revenues and Expenses'!C52 -> 0 | D30: =ROUND(C30*(1+'Project Description'!$H$918),0) -> 0 | E30: =ROUND(D30*(1+'Project Description'!$H$918),0) -> 0 | F30: =ROUND(E30*(1+'Project Description'!$H$918),0) -> 0 | G30: =ROUND(F30*(1+'Project Description'!$H$918),0) -> 0 | H30: =ROUND(G30*(1+'Project Description'!$H$918),0) -> 0 | I30: =ROUND(H30*(1+'Project Description'!$H$918),0) -> 0 | J30: =ROUND(I30*(1+'Project Description'!$H$918),0) -> 0 | K30: =ROUND(J30*(1+'Project Description'!$H$918),0) -> 0 | L30: =ROUND(K30*(1+'Project Description'!$H$918),0) -> 0 | M30: =ROUND(L30*(1+'Project Description'!$H$918),0) -> 0 | N30: =ROUND(M30*(1+'Project Description'!$H$918),0) -> 0 | O30: =ROUND(N30*(1+'Project Description'!$H$918),0) -> 0 | P30: =ROUND(O30*(1+'Project Description'!$H$918),0) -> 0 | Q30: =ROUND(P30*(1+'Project Description'!$H$918),0) -> 0 | R30: =ROUND(Q30*(1+'Project Description'!$H$918),0) -> 0 | S30: =ROUND(R30*(1+'Project Description'!$H$918),0) -> 0 | T30: =ROUND(S30*(1+'Project Description'!$H$918),0) -> 0 | U30: =ROUND(T30*(1+'Project Description'!$H$918),0) -> 0 | V30: =ROUND(U30*(1+'Project Description'!$H$918),0) -> 0 | W30: =ROUND(V30*(1+'Project Description'!$H$918),0) -> 0 | X30: =ROUND(W30*(1+'Project Description'!$H$918),0) -> 0 | Y30: =ROUND(X30*(1+'Project Description'!$H$918),0) -> 0 | Z30: =ROUND(Y30*(1+'Project Description'!$H$918),0) -> 0 | AA30: =ROUND(Z30*(1+'Project Description'!$H$918),0) -> 0 | AB30: =ROUND(AA30*(1+'Project Description'!$H$918),0) -> 0 | AC30: =ROUND(AB30*(1+'Project Description'!$H$918),0) -> 0 | AD30: =ROUND(AC30*(1+'Project Description'!$H$918),0) -> 0 | AE30: =ROUND(AD30*(1+'Project Description'!$H$918),0) -> 0 | AF30: =ROUND(AE30*(1+'Project Description'!$H$918),0) -> 0 | AG30: =ROUND(AF30*(1+'Project Description'!$H$918),0) -> 0 | AH30: =ROUND(AG30*(1+'Project Description'!$H$918),0) -> 0 | AI30: =ROUND(AH30*(1+'Project Description'!$H$918),0) -> 0 | AJ30: =ROUND(AI30*(1+'Project Description'!$H$918),0) -> 0 | AK30: =ROUND(AJ30*(1+'Project Description'!$H$918),0) -> 0 | AL30: =ROUND(AK30*(1+'Project Description'!$H$918),0) -> 0 | AM30: =ROUND(AL30*(1+'Project Description'!$H$918),0) -> 0 | AN30: =ROUND(AM30*(1+'Project Description'!$H$918),0) -> 0 | AO30: =ROUND(AN30*(1+'Project Description'!$H$918),0) -> 0 | AP30: =ROUND(AO30*(1+'Project Description'!$H$918),0) -> 0
A31: 22 | B31: Utilities Expenses | C31: =+'Revenues and Expenses'!C64 -> 0 | D31: =ROUND(C31*(1+'Project Description'!$H$918),0) -> 0 | E31: =ROUND(D31*(1+'Project Description'!$H$918),0) -> 0 | F31: =ROUND(E31*(1+'Project Description'!$H$918),0) -> 0 | G31: =ROUND(F31*(1+'Project Description'!$H$918),0) -> 0 | H31: =ROUND(G31*(1+'Project Description'!$H$918),0) -> 0 | I31: =ROUND(H31*(1+'Project Description'!$H$918),0) -> 0 | J31: =ROUND(I31*(1+'Project Description'!$H$918),0) -> 0 | K31: =ROUND(J31*(1+'Project Description'!$H$918),0) -> 0 | L31: =ROUND(K31*(1+'Project Description'!$H$918),0) -> 0 | M31: =ROUND(L31*(1+'Project Description'!$H$918),0) -> 0 | N31: =ROUND(M31*(1+'Project Description'!$H$918),0) -> 0 | O31: =ROUND(N31*(1+'Project Description'!$H$918),0) -> 0 | P31: =ROUND(O31*(1+'Project Description'!$H$918),0) -> 0 | Q31: =ROUND(P31*(1+'Project Description'!$H$918),0) -> 0 | R31: =ROUND(Q31*(1+'Project Description'!$H$918),0) -> 0 | S31: =ROUND(R31*(1+'Project Description'!$H$918),0) -> 0 | T31: =ROUND(S31*(1+'Project Description'!$H$918),0) -> 0 | U31: =ROUND(T31*(1+'Project Description'!$H$918),0) -> 0 | V31: =ROUND(U31*(1+'Project Description'!$H$918),0) -> 0 | W31: =ROUND(V31*(1+'Project Description'!$H$918),0) -> 0 | X31: =ROUND(W31*(1+'Project Description'!$H$918),0) -> 0 | Y31: =ROUND(X31*(1+'Project Description'!$H$918),0) -> 0 | Z31: =ROUND(Y31*(1+'Project Description'!$H$918),0) -> 0 | AA31: =ROUND(Z31*(1+'Project Description'!$H$918),0) -> 0 | AB31: =ROUND(AA31*(1+'Project Description'!$H$918),0) -> 0 | AC31: =ROUND(AB31*(1+'Project Description'!$H$918),0) -> 0 | AD31: =ROUND(AC31*(1+'Project Description'!$H$918),0) -> 0 | AE31: =ROUND(AD31*(1+'Project Description'!$H$918),0) -> 0 | AF31: =ROUND(AE31*(1+'Project Description'!$H$918),0) -> 0 | AG31: =ROUND(AF31*(1+'Project Description'!$H$918),0) -> 0 | AH31: =ROUND(AG31*(1+'Project Description'!$H$918),0) -> 0 | AI31: =ROUND(AH31*(1+'Project Description'!$H$918),0) -> 0 | AJ31: =ROUND(AI31*(1+'Project Description'!$H$918),0) -> 0 | AK31: =ROUND(AJ31*(1+'Project Description'!$H$918),0) -> 0 | AL31: =ROUND(AK31*(1+'Project Description'!$H$918),0) -> 0 | AM31: =ROUND(AL31*(1+'Project Description'!$H$918),0) -> 0 | AN31: =ROUND(AM31*(1+'Project Description'!$H$918),0) -> 0 | AO31: =ROUND(AN31*(1+'Project Description'!$H$918),0) -> 0 | AP31: =ROUND(AO31*(1+'Project Description'!$H$918),0) -> 0
A32: 23 | B32: Taxes & Insurance Expenses | C32: =+'Revenues and Expenses'!C89-SUM(Proforma!C25:C31) -> 0 | D32: =ROUND(C32*(1+'Project Description'!$H$918),0) -> 0 | E32: =ROUND(D32*(1+'Project Description'!$H$918),0) -> 0 | F32: =ROUND(E32*(1+'Project Description'!$H$918),0) -> 0 | G32: =ROUND(F32*(1+'Project Description'!$H$918),0) -> 0 | H32: =ROUND(G32*(1+'Project Description'!$H$918),0) -> 0 | I32: =ROUND(H32*(1+'Project Description'!$H$918),0) -> 0 | J32: =ROUND(I32*(1+'Project Description'!$H$918),0) -> 0 | K32: =ROUND(J32*(1+'Project Description'!$H$918),0) -> 0 | L32: =ROUND(K32*(1+'Project Description'!$H$918),0) -> 0 | M32: =ROUND(L32*(1+'Project Description'!$H$918),0) -> 0 | N32: =ROUND(M32*(1+'Project Description'!$H$918),0) -> 0 | O32: =ROUND(N32*(1+'Project Description'!$H$918),0) -> 0 | P32: =ROUND(O32*(1+'Project Description'!$H$918),0) -> 0 | Q32: =ROUND(P32*(1+'Project Description'!$H$918),0) -> 0 | R32: =ROUND(Q32*(1+'Project Description'!$H$918),0) -> 0 | S32: =ROUND(R32*(1+'Project Description'!$H$918),0) -> 0 | T32: =ROUND(S32*(1+'Project Description'!$H$918),0) -> 0 | U32: =ROUND(T32*(1+'Project Description'!$H$918),0) -> 0 | V32: =ROUND(U32*(1+'Project Description'!$H$918),0) -> 0 | W32: =ROUND(V32*(1+'Project Description'!$H$918),0) -> 0 | X32: =ROUND(W32*(1+'Project Description'!$H$918),0) -> 0 | Y32: =ROUND(X32*(1+'Project Description'!$H$918),0) -> 0 | Z32: =ROUND(Y32*(1+'Project Description'!$H$918),0) -> 0 | AA32: =ROUND(Z32*(1+'Project Description'!$H$918),0) -> 0 | AB32: =ROUND(AA32*(1+'Project Description'!$H$918),0) -> 0 | AC32: =ROUND(AB32*(1+'Project Description'!$H$918),0) -> 0 | AD32: =ROUND(AC32*(1+'Project Description'!$H$918),0) -> 0 | AE32: =ROUND(AD32*(1+'Project Description'!$H$918),0) -> 0 | AF32: =ROUND(AE32*(1+'Project Description'!$H$918),0) -> 0 | AG32: =ROUND(AF32*(1+'Project Description'!$H$918),0) -> 0 | AH32: =ROUND(AG32*(1+'Project Description'!$H$918),0) -> 0 | AI32: =ROUND(AH32*(1+'Project Description'!$H$918),0) -> 0 | AJ32: =ROUND(AI32*(1+'Project Description'!$H$918),0) -> 0 | AK32: =ROUND(AJ32*(1+'Project Description'!$H$918),0) -> 0 | AL32: =ROUND(AK32*(1+'Project Description'!$H$918),0) -> 0 | AM32: =ROUND(AL32*(1+'Project Description'!$H$918),0) -> 0 | AN32: =ROUND(AM32*(1+'Project Description'!$H$918),0) -> 0 | AO32: =ROUND(AN32*(1+'Project Description'!$H$918),0) -> 0 | AP32: =ROUND(AO32*(1+'Project Description'!$H$918),0) -> 0
A33: 24
A34: 25 | B34: Total Operating Expenses | C34: =SUM(C25:C32) -> 1 | D34: =SUM(D25:D32) -> 1 | E34: 1 | F34: 1 | G34: 1 | H34: 1 | I34: 1 | J34: 1 | K34: 1 | L34: 1 | M34: 1 | N34: 1 | O34: 1 | P34: 1 | Q34: 1 | R34: 1 | S34: 1 | T34: 1 | U34: 1 | V34: 1 | W34: 1 | X34: 1 | Y34: 1 | Z34: 1 | AA34: 1 | AB34: 1 | AC34: 1 | AD34: 1 | AE34: 1 | AF34: 1 | AG34: 1 | AH34: 1 | AI34: 1 | AJ34: 1 | AK34: 1 | AL34: =SUM(AL25:AL32) -> 1 | AM34: =SUM(AM25:AM32) -> 1 | AN34: =SUM(AN25:AN32) -> 1 | AO34: =SUM(AO25:AO32) -> 1 | AP34: =SUM(AP25:AP32) -> 1
A35: 26
A36: 27 | B36: Replacement Reserve ADRR | C36: =+'Project Description'!$H$938 -> 0 | D36: =ROUND(C36*(1+'Project Description'!$H$922),0) -> 0 | E36: =ROUND(D36*(1+'Project Description'!$H$922),0) -> 0 | F36: =ROUND(E36*(1+'Project Description'!$H$922),0) -> 0 | G36: =ROUND(F36*(1+'Project Description'!$H$922),0) -> 0 | H36: =ROUND(G36*(1+'Project Description'!$H$922),0) -> 0 | I36: =ROUND(H36*(1+'Project Description'!$H$922),0) -> 0 | J36: =ROUND(I36*(1+'Project Description'!$H$922),0) -> 0 | K36: =ROUND(J36*(1+'Project Description'!$H$922),0) -> 0 | L36: =ROUND(K36*(1+'Project Description'!$H$922),0) -> 0 | M36: =ROUND(L36*(1+'Project Description'!$H$922),0) -> 0 | N36: =ROUND(M36*(1+'Project Description'!$H$922),0) -> 0 | O36: =ROUND(N36*(1+'Project Description'!$H$922),0) -> 0 | P36: =ROUND(O36*(1+'Project Description'!$H$922),0) -> 0 | Q36: =ROUND(P36*(1+'Project Description'!$H$922),0) -> 0 | R36: =ROUND(Q36*(1+'Project Description'!$H$922),0) -> 0 | S36: =ROUND(R36*(1+'Project Description'!$H$922),0) -> 0 | T36: =ROUND(S36*(1+'Project Description'!$H$922),0) -> 0 | U36: =ROUND(T36*(1+'Project Description'!$H$922),0) -> 0 | V36: =ROUND(U36*(1+'Project Description'!$H$922),0) -> 0 | W36: =ROUND(V36*(1+'Project Description'!$H$922),0) -> 0 | X36: =ROUND(W36*(1+'Project Description'!$H$922),0) -> 0 | Y36: =ROUND(X36*(1+'Project Description'!$H$922),0) -> 0 | Z36: =ROUND(Y36*(1+'Project Description'!$H$922),0) -> 0 | AA36: =ROUND(Z36*(1+'Project Description'!$H$922),0) -> 0 | AB36: =ROUND(AA36*(1+'Project Description'!$H$922),0) -> 0 | AC36: =ROUND(AB36*(1+'Project Description'!$H$922),0) -> 0 | AD36: =ROUND(AC36*(1+'Project Description'!$H$922),0) -> 0 | AE36: =ROUND(AD36*(1+'Project Description'!$H$922),0) -> 0 | AF36: =ROUND(AE36*(1+'Project Description'!$H$922),0) -> 0 | AG36: =ROUND(AF36*(1+'Project Description'!$H$922),0) -> 0 | AH36: =ROUND(AG36*(1+'Project Description'!$H$922),0) -> 0 | AI36: =ROUND(AH36*(1+'Project Description'!$H$922),0) -> 0 | AJ36: =ROUND(AI36*(1+'Project Description'!$H$922),0) -> 0 | AK36: =ROUND(AJ36*(1+'Project Description'!$H$922),0) -> 0 | AL36: =ROUND(AK36*(1+'Project Description'!$H$922),0) -> 0 | AM36: =ROUND(AL36*(1+'Project Description'!$H$922),0) -> 0 | AN36: =ROUND(AM36*(1+'Project Description'!$H$922),0) -> 0 | AO36: =ROUND(AN36*(1+'Project Description'!$H$922),0) -> 0 | AP36: =ROUND(AO36*(1+'Project Description'!$H$922),0) -> 0
A37: 28
A38: 29 | B38: Net Operating Income | C38: =+C24-C34-C36 -> -1 | D38: =+D24-D34-D36 -> -1 | E38: -1 | F38: -1 | G38: -1 | H38: -1 | I38: -1 | J38: -1 | K38: -1 | L38: -1 | M38: -1 | N38: -1 | O38: -1 | P38: -1 | Q38: -1 | R38: -1 | S38: -1 | T38: -1 | U38: -1 | V38: -1 | W38: -1 | X38: -1 | Y38: -1 | Z38: -1 | AA38: -1 | AB38: -1 | AC38: -1 | AD38: -1 | AE38: -1 | AF38: -1 | AG38: -1 | AH38: -1 | AI38: -1 | AJ38: -1 | AK38: -1 | AL38: =+AL24-AL34-AL36 -> -1 | AM38: =+AM24-AM34-AM36 -> -1 | AN38: =+AN24-AN34-AN36 -> -1 | AO38: =+AO24-AO34-AO36 -> -1 | AP38: =+AP24-AP34-AP36 -> -1
A39: 30
A40: 31 | B40: Must Pay Debt Service | C40: =+'Project Description'!$H$945 -> 0 | D40: =+C40 -> 0 | E40: =+D40 -> 0 | F40: 0 | G40: 0 | H40: 0 | I40: 0 | J40: 0 | K40: 0 | L40: 0 | M40: 0 | N40: 0 | O40: 0 | P40: 0 | Q40: 0 | R40: 0 | S40: 0 | T40: 0 | U40: 0 | V40: 0 | W40: 0 | X40: 0 | Y40: 0 | Z40: 0 | AA40: 0 | AB40: 0 | AC40: 0 | AD40: 0 | AE40: 0 | AF40: 0 | AG40: 0 | AH40: 0 | AI40: 0 | AJ40: 0 | AK40: 0 | AL40: =+AK40 -> 0 | AM40: =+AL40 -> 0 | AN40: =+AM40 -> 0 | AO40: =+AN40 -> 0 | AP40: =+AO40 -> 0
A41: 32 | B41: Other
A42: 33
A43: 34 | B43: Operating Cash Flow | C43: =C38-SUM(C39:C42) -> -1 | D43: =D38-SUM(D39:D42) -> -1 | E43: -1 | F43: -1 | G43: -1 | H43: -1 | I43: -1 | J43: -1 | K43: -1 | L43: -1 | M43: -1 | N43: -1 | O43: -1 | P43: -1 | Q43: -1 | R43: -1 | S43: -1 | T43: -1 | U43: -1 | V43: -1 | W43: -1 | X43: -1 | Y43: -1 | Z43: -1 | AA43: -1 | AB43: -1 | AC43: -1 | AD43: -1 | AE43: -1 | AF43: -1 | AG43: -1 | AH43: -1 | AI43: -1 | AJ43: -1 | AK43: -1 | AL43: =AL38-SUM(AL39:AL42) -> -1 | AM43: =AM38-SUM(AM39:AM42) -> -1 | AN43: =AN38-SUM(AN39:AN42) -> -1 | AO43: =AO38-SUM(AO39:AO42) -> -1 | AP43: =AP38-SUM(AP39:AP42) -> -1
A44: 35 | B44: DSCR | C44: =IF(SUM(C40:C41)=0,0,C38/SUM(C40:C41)) -> 0 | D44: =IF(SUM(D40:D41)=0,0,D38/SUM(D40:D41)) -> 0 | E44: 0 | F44: 0 | G44: 0 | H44: 0 | I44: 0 | J44: 0 | K44: 0 | L44: 0 | M44: 0 | N44: 0 | O44: 0 | P44: 0 | Q44: 0 | R44: 0 | S44: 0 | T44: 0 | U44: 0 | V44: 0 | W44: 0 | X44: 0 | Y44: 0 | Z44: 0 | AA44: 0 | AB44: 0 | AC44: 0 | AD44: 0 | AE44: 0 | AF44: 0 | AG44: 0 | AH44: 0 | AI44: 0 | AJ44: 0 | AK44: 0 | AL44: =IF(SUM(AL40:AL41)=0,0,AL38/SUM(AL40:AL41)) -> 0 | AM44: =IF(SUM(AM40:AM41)=0,0,AM38/SUM(AM40:AM41)) -> 0 | AN44: =IF(SUM(AN40:AN41)=0,0,AN38/SUM(AN40:AN41)) -> 0 | AO44: =IF(SUM(AO40:AO41)=0,0,AO38/SUM(AO40:AO41)) -> 0 | AP44: =IF(SUM(AP40:AP41)=0,0,AP38/SUM(AP40:AP41)) -> 0
A45: 36
B46: Allowable Contingent A/M Fee | C46: =+'Revenues and Expenses'!$J$105 -> 4999 | D46: =ROUND(C46*(1+'Project Description'!$H$918),0) -> 5149 | E46: =ROUND(D46*(1+'Project Description'!$H$918),0) -> 5303 | F46: =ROUND(E46*(1+'Project Description'!$H$918),0) -> 5462 | G46: =ROUND(F46*(1+'Project Description'!$H$918),0) -> 5626 | H46: =ROUND(G46*(1+'Project Description'!$H$918),0) -> 5795 | I46: =ROUND(H46*(1+'Project Description'!$H$918),0) -> 5969 | J46: =ROUND(I46*(1+'Project Description'!$H$918),0) -> 6148 | K46: =ROUND(J46*(1+'Project Description'!$H$918),0) -> 6332 | L46: =ROUND(K46*(1+'Project Description'!$H$918),0) -> 6522 | M46: =ROUND(L46*(1+'Project Description'!$H$918),0) -> 6718 | N46: =ROUND(M46*(1+'Project Description'!$H$918),0) -> 6920 | O46: =ROUND(N46*(1+'Project Description'!$H$918),0) -> 7128 | P46: =ROUND(O46*(1+'Project Description'!$H$918),0) -> 7342 | Q46: =ROUND(P46*(1+'Project Description'!$H$918),0) -> 7562 | R46: =ROUND(Q46*(1+'Project Description'!$H$918),0) -> 7789 | S46: =ROUND(R46*(1+'Project Description'!$H$918),0) -> 8023 | T46: =ROUND(S46*(1+'Project Description'!$H$918),0) -> 8264 | U46: =ROUND(T46*(1+'Project Description'!$H$918),0) -> 8512 | V46: =ROUND(U46*(1+'Project Description'!$H$918),0) -> 8767 | W46: =ROUND(V46*(1+'Project Description'!$H$918),0) -> 9030 | X46: =ROUND(W46*(1+'Project Description'!$H$918),0) -> 9301 | Y46: =ROUND(X46*(1+'Project Description'!$H$918),0) -> 9580 | Z46: =ROUND(Y46*(1+'Project Description'!$H$918),0) -> 9867 | AA46: =ROUND(Z46*(1+'Project Description'!$H$918),0) -> 10163 | AB46: =ROUND(AA46*(1+'Project Description'!$H$918),0) -> 10468 | AC46: =ROUND(AB46*(1+'Project Description'!$H$918),0) -> 10782 | AD46: =ROUND(AC46*(1+'Project Description'!$H$918),0) -> 11105 | AE46: =ROUND(AD46*(1+'Project Description'!$H$918),0) -> 11438 | AF46: =ROUND(AE46*(1+'Project Description'!$H$918),0) -> 11781 | AG46: =ROUND(AF46*(1+'Project Description'!$H$918),0) -> 12134 | AH46: =ROUND(AG46*(1+'Project Description'!$H$918),0) -> 12498 | AI46: =ROUND(AH46*(1+'Project Description'!$H$918),0) -> 12873 | AJ46: =ROUND(AI46*(1+'Project Description'!$H$918),0) -> 13259 | AK46: =ROUND(AJ46*(1+'Project Description'!$H$918),0) -> 13657 | AL46: =ROUND(AK46*(1+'Project Description'!$H$918),0) -> 14067 | AM46: =ROUND(AL46*(1+'Project Description'!$H$918),0) -> 14489 | AN46: =ROUND(AM46*(1+'Project Description'!$H$918),0) -> 14924 | AO46: =ROUND(AN46*(1+'Project Description'!$H$918),0) -> 15372 | AP46: =ROUND(AO46*(1+'Project Description'!$H$918),0) -> 15833
B48: Surplus Cash | C48: =MAX(0,C43-C46) -> 0 | D48: =MAX(0,D43-D46) -> 0 | E48: 0 | F48: 0 | G48: 0 | H48: 0 | I48: 0 | J48: 0 | K48: 0 | L48: 0 | M48: 0 | N48: 0 | O48: 0 | P48: 0 | Q48: 0 | R48: 0 | S48: 0 | T48: 0 | U48: 0 | V48: 0 | W48: 0 | X48: 0 | Y48: 0 | Z48: 0 | AA48: 0 | AB48: 0 | AC48: 0 | AD48: 0 | AE48: 0 | AF48: 0 | AG48: 0 | AH48: 0 | AI48: 0 | AJ48: 0 | AK48: 0 | AL48: 0 | AM48: 0 | AN48: 0 | AO48: 0 | AP48: 0
B50: Cumulative Surplus Cash | C50: =+C48 -> 0 | D50: =+C50+D48 -> 0 | E50: =+D50+E48 -> 0 | F50: 0 | G50: 0 | H50: 0 | I50: 0 | J50: 0 | K50: 0 | L50: 0 | M50: 0 | N50: 0 | O50: 0 | P50: 0 | Q50: 0 | R50: 0 | S50: 0 | T50: 0 | U50: 0 | V50: 0 | W50: 0 | X50: 0 | Y50: 0 | Z50: 0 | AA50: 0 | AB50: 0 | AC50: 0 | AD50: 0 | AE50: 0 | AF50: 0 | AG50: 0 | AH50: 0 | AI50: 0 | AJ50: 0 | AK50: 0 | AL50: 0 | AM50: 0 | AN50: 0 | AO50: 0 | AP50: 0
B51: Through Year 15 | C51: =+Q50 -> 0
B52: Through Year 35 | C52: =+AK50 -> 0
B53: Through Year 40 | C53: =+AP50 -> 0

Sheet Selection Criteria
A3: =+Instructions!$A$3 -> 2020 Piggyback Mixed Income Resilience (PRIME) Rental Housing Application
A4: =+'Unit Mix and Rents'!$A$4 -> x (x LA), x
A5: Selection Criteria: Points Claimed by Taxpayer / Applicant
D6: Calculated | F6: Self-Score | L6: Max
A7: I. | B7: TARGETED PROJECT TYPE | L7: 47
A8: A. | B8: De-Concentration Projects.
A9: i. | B9: Project Diversity. | D9: =IF(M9<=40%,L9,IF(M9<=50%,L9-1,IF(M9<=60%,L9-2,0))) -> 10 | E9: points | F9: =+D9 -> 10 | H9: =TEXT(M9,"0.0%")&" Low Income Units in Project" -> 0.0% Low Income Units in Project | L9: 10 | M9: =+'Unit Mix and Rents'!G44 -> 0 | R9: Scoring updated for 2019 QAP
A10: ii. | B10: Geographic Diversity. | D10: =IF(AND('Project Description'!H115="Yes",'Project Description'!H116<70%),0,IF(M10>100%,L10,IF(M10>80%,L10-1,0))) -> 0 | E10: points | F10: =+D10 -> 0 | H10: ="Census tract median income is "&TEXT(M10,"0.0%")&" of MSA" -> Census tract median income is 0.0% of MSA | L10: 11 | M10: =+'Project Description'!$M$118 -> 0 | N10: of MSA | O10: =+'Project Description'!$M$119 -> 0 | P10: of Parish | R10: Scoring updated for 2019 QAP
C11: =IF(AND(D10>0,'Project Description'!H115="Yes"),"Note -- LHC review needed for Geographic Diversity; project lies in multiple census tracts","") -> 
A13: B. | B13: Redevelopment Project.
A14: i. | B14: Distressed Property | D14: =IF(AND('Project Description'!$H$134="Yes",'Project Description'!$H$123="Yes",'Project Description'!$H$125="Yes"),L14,0) -> 0 | E14: points | F14: =+D14 -> 0 | L14: 3
A15: ii. | B15: Redevelopment Property | D15: =IF(AND('Project Description'!$H$135="Yes",'Project Description'!$H$123="Yes",'Project Description'!$H$125="Yes"),L15,0) -> 0 | E15: points | F15: =+D15 -> 0 | L15: 3
A16: iii. | B16: Owner Occupied / Plan of Action | D16: =IF(AND('Project Description'!$H$136="Yes",'Project Description'!$H$123="Yes",'Project Description'!$H$125="Yes"),L16,0) -> 0 | E16: points | F16: =+D16 -> 0 | L16: 3
A18: C. | B18: Rehabilitation & Preservation. | M18: ='Project Description'!H97 -> Missing | N18: (any rehab?)
A19: i.a. | B19: Existing LIHTC project | D19: =IF('Project Description'!H137="Yes",L19,0) -> 0 | E19: points | F19: =+D19 -> 0 | L19: 7 | R19: Scoring updated for 2019 QAP
A20: i.b | B20: Rehab of existing Federally Funded Project | D20: =IF(AND(D19=0,'Project Description'!H138="Yes"),L20,0) -> 0 | E20: points | F20: =+D20 -> 0 | H20: =IF(AND(F20>0,COUNTIF(F$19:F20,">0")>1),"Only one selection allowed in I.C.i","") ->  | L20: 7
A21: i.c | B21: Rehab of existing non-historic residential building | D21: =IF(AND(SUM($D$19:D20)=0,'Project Description'!H139="Yes"),L21,0) -> 0 | E21: points | F21: =+D21 -> 0 | H21: =IF(AND(F21>0,COUNTIF(F$19:F21,">0")>1),"Only one selection allowed in I.C.i","") ->  | L21: 7 | R21: Scoring updated for 2019 QAP
A22: i.d | B22: Blighted housing remediation and/or replacement | D22: =IF(AND(SUM($D$19:D21)=0,'Project Description'!H140="Yes"),L22,0) -> 0 | E22: points | F22: =+D22 -> 0 | H22: =IF(AND(F22>0,COUNTIF(F$19:F22,">0")>1),"Only one selection allowed in I.C.i","") ->  | L22: 7 | R22: Scoring updated for 2019 QAP
A23: i.e | B23: Rehab Infill / Scattered Site | D23: =IF(AND(SUM($D$19:D22)=0,'Project Description'!H141="Yes"),L23,0) -> 0 | E23: points | F23: 0 | H23: =IF(AND(F23>0,COUNTIF(F$19:F23,">0")>1),"Only one selection allowed in I.C.i","") ->  | L23: 7 | M23: =+'Project Description'!H107 -> Missing | N23: (infill?) | O23: =+'Project Description'!H86 -> Missing | P23: (single site?)
A24: i.f | B24: Preservation of Residential Historic Property | D24: =IF(AND(SUM($D$19:D23)=0,'Project Description'!H142="Yes"),L24,0) -> 0 | E24: points | F24: 0 | H24: =IF(AND(F24>0,COUNTIF(F$19:F24,">0")>1),"Only one selection allowed in I.C.i","") ->  | L24: 3
A25: ii. | B25: Existing Federally Funded with HAP Contract | D25: =IF(M25<>"Yes",0,L25) -> 0 | E25: points | F25: 0 | L25: 1 | M25: =+'Project Description'!H143 -> Missing | N25: (Existing FF with HAP)
A27: D. | B27: New Construction. | M27: =+'Project Description'!H90 -> No | N27: (any new const?) | P27: =+'Project Description'!H91 -> 0 | Q27: new const (by # of units)
A28: i.a. | B28: New Construction | D28: =IF(M28="Yes",L28,0) -> 0 | E28: points | F28: =+D28 -> 0 | L28: 7 | M28: =IF(AND(M27="Yes",P27>=50%),"Yes","No") -> No | N28: (at least 50% new const by # units)
A29: i.b | B29: New Construction Infill / Scattered Site | D29: =IF(AND(M28="Yes",'Project Description'!H144="Yes"),L29,0) -> 0 | E29: points | F29: 0 | L29: 7
A30: i.c | B30: Homeownership Project | D30: =IF(AND(M28="Yes",'Project Description'!H145="Yes"),L30,0) -> 0 | E30: points | F30: 0 | L30: 1
B32: Total for Section I | D32: =SUM(D8:D31) -> 10 | E32: points | F32: =SUM(F8:F31) -> 10 | L32: =+L7 -> 47
A34: II. | B34: TARGETED POPULATION TYPE | L34: 6
A35: A. | B35: Special Needs Households: | D35: =IF('Project Description'!$H$791<>"Yes",0,IF(M35>=30%,L35,IF(M35>=20%,L35-1,IF(M35>=10%,L35-2,0)))) -> 0 | E35: points | F35: =+D35 -> 0 | H35: =TEXT(M35,"0.0%")&" of Total Units in Project for Special Needs" -> 0.0% of Total Units in Project for Special Needs | L35: 6 | M35: =IF('Project Description'!$H$791<>"Yes",0,'Project Description'!$M$801) -> 0 | R35: Scoring updated for 2019 QAP
B36: =IF(D35=0,"","Population type(s):") ->  | C36: =IF(D35=0,"",'Project Description'!E801) -> 
A37: B. | B37: Elderly Households: | D37: =IF(AND(D35=0,'Project Description'!$H$803="Yes"),L37,0) -> 0 | E37: points | F37: =+D37 -> 0 | H37: =TEXT(M37,"0.0%")&" of Total Units in Project for Elderly" -> 0.0% of Total Units in Project for Elderly | L37: 6 | M37: =IF('Project Description'!$H$803<>"Yes",0,1) -> 0
B39: Total for Section II | D39: =SUM(D34:D38) -> 0 | E39: points | F39: =SUM(F34:F38) -> 0 | H39: =IF(AND(F35>0,F37>0),"Cannot select both A and B","") ->  | L39: =+L34 -> 6
A41: III. | B41: PRIORITY DEVELOPMENT AREAS AND OTHER PREFERENCES | L41: 26
A42: A. | B42: Extended Affordability Agreement. | D42: =IF(AND('Project Description'!H807="Yes",'Project Description'!H811="Yes",'Project Description'!M813>0),'Project Description'!M813,0) -> 0 | E42: points | F42: =+D42 -> 0 | H42: =IF(D42=0,"No extended affordability",'Project Description'!H813) -> No extended affordability | L42: 7 | R42: Scoring updated for 2019 QAP
A43: B. | B43: Increased Unit Affordability.
A44: i. | B44: Extremely Low Income Targeting.
A45: a. | B45: Between 5% and 10% of units are non-PSH at 30% AMI or below. | D45: =IF(D46<>0,0,N45) -> 0 | E45: points | F45: =+D45 -> 0 | H45: =TEXT(M45,"0.0%")&" of Total Units are non-PSH at 30% or below" -> 0.0% of Total Units are non-PSH at 30% or below | L45: 4 | M45: =+'Unit Mix and Rents'!G47 -> 0 | N45: =IF(AND(M45>=5%,M45<10%),L45,0) -> 0 | R45: Scoring updated for 2019 QAP
A46: b. | B46: Between 5% and 10% of units are PSH Units. | D46: =+N46 -> 0 | E46: points | F46: =+D46 -> 0 | H46: =TEXT(M46,"0.0%")&" of Total Units qualify as PSH Units" -> 0.0% of Total Units qualify as PSH Units | L46: 4 | M46: =+'Unit Mix and Rents'!G46 -> 0 | N46: =IF(AND(M46>=5%,M46<10%),L46,0) -> 0
H47: =IF(AND(F45>0,F46>0),"Cannot select both a and b","") -> 
A48: ii. | B48: Very Low Income Targeting. | D48: =IF(M48>=35%,L48,IF(M48>=25%,L48-1,IF(M48>=20%,L48-2,0))) -> 0 | E48: points | F48: =+D48 -> 0 | H48: =TEXT(M48,"0.0%")&" of Total Units at between 31%-50% AMI" -> 0.0% of Total Units at between 31%-50% AMI | L48: 5 | M48: =+'Unit Mix and Rents'!G51 -> 0 | R48: Scoring updated for 2019 QAP
A49: C. | B49: Governmental Priorities.
A50: i. | B50: =IF(M50="","Project Not Located in DDA or CNI Census Tract","Project Located in "&M50&" census tract") -> Project Not Located in DDA or CNI Census Tract | D50: =IF(M50="",0,L50) -> 0 | E50: points | F50: =+D50 -> 0 | H50: ="Census Tract "&'Project Description'!$H$114&" ("&'Project Description'!E82&" Parish)" -> Census Tract x (Acadia Parish) | L50: 1 | M50: =IF('Project Description'!H122="Yes","DDA",IF('Project Description'!H124="Yes","CNI","")) ->  | R50: Scoring updated for 2019 QAP
A51: ii.a | B51: Parish with elderly population above 14% | D51: =IF(M51>14%,L51,0) -> 1 | E51: points | F51: =+D51 -> 1 | H51: =TEXT(M51,"0.0%")&" elderly" -> 14.6% elderly | L51: 1 | M51: =VLOOKUP($O$51,Parishes!$A$9:$AD$73,25,FALSE) -> 0.1462136822 | O51: =+'Project Description'!E82 -> Acadia | R51: Scoring updated for 2019 QAP
A52: ii.b | B52: Parish with disability population above 15% | D52: =IF(M52>15%,L52,0) -> 1 | E52: points | F52: =+D52 -> 1 | H52: =TEXT(M52,"0.0%")&" disability" -> 18.5% disability | L52: 1 | M52: =VLOOKUP($O$51,Parishes!$A$9:$AD$73,26,FALSE) -> 0.1853826952 | R52: Scoring updated for 2019 QAP
A53: ii.c | B53: Parish with cost-burdened renters above 53% | D53: =IF(M53>53%,L53,0) -> 0 | E53: points | F53: =+D53 -> 0 | H53: =TEXT(M53,"0.0%")&" cost-burdened renters" -> 51.9% cost-burdened renters | L53: 1 | M53: =VLOOKUP($O$51,Parishes!$A$9:$AD$73,27,FALSE) -> 0.5192949907 | R53: Scoring updated for 2019 QAP
A54: ii.d | B54: Only one of the following: | H54: =IF(AND(F55>0,F56>0),"Limited to 1 point in ii.d","") ->  | R54: Scoring updated for 2019 QAP
B55: Parish with children under 5 in poverty above 32% | D55: =IF(M55>32%,L55,0) -> 0 | E55: points | F55: =+D55 -> 0 | H55: =TEXT(M55,"0.0%")&" children under 5 in poverty" -> 29.1% children under 5 in poverty | L55: 1 | M55: =VLOOKUP($O$51,Parishes!$A$9:$AD$73,29,FALSE) -> 0.2907559199 | R55: Scoring updated for 2019 QAP
B56: Parish with persons in poverty above 20% | D56: =IF(AND(D55=0,M56>20%),L56,0) -> 1 | E56: points | F56: =+D56 -> 1 | H56: =TEXT(M56,"0.0%")&" persons in poverty" -> 21.5% persons in poverty | L56: 1 | M56: =VLOOKUP($O$51,Parishes!$A$9:$AD$73,28,FALSE) -> 0.215444898 | R56: Scoring updated for 2019 QAP
A57: ii.e | B57: Parish with Median Household Income at or below $46,000 | D57: =IF(M57<=46000,L57,0) -> 1 | E57: points | F57: =+D57 -> 1 | H57: =TEXT(M57,"$#,##0")&" Median Household Income" -> $40,492 Median Household Income | L57: 1 | M57: =VLOOKUP($O$51,Parishes!$A$9:$AD$73,30,FALSE) -> 40492 | R57: Scoring updated for 2019 QAP
A58: D. | B58: Additional Financial Support | D58: =IF(M58>=7%,L58,IF(M58>=4%,L58-1,IF(M58>=2%,L58-2,0))) -> 0 | E58: points | F58: =+D58 -> 0 | H58: =TEXT(M58,"0.0%")&" of TDC in Additional Financial Support" -> 0.0% of TDC in Additional Financial Support | L58: 4 | M58: =IF('Project Description'!H815="Yes",'Project Description'!M818,0) -> 0
B60: Total for Section III | D60: =SUM(D41:D59) -> 4 | E60: points | F60: =SUM(F41:F59) -> 4 | L60: =+L41 -> 26
A62: IV. | B62: LOCATION CHARACTERISTICS | L62: 10
A63: A. | B63: Neighborhood Features.
A64: i. | B64: Points Gained. | D64: =MIN(M64,L64) -> 0 | E64: points | F64: =+D64 -> 0 | L64: 10 | M64: =+'Project Description'!M822 -> 0
B65: =IF(AND(Q65=1,M65<0),"Error -- there is a nearby negative neighborhood feature thas is prohibited under the QAP.","") ->  | M65: =+'Project Description'!M843 -> 0 | N65: negative nhood feature | Q65: =+'Project Description'!Q842 -> 2
B67: Total for Section IV | D67: =SUM(D63:D66) -> 0 | E67: points | F67: =SUM(F62:F66) -> 0 | L67: =+L62 -> 10
A69: V. | B69: PROJECT CHARACTERISTICS | L69: 27
A70: A. | B70: Community Facilities. | D70: =IF(AND(S70<>"Yes",P70="Yes",M70="Yes",V70=0),L70,0) -> 0 | E70: points | F70: =+D70 -> 0 | L70: 2 | M70: =+'Project Description'!H862 -> Missing | N70: (CF?) | P70: =+'Project Description'!H86 -> Missing | Q70: (single site project?) | S70: =+'Project Description'!H145 -> Missing | T70: (H.O. project?) | V70: =+D29+F29+D23+F23 -> 0 | W70: Points claimed for Infill / Scattered Site
A71: B. | B71: Optional Amenities.
A72: i. | B72: Washers and dryers required for new const. but no points | D72: 0 | E72: points | F72: =+D72 -> 0 | L72: 0 | S72: Scoring updated for 2019 QAP
A73: i. | B73: Washers and dryers (Rehab Only) | D73: =IF(AND($M$73="Yes",'Project Description'!H864="Yes"),L73,0) -> 0 | E73: points | F73: 0 | L73: 1 | M73: =+P75 -> Missing | N73: =+Q75 -> (Any rehab) | S73: Scoring updated for 2019 QAP
A74: ii. | B74: Diswashers maintained in each unit. | D74: =IF('Project Description'!H865="Yes",L74,0) -> 0 | E74: point | F74: 0 | L74: 1
A75: iii. | B75: Green Building (Rehab Only). | D75: =IF(AND(M75="Yes",P75="Yes"),L75,0) -> 0 | E75: points | F75: 0 | L75: 1 | M75: =+'Project Description'!H859 -> Missing | N75: (Green Bldg) | P75: =+'Project Description'!H97 -> Missing | Q75: (Any rehab) | S75: Scoring updated for 2019 QAP
A76: iv. | B76: Universal Design (Rehab Only) | D76: =IF(AND($M$73="Yes",'Project Description'!H866="Yes"),L76,0) -> 0 | E76: points | F76: 0 | L76: 1
A77: C. | B77: Project Amenities. | D77: =MIN(M77,L77) -> 0 | E77: points | F77: 0 | H77: =M77&" Project Amenities claimed" -> 0 Project Amenities claimed | L77: 8 | M77: =+'Project Description'!M870 -> 0
A78: D. | B78: Additional Accessible Units. | D78: =IF(M78>=20%,L78,IF(M78>=10%,L78-1,0)) -> 0 | E78: points | F78: 0 | H78: =+O78 -> 0 | I78: of total units are accessible | L78: 3 | M78: =+'Project Description'!H884+'Project Description'!H887 -> 0 | N78: provided | O78: =IF('Unit Mix and Rents'!$F$41=0,0,+M78/'Unit Mix and Rents'!$F$41) -> 0
A79: E. | B79: On-Site Security. | H79: =+'Project Description'!M895 -> 
A80: i. | B80: Security Cameras. | D80: =IF('Project Description'!H893="Yes",L80,0) -> 0 | E80: points | F80: =+D80 -> 0 | L80: 1 | S80: Scoring updated for 2019 QAP
A81: ii. | B81: Security Gate. | D81: =IF('Project Description'!H894="Yes",L81,0) -> 0 | E81: points | F81: =+D81 -> 0 | L81: 1 | S81: Scoring updated for 2019 QAP
A82: iii. | B82: On Site Security Guard. | D82: =IF('Project Description'!H895="Yes",L82,0) -> 0 | E82: points | F82: =+D82 -> 0 | L82: 1 | S82: Scoring updated for 2019 QAP
A83: F. | B83: TDC At Least 15% Below Maximum TDC Per Unit. | D83: =IF(M83<=-25%,L83,IF(M83<-20%,L83-1,IF(M83<-15%,L83-2,0))) -> 4 | E83: points | F83: =+D83 -> 4 | H83: =+M83 -> -1 | I83: =+N83 -> below the Maximum TDC | L83: 4 | M83: =+'Development Costs'!F254-1 -> -1 | N83: =IF(M83>0,"above the Maximum TDC",IF(M83<0,"below the Maximum TDC","")) -> below the Maximum TDC
A84: G. | B84: HUD Defensible Space (New Construction Only). | D84: =IF(AND(M84="Yes",'Project Description'!H867="Yes"),L84,0) -> 0 | E84: points | F84: =+D84 -> 0 | L84: 3 | M84: =+'Project Description'!H90 -> No | N84: (Any new const.)
B86: Total for Section V | D86: =SUM(D69:D85) -> 4 | E86: points | F86: =SUM(F69:F85) -> 4 | L86: =+L69 -> 27
B88: TOTAL POINTS (TO BE CONFIRMED BY LHC) | D88: =+D86+D67+D60+D39+D32 -> 18 | E88: POINTS | F88: =+F86+F67+F60+F39+F32 -> 18 | G88: POINTS | L88: =+L69+L62+L41+L34+L7 -> 116
C2037: m ,

Sheet Summary
A3: =+Instructions!$A$3 -> 2020 Piggyback Mixed Income Resilience (PRIME) Rental Housing Application
A4: =TRIM('Project Description'!$E$79)&" ("&TRIM('Project Description'!$E$81)&" LA), "&'Project Description'!$E$50 -> x (x LA), x
A6: Project Summary
A8: Taxpayer Name | B8: =+'Project Description'!E36 -> x
A9: Developer | B9: =+'Project Description'!E50 -> x
A10: Management Agent | B10: =+'Project Description'!E71 -> x
A11: City | B11: =+'Project Description'!E81 -> x
A12: Parish | B12: =+'Project Description'!E82 -> Acadia
A13: Number of Units | B13: =TEXT('Unit Mix and Rents'!F41,"0")&" total units and "&TEXT('Unit Mix and Rents'!O41,"0")&" LIHTC Units" -> 0 total units and 0 LIHTC Units
A15: ="The applicant's self-score is "&TEXT('Selection Criteria'!F88,"0.0")&" points." -> The applicant's self-score is 18.0 points.
A17: ="The primary development type is "&'Project Description'!H89&"; the primary building type is "&'Project Description'!H111 -> The primary development type is Missing; the primary building type is Missing
A19: ="Taxpayer is requesting "&TEXT('Project Description'!H192,"$#,##0")&" of LIHTCs in the "&'Project Description'!H165&" Pool." -> Taxpayer is requesting $0 of LIHTCs in the New Construction General Pool.
A20: ="Taxpayer is requesting "&TEXT('Project Description'!H171,"$#,##0")&" of NHTF, "&TEXT('Project Description'!H177,"$#,##0")&" of HOME, and "&TEXT('Project Description'!H183,"$#,##0")&" of CDBG-DR." -> Taxpayer is requesting $0 of NHTF, $0 of HOME, and $2,000,000 of CDBG-DR.
A21: ="LHC Funding Type is "&'Project Description'!D30&"." -> LHC Funding Type is .
A23: Unit Mix Summary | B23: 0 BR | C23: 1 BR | D23: 2 BR | E23: 3 BR | F23: 4 BR | G23: Total
A24: =+'Unit Mix and Rents'!B66 -> 20% AMI | B24: =+'Unit Mix and Rents'!C66 -> 0 | C24: =+'Unit Mix and Rents'!D66 -> 0 | D24: =+'Unit Mix and Rents'!E66 -> 0 | E24: =+'Unit Mix and Rents'!F66 -> 0 | F24: =+'Unit Mix and Rents'!G66 -> 0 | G24: =SUM(B24:F24) -> 0
A25: =+'Unit Mix and Rents'!B67 -> 30% AMI | B25: =+'Unit Mix and Rents'!C67 -> 0 | C25: =+'Unit Mix and Rents'!D67 -> 0 | D25: =+'Unit Mix and Rents'!E67 -> 0 | E25: =+'Unit Mix and Rents'!F67 -> 0 | F25: =+'Unit Mix and Rents'!G67 -> 0 | G25: 0
A26: =+'Unit Mix and Rents'!B68 -> 40% AMI | B26: =+'Unit Mix and Rents'!C68 -> 0 | C26: =+'Unit Mix and Rents'!D68 -> 0 | D26: =+'Unit Mix and Rents'!E68 -> 0 | E26: =+'Unit Mix and Rents'!F68 -> 0 | F26: =+'Unit Mix and Rents'!G68 -> 0 | G26: 0
A27: =+'Unit Mix and Rents'!B69 -> 50% AMI | B27: =+'Unit Mix and Rents'!C69 -> 0 | C27: =+'Unit Mix and Rents'!D69 -> 0 | D27: =+'Unit Mix and Rents'!E69 -> 0 | E27: =+'Unit Mix and Rents'!F69 -> 0 | F27: =+'Unit Mix and Rents'!G69 -> 0 | G27: 0
A28: =+'Unit Mix and Rents'!B70 -> 60% AMI | B28: =+'Unit Mix and Rents'!C70 -> 0 | C28: =+'Unit Mix and Rents'!D70 -> 0 | D28: =+'Unit Mix and Rents'!E70 -> 0 | E28: =+'Unit Mix and Rents'!F70 -> 0 | F28: =+'Unit Mix and Rents'!G70 -> 0 | G28: 0
A29: =+'Unit Mix and Rents'!B71 -> 70% AMI | B29: =+'Unit Mix and Rents'!C71 -> 0 | C29: =+'Unit Mix and Rents'!D71 -> 0 | D29: =+'Unit Mix and Rents'!E71 -> 0 | E29: =+'Unit Mix and Rents'!F71 -> 0 | F29: =+'Unit Mix and Rents'!G71 -> 0 | G29: 0
A30: =+'Unit Mix and Rents'!B72 -> 80% AMI | B30: =+'Unit Mix and Rents'!C72 -> 0 | C30: =+'Unit Mix and Rents'!D72 -> 0 | D30: =+'Unit Mix and Rents'!E72 -> 0 | E30: =+'Unit Mix and Rents'!F72 -> 0 | F30: =+'Unit Mix and Rents'!G72 -> 0 | G30: 0
A31: =+'Unit Mix and Rents'!B73 -> 120% AMI | B31: =+'Unit Mix and Rents'!C73 -> 0 | C31: =+'Unit Mix and Rents'!D73 -> 0 | D31: =+'Unit Mix and Rents'!E73 -> 0 | E31: =+'Unit Mix and Rents'!F73 -> 0 | F31: =+'Unit Mix and Rents'!G73 -> 0 | G31: 0
A32: =+'Unit Mix and Rents'!B74 -> Not AMI Restricted | B32: =+'Unit Mix and Rents'!C74 -> 0 | C32: =+'Unit Mix and Rents'!D74 -> 0 | D32: =+'Unit Mix and Rents'!E74 -> 0 | E32: =+'Unit Mix and Rents'!F74 -> 0 | F32: =+'Unit Mix and Rents'!G74 -> 0 | G32: 0
A33: Total Units | B33: =SUM(B24:B32) -> 0 | C33: 0 | D33: 0 | E33: 0 | F33: 0 | G33: 0
A35: =+'Unit Mix and Rents'!B77 -> PSH Units | B35: =+'Unit Mix and Rents'!C77 -> 0 | C35: =+'Unit Mix and Rents'!D77 -> 0 | D35: =+'Unit Mix and Rents'!E77 -> 0 | E35: =+'Unit Mix and Rents'!F77 -> 0 | F35: =+'Unit Mix and Rents'!G77 -> 0 | G35: =SUM(B35:F35) -> 0
A37: Operating Budget
A38: =+'Project Description'!B949 -> Gross Potential Rental Income | D38: =+'Project Description'!H949 -> 0
A39: =+'Project Description'!B950 -> Rent Loss (years 1-3) | D39: =+'Project Description'!H950 -> 0 | F39: =+'Project Description'!D950 -> 0.07
A40: =+'Project Description'!B951 -> Other Income | D40: =+'Project Description'!H951 -> 0
A41: Effective Gross Income | D41: =+'Project Description'!H953 -> 0
A42: Total Operating Expenses | D42: =+'Project Description'!H955 -> -1 | F42: =+'Revenues and Expenses'!D89 -> 0 | G42: PUPA
A43: =+'Project Description'!B958 -> Net Operating Income | D43: =+'Project Description'!H958 -> -1
A44: =+'Project Description'!B960 -> Must Pay Debt Service | D44: =-SUM('Project Description'!H960:H964) -> 0
A45: Operating Cash Flow | D45: =+'Project Description'!H965 -> -1
A46: =+'Project Description'!B966 -> DSCR Year 1 | D46: =+'Project Description'!H966 -> 0
A48: Total Sources of Funds | D48: =+'Project Description'!H517 -> 2000001 | F48: =+IF($G$33=0,0,D48/$G$33) -> 0 | G48: per unit
A49: =+'Project Description'!B500 -> New LHC Risk Sharing First Mortgage Loan | D49: =+'Project Description'!H500 -> 0 | F49: =+IF($G$33=0,0,D49/$G$33) -> 0
A50: =+'Project Description'!B501 -> Non-LHC loan #1 (identify lender): | D50: =+'Project Description'!H501 -> 0 | F50: 0
A51: =+'Project Description'!B502 -> Non-LHC loan #2 (identify lender): | D51: =+'Project Description'!H502 -> 0 | F51: 0
A52: =+'Project Description'!B503 -> LHC HOME Loan (Forgiven at maturity) | D52: =+'Project Description'!H503 -> 0 | F52: 0
A53: =+'Project Description'!B504 -> LHC NHTF Loan (Forgiven at maturity) | D53: =+'Project Description'!H504 -> 0 | F53: 0
A54: =+'Project Description'!B505 -> CDBG-DR Gap Financing Loan | D54: =+'Project Description'!H505 -> 2000000 | F54: 0
A55: =+'Project Description'!B506 -> Deferred Developer Fee | D55: =+'Project Description'!H506 -> 1 | F55: 0
A56: =+'Project Description'!B507 -> Federal Historic Tax Credits and Equity | D56: =+'Project Description'!H507 -> 0 | F56: 0
A57: =+'Project Description'!B508 -> State Historic Tax Credits and Equity | D57: =+'Project Description'!H508 -> 0 | F57: 0
A58: =+'Project Description'!B509 -> Estimated LIHTC Equity Proceeds | D58: =+'Project Description'!H509 -> 0 | F58: 0
A59: Other | D59: =D48-SUM(D49:E58) -> 0 | F59: 0
A61: Total Development Cost | D61: =+'Development Costs'!C229 -> 0 | F61: =+IF($G$33=0,0,D61/$G$33) -> 0 | G61: per unit
A62: =+'Development Costs'!B201 -> Building Acquisition | D62: =+'Development Costs'!C201 -> 0 | F62: 0
A63: =+'Development Costs'!B202 -> Land Acquisition | D63: =+'Development Costs'!C202 -> 0 | F63: 0
A64: Total Hard Costs | D64: =SUM('Development Costs'!C203:C206) -> 0 | F64: 0 | K64: =SUM(D$64:D64) -> 0
A65: Builder Compensation | C65: =IF(K64=0,0,D65/K64) -> 0 | D65: =SUM('Development Costs'!C207:C210) -> 0 | F65: 0 | K65: =SUM(D$64:D65) -> 0
A66: Construction Contingency | C66: =IF(K65=0,0,D66/K65) -> 0 | D66: =+'Development Costs'!C212 -> 0 | F66: 0 | K66: =SUM(D$64:D66) -> 0
A67: Total Developer's Fee | C67: =IF(K66=0,0,D67/K66) -> 0 | D67: =+SUM('Development Costs'!C226:C227) -> 0 | F67: 0
A68: Initial Reserves | D68: =SUM('Development Costs'!C218:C223) -> 0 | F68: 0
A69: Soft Costs / Other | D69: =D61-SUM(D62:E68) -> 0 | F69: 0
A71: DSCR from Cash Flow Proforma:
A72: Year 1 | E72: =+'Project Description'!H966 -> 0
A73: =+'Project Description'!B969 -> Year 5 | E73: =+'Project Description'!H969 -> 0
A74: =+'Project Description'!B970 -> Year 10 | E74: =+'Project Description'!H970 -> 0
A75: =+'Project Description'!B971 -> Year 15 | E75: =+'Project Description'!H971 -> 0
A76: =+'Project Description'!B972 -> Year 20 | E76: =+'Project Description'!H972 -> 0
A77: =+'Project Description'!B973 -> Year 25 | E77: =+'Project Description'!H973 -> 0
A78: =+'Project Description'!B974 -> Year 30 | E78: =+'Project Description'!H974 -> 0
A79: =+'Project Description'!B975 -> Year 35 | E79: =+'Project Description'!H975 -> 0
A82: Applicant's Additional Explanation:
A84: =+'Project Description'!B1013 -> Comment

Sheet Checklist
A3: =+Instructions!$A$3 -> 2020 Piggyback Mixed Income Resilience (PRIME) Rental Housing Application
A4: =TRIM('Project Description'!$E$79)&" ("&TRIM('Project Description'!$E$81)&" LA), "&'Project Description'!$E$50 -> x (x LA), x
A6: Checklist of Threshold Requirements and Other Required Information
A8: Complete the Following Worksheets (Each Requires User Entries)
A9: Yes | B9: Project Description
A10: Yes | B10: Unit Mix and Rents
A11: Yes | B11: Development Costs
A12: =IF('Basis Calculation'!B10="","Yes","") ->  | B12: Basis Calculation
A13: Yes | B13: Revenues and Expenses
A14: Yes | B14: Development Team
A15: Yes | B15: Syndication
A16: Yes | B16: Taxpayer Certification
A17: =+A146 ->  | B17: Reserve Adequacy
A18: Yes | B18: Developer Experience (LHC-3)
A19: Yes | B19: Property Management Experience (LHC-4)
A20: Yes | B20: Appendix 1 (Ownership Information)
A21: Yes | B21: Appendix 2 (Site Control Worksheet)
A22: Yes | B22: Appendix 4 (Zoning Evidence)
A24: If user entries are required in other worksheets, instructions will appear below.
A26: Threshold Requirements | C26: QAP References
A28: The Threshold Requirements described below are required for each item marked "Yes" in column A. The 'QAP References' column provides a cross-reference to the appropriate portion(s) of the QAP.
A30: Yes | B30: ="Threshold Requirement "&E30&": "&F30&"." -> Threshold Requirement 1: Site Control (Also Appendix 2). | C30: =+'QAP Reference'!A36 -> V.A.1 | E30: 1 | F30: Site Control (Also Appendix 2)
A31: As specified in the QAP. Generally, a purchase agreement, option to purchase, executed ground lease, or valid title. Label as Appendix 2 and include the worksheet in this Application titled 'Appendix 2'.
A33: Yes | B33: ="Threshold Requirement "&E33&": "&F33&"." -> Threshold Requirement 2: Zoning (Also Appendix 4). | C33: =+'QAP Reference'!A37 -> V.A.2 | E33: =+E30+1 -> 2 | F33: Zoning (Also Appendix 4)
A34: As specified in the QAP. Documentation that development of the project is permitted under applicable zoning requirements. Label as Appendix 4; the signed document from the zoning authority should conform to the format of the worksheet in this Application titled 'Appendix 4'.
A36: Yes | B36: ="Threshold Requirement "&E36&": "&F36&"." -> Threshold Requirement 3: Infrastructure (Also Appendix 38). | C36: =+'QAP Reference'!A38 -> V.A.3 | E36: =+E33+1 -> 3 | F36: Infrastructure (Also Appendix 38)
A37: As specified in the QAP. Evidence of essential utilities, transportation, and educational facilities.
A39: =IF('Project Description'!$H$94="Yes","Yes","") ->  | B39: ="Threshold Requirement "&E39&": "&F39&"." -> Threshold Requirement 4: Environmental Restrictions Checklist (Also Appendix 36). | C39: =+'QAP Reference'!A39 -> V.A.4 | E39: =+E36+1 -> 4 | F39: Environmental Restrictions Checklist (Also Appendix 36)
A40: As specified in the QAP. Applicable to projects involving use of existing structures. Include any Operations and Maintenance Plans called for in the Checklist. The format for the Checklist is in the worksheet titled 'Appendix 36'.
A42: Yes | B42: ="Threshold Requirement "&E42&": "&F42&"." -> Threshold Requirement 5: Taxpayer Agreement Regarding Tenant Referrals (Also Appendix 39). | C42: =+'QAP Reference'!A41 -> V.A.6 | E42: =+E39+1 -> 5 | F42: Taxpayer Agreement Regarding Tenant Referrals (Also Appendix 39)
A43: As specified in the QAP.
A45: Yes | B45: ="Threshold Requirement "&E45&": "&F45&"." -> Threshold Requirement 6: Minimum Internet / Cable Capacity Requirements. | C45: =+'QAP Reference'!A42 -> V.A.7 | E45: =+E42+1 -> 6 | F45: Minimum Internet / Cable Capacity Requirements
A46: As specified in the QAP. Taxpayer agreement to comply with applicable QAP requirements.
A48: =IF('Project Description'!H90="Yes","Yes","") ->  | B48: ="Threshold Requirement "&E48&": "&F48&"." -> Threshold Requirement 7: Washers and Dryers for New Construction Projects. | C48: =+'QAP Reference'!A43 -> V.A.8 | E48: =+E45+1 -> 7 | F48: Washers and Dryers for New Construction Projects
A49: As specified in the QAP.
A51: Yes | B51: ="Threshold Requirement "&E51&": "&F51&"." -> Threshold Requirement 8: Energy Efficiency Requirements. | C51: =+'QAP Reference'!A44 -> V.A.9 | E51: =+E48+1 -> 8 | F51: Energy Efficiency Requirements
A52: As specified in the QAP. Requirements vary between new construction projects and rehabilitation projects. See the QAP.
A54: Yes | B54: ="Threshold Requirement "&E54&": "&F54&"." -> Threshold Requirement 9: Design Features. | C54: =+'QAP Reference'!A45 -> V.A.10, V.F | E54: =+E51+1 -> 9 | F54: Design Features
A55: As specified in the QAP: (1) 15-year-plus maintenance-free exterior; (2) 25-year-plus roof warranty; and (3) at least double paned, insulated windows.
A57: =IF(AND('Project Description'!$H$108="Yes",OR('Project Description'!$H$90="Yes",'Project Description'!$H$98="Yes")),"Yes","") ->  | B57: ="Threshold Requirement "&E57&": "&F57&"." -> Threshold Requirement 10: NC or SR Projects in Special Flood Hazard Areas. | C57: =+'QAP Reference'!A46 -> V.A.11 | E57: =+E54+1 -> 10 | F57: NC or SR Projects in Special Flood Hazard Areas
A58: As specified in the QAP. Elevation to the minimum BFE.
A60: Yes | B60: ="Threshold Requirement "&E60&": "&F60&"." -> Threshold Requirement 11: Compliance with Local Floodplain Management Requirements. | C60: =+'QAP Reference'!A46 -> V.A.11 | E60: =+E57+1 -> 11 | F60: Compliance with Local Floodplain Management Requirements
A61: As specified in the QAP. Applies to all projects.
A63: Yes | B63: ="Threshold Requirement "&E63&": "&F63&"." -> Threshold Requirement 12: Floodplain Determination. | C63: =+'QAP Reference'!A46 -> V.A.11 | E63: =+E60+1 -> 12 | F63: Floodplain Determination
A64: All projects must provide a certification by the architect regarding whether all or part of the project lies in a floodplain. If all or part of the project lies in a floodplain, two additional requirements apply: (1) a finished-construction elevation certificate must be provided; and (2) the architect's certification must indicate whether the finished-construction elevation is at or above the Base Flood Elevation.
A66: =IF('Project Description'!$H$109="Yes","Yes","") ->  | B66: ="Threshold Requirement "&E66&": "&F66&"." -> Threshold Requirement 13: Architect's Certification for Levee Protected Areas. | C66: =+'QAP Reference'!A46 -> V.A.11 | E66: =+E63+1 -> 13 | F66: Architect's Certification for Levee Protected Areas
A67: As specified in the QAP, for any project located inside a levee protected area.
A69: =IF('Project Description'!$H$95="Yes","Yes","") ->  | B69: ="Threshold Requirement "&E69&": "&F69&"." -> Threshold Requirement 14: Capital Needs Assessment (Also Appendix 6). | C69: V.A.10 | E69: =+E66+1 -> 14 | F69: Capital Needs Assessment (Also Appendix 6)
A70: For all projects involving acquisition of any existing residential building, as specified in the QAP: a Capital Needs Assessment (labeled as Appendix 6). Additional requirements apply to historic rehab projects.
A72: =IF('Project Description'!$H$99="Yes","Yes","") ->  | B72: ="Threshold Requirement "&E72&": "&F72&"." -> Threshold Requirement 15: Historic Rehabilitation Projects. | C72: =+'QAP Reference'!A48 -> V.A.13 | E72: =+E69+1 -> 15 | F72: Historic Rehabilitation Projects
A73: (1) Evidence of compliance with various minimum project requirements as specified in the QAP. (2) Approved Part I application from the Louisiana Office of Cultural Development Division of Historic Preservation, plus a Part II by the carryover date. (3) Additional requirements apply if 'substantial improvement' (as defined under the NFIP) is taking place and the structure is not being elevated.
A75: Yes | B75: ="Threshold Requirement "&E75&": "&F75&"." -> Threshold Requirement 16: Minimum Score. | C75: =+'QAP Reference'!A49 -> V.A.14 | E75: =+E72+1 -> 16 | F75: Minimum Score
A76: Minimum selection criteria score of forty (40) points.
A78: =IF('Project Description'!$H$104="Yes","Yes","") ->  | B78: ="Threshold Requirement "&E78&": "&F78&"." -> Threshold Requirement 17: Audited Financials of Project (Or Equivalent) from Seller. | C78: =+'QAP Reference'!A50 -> V.B.1 | E78: =+E75+1 -> 17 | F78: Audited Financials of Project (Or Equivalent) from Seller
A79: For projects including existing rental housing buildings. As specified in the QAP.
A81: =IF('Project Description'!$H$105="Yes","Yes","") ->  | B81: ="Threshold Requirement "&E81&": "&F81&"." -> Threshold Requirement 18: Sales Price With Related Persons. | C81: =+'QAP Reference'!A51 -> V.B.2 | E81: =+E78+1 -> 18 | F81: Sales Price With Related Persons
A82: For projects where there is a relationship between seller and purchaser. As specified in the QAP.
A84: Yes | B84: ="Threshold Requirement "&E84&": "&F84&"." -> Threshold Requirement 19: Ten Year Title History (Also Appendix 3). | C84: =+'QAP Reference'!A52 -> V.B.3 | E84: =+E81+1 -> 19 | F84: Ten Year Title History (Also Appendix 3)
A85: Applies to all projects, to help establish Land Cost as defined in the QAP.
A87: Yes | B87: ="Threshold Requirement "&E87&": "&F87&"." -> Threshold Requirement 20: Organizational Chart for Taxpayer / Applicant. | E87: =+E84+1 -> 20 | F87: Organizational Chart for Taxpayer / Applicant
A88: Must include ownership percentages.
A90: Yes | B90: ="Threshold Requirement "&E90&": "&F90&"." -> Threshold Requirement 21: Developer Experience. | C90: =+'QAP Reference'!A53 -> V.C.1 | E90: =+E87+1 -> 21 | F90: Developer Experience
A91: As specified in the QAP. Evidence that the Managing General Partner or Sponsor meets the requirements of QAP V.C.1.
A93: Yes | B93: ="Threshold Requirement "&E93&": "&F93&"." -> Threshold Requirement 22: Property Management Experience (Also Appendix 45). | C93: =+'QAP Reference'!A55 -> V.C.2 | E93: =+E90+1 -> 22 | F93: Property Management Experience (Also Appendix 45)
A94: As specified in the QAP. Evidence that the property management firm meets the requirements of QAP V.C.2.
A96: =IF('Project Description'!H61="Yes","Yes","") ->  | B96: ="Threshold Requirement "&E96&": "&F96&"." -> Threshold Requirement 23: Development Team Member "Not in Good Standing". | C96: =+'QAP Reference'!A57 -> V.C.3 | E96: =+E93+1 -> 23 | F96: Development Team Member "Not in Good Standing"
A97: In this Application, you indicated that a member of the development team is "not in good standing" with the LHC. Please provide a complete discussion.
A99: Yes | B99: ="Threshold Requirement "&E99&": "&F99&"." -> Threshold Requirement 24: Local Community Notification (Also Appendix 37). | C99: =+'QAP Reference'!A58 -> V.D | E99: =+E96+1 -> 24 | F99: Local Community Notification (Also Appendix 37)
A100: As specified in the QAP, labeled as Appendix 37. (1) Proof of public notice. (2) Proof of notice to CEOs of local governing authorities. Notices must contain all information specified in the QAP.
A102: =IF(AND('Unit Mix and Rents'!AO41=0,'Unit Mix and Rents'!AP41=0),"","Yes") ->  | B102: ="Threshold Requirement "&E102&": "&F102&"." -> Threshold Requirement 25: Failure to Meet Minimum Unit Size / Bathroom Requirements. | C102: =+'QAP Reference'!A59 -> V.D | E102: =+E99+1 -> 25 | F102: Failure to Meet Minimum Unit Size / Bathroom Requirements
A103: In this Application, one or more unit types failed to meet the minimum requirements of the QAP; see the Unit Mix and Rents worksheet. As specified in the QAP, a waiver may be required, or a certification from the local jurisdiction, as applicable.
A105: =IF('Development Costs'!F254>1,"Yes","") ->  | B105: ="Threshold Requirement "&E105&": "&F105&"." -> Threshold Requirement 26: Failure to Meet Maximum Unit Development Cost Requirements. | C105: =+'QAP Reference'!A60 -> V.D | E105: =+E102+1 -> 26 | F105: Failure to Meet Maximum Unit Development Cost Requirements
A106: In this Application, the total development cost exceeded the maximum TDC limitation under the QAP. The QAP allows various options and exceptions.
A108: Yes | B108: ="Threshold Requirement "&E108&": "&F108&"." -> Threshold Requirement 27: Construction and Design Standards. | C108: =+'QAP Reference'!A65 -> V.D | E108: =+E105+1 -> 27 | F108: Construction and Design Standards
A109: As specified in the QAP. Architect's Certifications that the proposed development complies with QAP requirements.
A111: Yes | B111: ="Threshold Requirement "&E111&": "&F111&"." -> Threshold Requirement 28: Project Amenities (Also Appendix 29). | C111: =+'QAP Reference'!A66 -> V.D | E111: =+E108+1 -> 28 | F111: Project Amenities (Also Appendix 29)
A112: As specified in the QAP. (1) HVAC systems, refrigerators, stoves. (2) All amenities (except laundry) available to tenants at no additional charge. (3) On-site laundry meeting QAP requirements. Some exceptions for SROs and for rehabilitation projects of twelve or fewer units.
A114: =IF('Development Costs'!J142=0,"","Yes") ->  | B114: ="Threshold Requirement "&E114&": "&F114&"." -> Threshold Requirement 29: One or More Violations of Fee and Profit Limits (Also Appendix 8). | C114: =+'QAP Reference'!A67 -> V.D | E114: =+E111+1 -> 29 | F114: One or More Violations of Fee and Profit Limits (Also Appendix 8)
A115: See the Development Costs worksheet. Either reduce the affected amount(s), or (if you believe a waiver is justified) submit a signed letter (labeled as Appendix 8) requesting an appropriate waiver.
A117: Yes | B117: ="Threshold Requirement "&E117&": "&F117&"." -> Threshold Requirement 30: Developer Certification of Sources and Uses. | C117: =+'QAP Reference'!#REF! ->  | E117: =+E114+1 -> 30 | F117: Developer Certification of Sources and Uses
A118: As specified in the QAP. There is no specific required format for this certification.
A120: Yes | B120: ="Threshold Requirement "&E120&": "&F120&"." -> Threshold Requirement : Signed Documents. | F120: Signed Documents
A121: The following documents need to be signed by the Taxpayer (and, where noted, notarized): Financing Certification (notarized), Syndication Certification (signed by Taxpayer and Syndicator, both notarized), Taxpayer Certification (notarized), Appendix 1 (notarized), Appendix 4, Appendix 34, Appendix 35, Appendix 36 (signed by preparer), LHC-3, and LHC-4. | F121: QUESTION ON APP 35
A127: Appendices | C127: QAP References
A129: Below is a comprehensive list of Attachments. Those marked 'Yes' in column A are required for this application.
A131: Yes | B131: ="Appendix "&E131&": "&F131&"." -> Appendix 1: Ownership Information. | E131: =+E128+1 -> 1 | F131: Ownership Information
A132: The Ownership Information format is in the worksheet in this Application titled 'Appendix 1'.
A134: Yes | B134: ="Appendix "&E134&": "&F134&IF(J134="","."," (see Threshold Requirement "&J134&").") -> Appendix 2: Site Control (see Threshold Requirement 1). | C134: =+'QAP Reference'!A36 -> V.A.1 | E134: =+E131+1 -> 2 | F134: Site Control | J134: =+E30 -> 1
A135: The materials required for this Appendix are described above in the Threshold Requirements section.
A137: Yes | B137: ="Appendix "&E137&": "&F137&IF(J137="","."," (see Threshold Requirement "&J137&").") -> Appendix 3: Ownership History (see Threshold Requirement 19). | C137: =+C84 -> V.B.3 | E137: =+E134+1 -> 3 | F137: Ownership History | J137: =+E84 -> 19
A138: The materials required for this Appendix are described above in the Threshold Requirements section.
A140: Yes | B140: ="Appendix "&E140&": "&F140&IF(J140="","."," (see Threshold Requirement "&J140&").") -> Appendix 4: Zoning (see Threshold Requirement 2). | C140: =+C33 -> V.A.2 | E140: =+E137+1 -> 4 | F140: Zoning | J140: =+E33 -> 2
A141: The materials required for this Appendix are described above in the Threshold Requirements section.
A143: Yes | B143: ="Appendix "&E143&": "&F143&IF(J143="","."," (see Threshold Requirement "&J143&").") -> Appendix 5: Appraisal. | C143: =+'QAP Reference'!A73 -> V.J.Market Study.12 | E143: =+E140+1 -> 5 | F143: Appraisal
A144: For rehabilitation projects, as specified in the QAP. The appraisal is to establish the fair market value of any existing property when the purchase price exceeds $500,000 or the Acquisition Costs of buildings are included in eligible basis. Appraisals must be dated within 90 days of submission of the Application.
A146: =+A69 ->  | B146: ="Appendix "&E146&": "&F146&IF(J146="","."," (see Threshold Requirement "&J146&").") -> Appendix 6: Capital Needs Assessment (see Threshold Requirement 14). | C146: =+'QAP Reference'!A47 -> V.A.12, V.F | E146: =+E143+1 -> 6 | F146: Capital Needs Assessment | J146: =+E69 -> 14
A147: The materials required for this Appendix are described above in the Threshold Requirements section.
A149: Yes | B149: ="Appendix "&E149&": "&F149&IF(J149="","."," (see Threshold Requirement "&J149&").") -> Appendix 7: Financing Commitments. | C149: =+'QAP Reference'!A72 -> V.H | E149: =+E146+1 -> 7 | F149: Financing Commitments
A150: Financing commitments must be fully executed.
A152: =+A114 ->  | B152: ="Appendix "&E152&": "&F152&IF(J152="","."," (see Threshold Requirement "&J152&").") -> Appendix 8: Waiver of Profit Limits (see Threshold Requirement 29). | C152: =+'QAP Reference'!A67 -> V.D | E152: =+E149+1 -> 8 | F152: Waiver of Profit Limits | J152: =+E114 -> 29
A153: The materials required for this Appendix are described above in the Threshold Requirements section.
A155: Yes | B155: ="Appendix "&E155&": "&F155&IF(J155="","."," (see Threshold Requirement "&J155&").") -> Appendix 9: Development Services Agreement. | C155: =+'QAP Reference'!A68 -> V.D | E155: =+E152+1 -> 9 | F155: Development Services Agreement
A156: The Development Services Agreement must be fully executed.
A158: Yes | B158: ="Appendix "&E158&": "&F158&IF(J158="","."," (see Threshold Requirement "&J158&").") -> Appendix 10: Federal Agency Letter. | C158: =+'QAP Reference'!A71 -> V.G | E158: =+E155+1 -> 10 | F158: Federal Agency Letter
A159: A Federal Agency Provides Federal Funding or Mortgage Insurance. Please provide a signed letter from the agency advising that the agency has no objections to the reservation of tax credits / LHC Funds to the project.
A161: =IF('Project Description'!$M$165=1,"Yes","") ->  | B161: ="Appendix "&E161&": "&F161&IF(J161="","."," (see Threshold Requirement "&J161&").") -> Appendix 11: Non-Profit Participation. | C161: =+'QAP Reference'!A9 -> III.A | E161: =+E158+1 -> 11 | F161: Non-Profit Participation
A162: The Non-Profit Participation Information format is in the worksheet in this Application titled 'Appendix 11'. | F162: Confirm when App 11 is required; all QNP/CHDO Pool apps? Something else?
A164: =IF('Project Description'!$M$165=1,"Yes","") ->  | B164: ="Appendix "&E164&": "&F164&IF(J164="","."," (see Threshold Requirement "&J164&").") -> Appendix 12: Non-Profit IRS Determination Letter. | C164: =+'QAP Reference'!A9 -> III.A | E164: =+E161+1 -> 12 | F164: Non-Profit IRS Determination Letter
A165: IRS letter establishing the 501(c)(3) or 501(c)(4) status of the Qualified Non-Profit Organization.
A167: =IF('Project Description'!$M$165=1,"Yes","") ->  | B167: ="Appendix "&E167&": "&F167&IF(J167="","."," (see Threshold Requirement "&J167&").") -> Appendix 13: Non-Profit Counsel's Opinion. | C167: =+'QAP Reference'!A9 -> III.A | E167: =+E164+1 -> 13 | F167: Non-Profit Counsel's Opinion
A168: The format for the counsel's opinion is in the worksheet in this Application titled 'Appendix 13'.
A170: =IF('Project Description'!$M$165=1,"Yes","") ->  | B170: ="Appendix "&E170&": "&F170&IF(J170="","."," (see Threshold Requirement "&J170&").") -> Appendix 14: Non-Profit Articles and By-Laws. | C170: =+'QAP Reference'!A9 -> III.A | E170: =+E167+1 -> 14 | F170: Non-Profit Articles and By-Laws
A173: =IF('Project Description'!$H$68="Yes","Yes","") ->  | B173: ="Appendix "&E173&": "&F173&IF(J173="","."," (see Threshold Requirement "&J173&").") -> Appendix 15: CHDO Approval Letter. | C173: =+'QAP Reference'!A10 -> III.A | E173: =+E170+1 -> 15 | F173: CHDO Approval Letter
A174: =IF(A173="Yes","Please submit a letter from the HOME Participating Jurisdiction, certifying the applicant as a CHDO.","") -> 
B176: ="Appendix "&E176&": "&F176&IF(J176="","."," (see Threshold Requirement "&J176&").") -> Appendix 16: Not Applicable to This QAP. | E176: =+E173+1 -> 16 | F176: Not Applicable to This QAP | I176: RD Rural Rehab
A179: =IF('Selection Criteria'!D10=0,"","Yes") ->  | B179: ="Appendix "&E179&": "&F179&IF(J179="","."," (see Threshold Requirement "&J179&").") -> Appendix 17: Points Claimed for Geographic Diversity. | C179: =+'QAP Reference'!A81 -> VII.I.A.ii | E179: =+E176+1 -> 17 | F179: Points Claimed for Geographic Diversity
A180: Please submit documentation called for in the QAP, regarding information about median incomes in (1) the census tract in which the project is located and (2) the MSA.
A182: =IF(SUM('Selection Criteria'!D13:D17)=0,"","Yes") ->  | B182: ="Appendix "&E182&": "&F182&IF(J182="","."," (see Threshold Requirement "&J182&").") -> Appendix 18: Points Claimed for Redevelopment Project. | C182: =+'QAP Reference'!B82 -> Redevelopment Project | E182: =+E179+1 -> 18 | F182: Points Claimed for Redevelopment Project
A183: Please submit documentation called for in the QAP, demonstrating that the project qualifies as a Redevelopment Project (either Distressed Property, Redevelopment Property, or Owner Occupied Property with Development Plan of Action) under Selection Criterion I.B.
A185: =IF(SUM('Selection Criteria'!D18:D33)=0,"","Yes") -> Yes | B185: ="Appendix "&E185&": "&F185&IF(J185="","."," (see Threshold Requirement "&J185&").") -> Appendix 19: Points Claimed in Rehabilitation & Preservation and/or New Construction. | E185: =+E182+1 -> 19 | F185: Points Claimed in Rehabilitation & Preservation and/or New Construction
A186: Please submit documentation called for in the QAP, demonstrating that the project qualifies for all points claimed under Selection Criterion I.C Rehabilitation & Preservation and/or I.D New Construction.
A188: =IF('Project Description'!$H$86="Yes","","Yes") -> Yes | B188: ="Appendix "&E188&": "&F188&IF(J188="","."," (see Threshold Requirement "&J188&").") -> Appendix 20: Scattered-Site Project. | C188: Glossary | E188: =+E185+1 -> 20 | F188: Scattered-Site Project
A189: =IF(A188="Yes",I189,"") -> In this Application, you indicated that this is a multi-site project. (1) Provide documentation that the project satisfies the QAP requirements in the Glossary's definition of 'Scattered-Site Project'. (2) Include information adequate to identify each site, including (at a minimum) the street address and a location map for each site. (3) Indicate the unit mix and square footage proposed for each site. (4) Indicate the type of development activity (new construction and/or rehab) that will take place at each site. (5) Indicate the total development cost for each site. (6) Indicate whether any of the multiple sites are 'contiguous' (adjacent, or separated only by a roadway). (7) If you are claiming the 30% Basis Boost, provide documentation that 100% of the project sites qualify for the Basis Boost (see FAQ 14). | I189: In this Application, you indicated that this is a multi-site project. (1) Provide documentation that the project satisfies the QAP requirements in the Glossary's definition of 'Scattered-Site Project'. (2) Include information adequate to identify each site, including (at a minimum) the street address and a location map for each site. (3) Indicate the unit mix and square footage proposed for each site. (4) Indicate the type of development activity (new construction and/or rehab) that will take place at each site. (5) Indicate the total development cost for each site. (6) Indicate whether any of the multiple sites are 'contiguous' (adjacent, or separated only by a roadway). (7) If you are claiming the 30% Basis Boost, provide documentation that 100% of the project sites qualify for the Basis Boost (see FAQ 14).
A191: Yes | B191: ="Appendix "&E191&": "&F191&IF(J191="","."," (see Threshold Requirement "&J191&").") -> Appendix 21: Preservation Property. | C191: Glossary | E191: =+E188+1 -> 21 | F191: Preservation Property
A192: Please submit documentation that the project meets the QAP's definition for "Preservation Property".
A194: =IF(OR('Project Description'!F796="Yes",'Project Description'!F797="Yes",'Project Description'!F798="Yes",'Project Description'!F799="Yes"),"Yes","") ->  | B194: ="Appendix "&E194&": "&F194&IF(J194="","."," (see Threshold Requirement "&J194&").") -> Appendix 22: Special Needs Project (Non-Elderly). | C194: =+'QAP Reference'!A83 -> VII.II.A | E194: =+E191+1 -> 22 | F194: Special Needs Project (Non-Elderly)
A195: =Checklist!I195&'Project Description'!$A$795&"." -> Please provide (a) Description of Supportive Services tailored to each Special Needs Household (see the Supportive Services definitions in the Glossary); (b) Cost per annum of Supportive Services per Special Needs Household or written commitment from governmental or non-profit agency that Supportive Services will be provided to Project without cost; (c) Experience of Taxpayer/Owner in developing Projects servicing Special Needs Households; and (d) documentation of your commitment to set aside the number of units specified in Section 24.02. | I195: Please provide (a) Description of Supportive Services tailored to each Special Needs Household (see the Supportive Services definitions in the Glossary); (b) Cost per annum of Supportive Services per Special Needs Household or written commitment from governmental or non-profit agency that Supportive Services will be provided to Project without cost; (c) Experience of Taxpayer/Owner in developing Projects servicing Special Needs Households; and (d) documentation of your commitment to set aside the number of units specified in Section
A197: =IF('Selection Criteria'!D45+'Selection Criteria'!D46=0,"","Yes") ->  | B197: ="Appendix "&E197&": "&F197&IF(J197="","."," (see Threshold Requirement "&J197&").") -> Appendix 23: Points Claimed for Increased Unit Affordability. | C197: VII.II.B.1 | E197: =+E194+1 -> 23 | F197: Points Claimed for Increased Unit Affordability
A198: Please provide evidence of PSH, rental subsidy, or other means of maintaining the proposed level of affordability for these units.
A200: =IF('Project Description'!H206="Yes","Yes","") ->  | B200: ="Appendix "&E200&": "&F200&IF(J200="","."," (see Threshold Requirement "&J200&").") -> Appendix 24: Basis Boost. | C200: =+'QAP Reference'!A19 -> III.D | E200: =+E197+1 -> 24 | F200: Basis Boost
A201: In this Application, you indicated you were requesting the 30% Basis Boost. Please provide documentation establishing that the project's location satisfies applicable QAP requirements.
B203: ="Appendix "&E203&": "&F203&IF(J203="","."," (see Threshold Requirement "&J203&").") -> Appendix 25: Not Applicable to This QAP. | E203: =+E200+1 -> 25 | F203: Not Applicable to This QAP
A205: =IF('Project Description'!H807="Yes","Yes","") ->  | B205: ="Appendix "&E205&": "&F205&IF(J205="","."," (see Threshold Requirement "&J205&").") -> Appendix 26: Points Claimed for Additional Financial Support. | C205: =+'QAP Reference'!A89 -> VII.III.D | E205: =+E203+1 -> 26 | F205: Points Claimed for Additional Financial Support
A206: Please document the amount and type of Additional Financial Support in accordance with applicable QAP Requirements.
A208: =IF('Selection Criteria'!D75=0,"","Yes") ->  | B208: ="Appendix "&E208&": "&F208&IF(J208="","."," (see Threshold Requirement "&J208&").") -> Appendix 27: Points Claimed for Green Building. | C208: =+'QAP Reference'!A93 -> VII.V.B.iii | E208: =+E205+1 -> 27 | F208: Points Claimed for Green Building
A209: Please submit documentation that the project meets the Green Building definition in the Glossary.
A211: =IF('Selection Criteria'!D70=0,"","Yes") ->  | B211: ="Appendix "&E211&": "&F211&IF(J211="","."," (see Threshold Requirement "&J211&").") -> Appendix 28: Community Facilities. | C211: =+'QAP Reference'!A91 -> VII.V.A | E211: =+E208+1 -> 28 | F211: Community Facilities
A212: Please submit documentation that the project includes Community Facilities as defined in the Glossary.
A214: Yes | B214: ="Appendix "&E214&": "&F214&IF(J214="","."," (see Threshold Requirement "&J214&").") -> Appendix 29: Project Amenities (see Threshold Requirement 28). | C214: =+C111 -> V.D | E214: =+E211+1 -> 29 | F214: Project Amenities | J214: =+E111 -> 28
A215: The materials required for this Appendix are described above in the Threshold Requirements section.
A217: =IF('Selection Criteria'!D78=0,"","Yes") ->  | B217: ="Appendix "&E217&": "&F217&IF(J217="","."," (see Threshold Requirement "&J217&").") -> Appendix 30: Points Claimed for Additional Accessible Units. | C217: =+'QAP Reference'!A95 -> VII.V.D | E217: =+E214+1 -> 30 | F217: Points Claimed for Additional Accessible Units
A218: ="Please submit documentation that the units described in Sections "&F218&" and "&G218&" of this Application as being 'accessible' meet all applicable requirements under the Rehabilitation Act of 1973." -> Please submit documentation that the units described in Sections 27.06 and 27.07 of this Application as being 'accessible' meet all applicable requirements under the Rehabilitation Act of 1973. | F218: =+'Project Description'!A884 -> 27.06 | G218: =+'Project Description'!A887 -> 27.07
A220: =IF('Selection Criteria'!D64=0,"","Yes") ->  | B220: ="Appendix "&E220&": "&F220&IF(J220="","."," (see Threshold Requirement "&J220&").") -> Appendix 31: Points Claimed for On-Site Security. | C220: =+'QAP Reference'!A96 -> VII.V.E | E220: =+E217+1 -> 31 | F220: Points Claimed for On-Site Security
A221: Please submit documentation that the project meets the On-Site Security definition in the Glossary.
B223: ="Appendix "&E223&": "&F223&IF(J223="","."," (see Threshold Requirement "&J223&").") -> Appendix 32: Not Applicable to This QAP. | E223: =+E220+1 -> 32 | F223: Not Applicable to This QAP
B225: ="Appendix "&E225&": "&F225&IF(J225="","."," (see Threshold Requirement "&J225&").") -> Appendix 33: Not Applicable to This QAP. | E225: =+E223+1 -> 33 | F225: Not Applicable to This QAP | I225: Was documentation of TDC at least 15% below max
A227: Yes | B227: ="Appendix "&E227&": "&F227&IF(J227="","."," (see Threshold Requirement "&J227&").") -> Appendix 34: Certification Regarding Debarment. | E227: =+E225+1 -> 34 | F227: Certification Regarding Debarment
A228: The format is in the worksheet in this Application titled 'Appendix 34'. The certification must be signed.
B230: ="Appendix "&E230&": "&F230&IF(J230="","."," (see Threshold Requirement "&J230&").") -> Appendix 35: Not Applicable to This QAP. | E230: =+E227+1 -> 35 | F230: Not Applicable to This QAP | I230: Was 'Matching Certification'
A232: =+A39 ->  | B232: ="Appendix "&E232&": "&F232&IF(J232="","."," (see Threshold Requirement "&J232&").") -> Appendix 36: Environmental Restrictions Checklist (see Threshold Requirement 4). | C232: =+C39 -> V.A.4 | E232: =+E230+1 -> 36 | F232: Environmental Restrictions Checklist | J232: =+E39 -> 4
A233: The materials required for this Appendix are described above in the Threshold Requirements section.
A235: Yes | B235: ="Appendix "&E235&": "&F235&IF(J235="","."," (see Threshold Requirement "&J235&").") -> Appendix 37: Local Community Notification (see Threshold Requirement 24). | C235: =+C99 -> V.D | E235: =+E232+1 -> 37 | F235: Local Community Notification | J235: =+E99 -> 24
A236: The materials required for this Appendix are described above in the Threshold Requirements section.
A238: Yes | B238: ="Appendix "&E238&": "&F238&IF(J238="","."," (see Threshold Requirement "&J238&").") -> Appendix 38: Infrastructure (see Threshold Requirement 3). | C238: =+C36 -> V.A.3 | E238: =+E235+1 -> 38 | F238: Infrastructure | J238: =+E36 -> 3
A239: The materials required for this Appendix are described above in the Threshold Requirements section.
A241: Yes | B241: ="Appendix "&E241&": "&F241&IF(J241="","."," (see Threshold Requirement "&J241&").") -> Appendix 39: Tenant Referrals Agreement (see Threshold Requirement 5). | C241: =+C42 -> V.A.6 | E241: =+E238+1 -> 39 | F241: Tenant Referrals Agreement | J241: =+E42 -> 5
A242: The materials required for this Appendix are described above in the Threshold Requirements section.
A244: Yes | B244: ="Appendix "&E244&": "&F244&IF(J244="","."," (see Threshold Requirement "&J244&").") -> Appendix 40: Minimum Internet / Cable (see Threshold Requirement 6). | C244: =+C45 -> V.A.7 | E244: =+E241+1 -> 40 | F244: Minimum Internet / Cable | J244: =+E45 -> 6
A245: The materials required for this Appendix are described above in the Threshold Requirements section.
A247: Yes | B247: ="Appendix "&E247&": "&F247&IF(J247="","."," (see Threshold Requirement "&J247&").") -> Appendix 41: Energy Efficiency Requirements (see Threshold Requirement 8). | C247: =+C51 -> V.A.9 | E247: =+E244+1 -> 41 | F247: =+F51 -> Energy Efficiency Requirements | J247: =+E51 -> 8
A248: The materials required for this Appendix are described above in the Threshold Requirements section.
A250: Yes | B250: ="Appendix "&E250&": "&F250&IF(J250="","."," (see Threshold Requirement "&J250&").") -> Appendix 42: Design Features (see Threshold Requirement 9). | C250: =+C54 -> V.A.10, V.F | E250: =+E247+1 -> 42 | F250: =+F54 -> Design Features | J250: =+E54 -> 9
A251: The materials required for this Appendix are described above in the Threshold Requirements section.
B253: ="Appendix "&E253&": "&F253&IF(J253="","."," (see Threshold Requirement "&J253&").") -> Appendix 43: Not Applicable to This QAP. | E253: =+E250+1 -> 43 | F253: Not Applicable to This QAP | I253: Was documentation related to BFE; now obsolete
A255: =+A72 ->  | B255: ="Appendix "&E255&": "&F255&IF(J255="","."," (see Threshold Requirement "&J255&").") -> Appendix 44: Historic Rehabilitation Projects (see Threshold Requirement 15). | C255: =+C72 -> V.A.13 | E255: =+E253+1 -> 44 | F255: =+F72 -> Historic Rehabilitation Projects | J255: =+E72 -> 15
A256: The materials required for this Appendix are described above in the Threshold Requirements section.
A258: Yes | B258: ="Appendix "&E258&": "&F258&IF(J258="","."," (see Threshold Requirement "&J258&").") -> Appendix 45: Property Management Experience (Also Appendix 45) (see Threshold Requirement 22). | C258: =+C93 -> V.C.2 | E258: =+E255+1 -> 45 | F258: =+F93 -> Property Management Experience (Also Appendix 45) | J258: =+E93 -> 22
A259: The materials required for this Appendix are described above in the Threshold Requirements section.
B261: ="Appendix "&E261&": "&F261&IF(J261="","."," (see Threshold Requirement "&J261&").") -> Appendix 46: Not Applicable to This QAP. | E261: =+E258+1 -> 46 | F261: Not Applicable to This QAP
B263: ="Appendix "&E263&": "&F263&IF(J263="","."," (see Threshold Requirement "&J263&").") -> Appendix 47: Not Applicable to This QAP. | E263: =+E261+1 -> 47 | F263: Not Applicable to This QAP
B265: ="Appendix "&E265&": "&F265&IF(J265="","."," (see Threshold Requirement "&J265&").") -> Appendix 48: Not Applicable to This QAP. | E265: =+E263+1 -> 48 | F265: Not Applicable to This QAP
B267: ="Appendix "&E267&": "&F267&IF(J267="","."," (see Threshold Requirement "&J267&").") -> Appendix 49: Not Applicable to This QAP. | E267: =+E265+1 -> 49 | F267: Not Applicable to This QAP
B269: ="Appendix "&E269&": "&F269&IF(J269="","."," (see Threshold Requirement "&J269&").") -> Appendix 50: Not Applicable to This QAP. | E269: =+E267+1 -> 50 | F269: Not Applicable to This QAP
B271: ="Appendix "&E271&": "&F271&IF(J271="","."," (see Threshold Requirement "&J271&").") -> Appendix 51: Not Applicable to This QAP. | E271: =+E269+1 -> 51 | F271: Not Applicable to This QAP
